Body,Body Name,Date,Transaction Number,Invoice Number,Amount,Supplier Name,Supplier ID,Expense Area,Expense Type,Expense Code
http://statistics.data.gov.uk/id/local-authority/47UD,Redditch Borough Council,18/01/2013,174769,BE101,"4,779.41",B Evans & Son,103,Rbc Balance Sheet,Direct Payments,8132
http://statistics.data.gov.uk/id/local-authority/47UD,Redditch Borough Council,04/01/2013,175606,BE102,"8,031.02",B Evans & Son,103,Rbc Balance Sheet,Dlo,8130
http://statistics.data.gov.uk/id/local-authority/47UD,Redditch Borough Council,11/01/2013,176481,BE103,"11,103.58",B Evans & Son,103,Rbc Balance Sheet,Dlo,8130
http://statistics.data.gov.uk/id/local-authority/47UD,Redditch Borough Council,18/01/2013,176904,BE104,"4,518.63",B Evans & Son,103,Rbc Balance Sheet,Dlo,8130
http://statistics.data.gov.uk/id/local-authority/47UD,Redditch Borough Council,04/01/2013,176741,534,"1,127.94",Superior Plumbing Installations Ltd,1030,Housing Repairs Account,Contractors,5158
http://statistics.data.gov.uk/id/local-authority/47UD,Redditch Borough Council,04/01/2013,176742,535,"1,381.65",Superior Plumbing Installations Ltd,1030,Housing Repairs Account,Contractors,5158
http://statistics.data.gov.uk/id/local-authority/47UD,Redditch Borough Council,04/01/2013,176743,531,"1,222.21",Superior Plumbing Installations Ltd,1030,Housing Repairs Account,Contractors,5158
http://statistics.data.gov.uk/id/local-authority/47UD,Redditch Borough Council,04/01/2013,176744,532,"1,407.27",Superior Plumbing Installations Ltd,1030,Housing Repairs Account,Contractors,5158
http://statistics.data.gov.uk/id/local-authority/47UD,Redditch Borough Council,04/01/2013,176745,533,"1,011.81",Superior Plumbing Installations Ltd,1030,Housing Repairs Account,Contractors,5158
http://statistics.data.gov.uk/id/local-authority/47UD,Redditch Borough Council,11/01/2013,177020,538,"1,411.69",Superior Plumbing Installations Ltd,1030,Housing Repairs Account,Contractors,5158
http://statistics.data.gov.uk/id/local-authority/47UD,Redditch Borough Council,11/01/2013,177022,541,"2,213.69",Superior Plumbing Installations Ltd,1030,Housing Repairs Account,Contractors,5158
http://statistics.data.gov.uk/id/local-authority/47UD,Redditch Borough Council,11/01/2013,177024,542,"1,562.16",Superior Plumbing Installations Ltd,1030,Housing Repairs Account,Contractors,5158
http://statistics.data.gov.uk/id/local-authority/47UD,Redditch Borough Council,11/01/2013,177035,543,"1,850.55",Superior Plumbing Installations Ltd,1030,Housing Repairs Account,Contractors,5158
http://statistics.data.gov.uk/id/local-authority/47UD,Redditch Borough Council,11/01/2013,177036,544,"1,417.10",Superior Plumbing Installations Ltd,1030,Housing Repairs Account,Contractors,5158
http://statistics.data.gov.uk/id/local-authority/47UD,Redditch Borough Council,11/01/2013,177037,539,"1,599.92",Superior Plumbing Installations Ltd,1030,Housing Repairs Account,Contractors,5158
http://statistics.data.gov.uk/id/local-authority/47UD,Redditch Borough Council,11/01/2013,177038,540,"1,049.10",Superior Plumbing Installations Ltd,1030,Housing Repairs Account,Contractors,5158
http://statistics.data.gov.uk/id/local-authority/47UD,Redditch Borough Council,11/01/2013,177039,536,"1,681.97",Superior Plumbing Installations Ltd,1030,Housing Repairs Account,Contractors,5158
http://statistics.data.gov.uk/id/local-authority/47UD,Redditch Borough Council,11/01/2013,177040,537,"1,217.60",Superior Plumbing Installations Ltd,1030,Housing Repairs Account,Contractors,5158
http://statistics.data.gov.uk/id/local-authority/47UD,Redditch Borough Council,18/01/2013,177251,545,"1,746.89",Superior Plumbing Installations Ltd,1030,Housing Repairs Account,Contractors,5158
http://statistics.data.gov.uk/id/local-authority/47UD,Redditch Borough Council,18/01/2013,177258,546,"2,203.41",Superior Plumbing Installations Ltd,1030,Housing Repairs Account,Contractors,5158
http://statistics.data.gov.uk/id/local-authority/47UD,Redditch Borough Council,18/01/2013,177260,547,"1,562.05",Superior Plumbing Installations Ltd,1030,Housing Repairs Account,Contractors,5158
http://statistics.data.gov.uk/id/local-authority/47UD,Redditch Borough Council,18/01/2013,177261,548,"1,520.26",Superior Plumbing Installations Ltd,1030,Housing Repairs Account,Contractors,5158
http://statistics.data.gov.uk/id/local-authority/47UD,Redditch Borough Council,18/01/2013,177262,549,"1,046.55",Superior Plumbing Installations Ltd,1030,Housing Repairs Account,Contractors,5158
http://statistics.data.gov.uk/id/local-authority/47UD,Redditch Borough Council,18/01/2013,177466,VAL023321 8,"101,859.43",Superior Plumbing Installations Ltd,1030,Rbc Balance Sheet,Contract Payments,8131
http://statistics.data.gov.uk/id/local-authority/47UD,Redditch Borough Council,25/01/2013,177748,553,"2,372.43",Superior Plumbing Installations Ltd,1030,Housing Repairs Account,Contractors,5158
http://statistics.data.gov.uk/id/local-authority/47UD,Redditch Borough Council,25/01/2013,177749,552,"1,386.34",Superior Plumbing Installations Ltd,1030,Housing Repairs Account,Contractors,5158
http://statistics.data.gov.uk/id/local-authority/47UD,Redditch Borough Council,25/01/2013,177750,551,"1,064.76",Superior Plumbing Installations Ltd,1030,Housing Repairs Account,Contractors,5158
http://statistics.data.gov.uk/id/local-authority/47UD,Redditch Borough Council,25/01/2013,177751,550,"1,156.55",Superior Plumbing Installations Ltd,1030,Housing Repairs Account,Contractors,5158
http://statistics.data.gov.uk/id/local-authority/47UD,Redditch Borough Council,25/01/2013,177811,PI029692,"3,879.77",Superior Plumbing Installations Ltd,1030,Housing Repairs Account,Contractors,5158
http://statistics.data.gov.uk/id/local-authority/47UD,Redditch Borough Council,25/01/2013,177814,P598 CERT 3,"171,046.40",Superior Plumbing Installations Ltd,1030,Rbc Balance Sheet,Contract Payments,8131
http://statistics.data.gov.uk/id/local-authority/47UD,Redditch Borough Council,11/01/2013,175689,91774522,275.00,Service Point Uk Accounts,1047,Executive Director Lec,External Printing,4302
http://statistics.data.gov.uk/id/local-authority/47UD,Redditch Borough Council,11/01/2013,175689,91774522,190.00,Service Point Uk Accounts,1047,Executive Director Lec,Publicity & Promotion,4700
http://statistics.data.gov.uk/id/local-authority/47UD,Redditch Borough Council,18/01/2013,177527,OP/1303699,469.20,Prolog Print Media,1056,Exec. Director Fin. & Resource,External Printing,4302
http://statistics.data.gov.uk/id/local-authority/47UD,Redditch Borough Council,11/01/2013,176399,/417686,513.72,Dulux Decorator Centres,1082,Crossgate Stocks,Stock Account (Cedar),1201
http://statistics.data.gov.uk/id/local-authority/47UD,Redditch Borough Council,11/01/2013,176614,/454524,436.00,Dulux Decorator Centres,1082,Crossgate Stocks,Stock Account (Cedar),1201
http://statistics.data.gov.uk/id/local-authority/47UD,Redditch Borough Council,18/01/2013,177227,/466783,420.92,Dulux Decorator Centres,1082,Crossgate Stocks,Stock Account (Cedar),1201
http://statistics.data.gov.uk/id/local-authority/47UD,Redditch Borough Council,04/01/2013,176700,17622,578.00,Plato Catering Hire,1113,Executive Director Lec,Operational Equip- Purchase,4150
http://statistics.data.gov.uk/id/local-authority/47UD,Redditch Borough Council,04/01/2013,176739,REG SERVICES,"50,330.00",Bromsgrove District Council,1114,Exec. Director Prrh,Wett Shared Service Cost,5013
http://statistics.data.gov.uk/id/local-authority/47UD,Redditch Borough Council,18/01/2013,176899,8135402,"1,286.71",Bromsgrove District Council,1114,Exec. Director Prrh,Software Licences,4501
http://statistics.data.gov.uk/id/local-authority/47UD,Redditch Borough Council,11/01/2013,176749,170468,250.88,Chris Tallis Farm Machinery Ltd,1187,Crossgate Stocks,Stock Account (Cedar),1201
http://statistics.data.gov.uk/id/local-authority/47UD,Redditch Borough Council,11/01/2013,176749,170468,259.47,Chris Tallis Farm Machinery Ltd,1187,Executive Director Lec,Materials (Veh),3700
http://statistics.data.gov.uk/id/local-authority/47UD,Redditch Borough Council,04/01/2013,174785,M/RB013405,340.01,Civica Uk Limited,1233,Exec. Director Fin. & Resource,Software Licences,4501
http://statistics.data.gov.uk/id/local-authority/47UD,Redditch Borough Council,04/01/2013,174785,M/RB013405,340.01,Civica Uk Limited,1233,Exec. Director Fin. & Resource,Software Licences,4501
http://statistics.data.gov.uk/id/local-authority/47UD,Redditch Borough Council,04/01/2013,174785,M/RB013405,340.02,Civica Uk Limited,1233,Exec. Director Fin. & Resource,Software Licences,4501
http://statistics.data.gov.uk/id/local-authority/47UD,Redditch Borough Council,04/01/2013,174785,M/RB013405,340.02,Civica Uk Limited,1233,Exec. Director Fin. & Resource,Software Licences,4501
http://statistics.data.gov.uk/id/local-authority/47UD,Redditch Borough Council,04/01/2013,171147,3179,"2,940.00",Sutcliffe Play South West,1234,Executive Director Lec,General Repairs,3100
http://statistics.data.gov.uk/id/local-authority/47UD,Redditch Borough Council,04/01/2013,175595,3267,"1,098.36",Sutcliffe Play South West,1234,Executive Director Lec,General Repairs,3100
http://statistics.data.gov.uk/id/local-authority/47UD,Redditch Borough Council,04/01/2013,176067,3275,721.00,Sutcliffe Play South West,1234,Executive Director Lec,General Repairs,3100
http://statistics.data.gov.uk/id/local-authority/47UD,Redditch Borough Council,04/01/2013,174774,4526,830.00,Capitol Mobility Services Ltd,125,Executive Director Lec,Operation Equip -Rep & Maint,4152
http://statistics.data.gov.uk/id/local-authority/47UD,Redditch Borough Council,18/01/2013,177212,IR84012363,857.68,Buxtons Ltd,138,Executive Director Lec,Protective Clothing,4250
http://statistics.data.gov.uk/id/local-authority/47UD,Redditch Borough Council,25/01/2013,177423,3238,"1,800.00",Reeves Tree Surgeons,1410,Rbc Balance Sheet,Contract Payments,8131
http://statistics.data.gov.uk/id/local-authority/47UD,Redditch Borough Council,18/01/2013,176929,8004,"2,365.00",Vernon Print & Design,1455,Executive Director Lec,External Printing,4302
http://statistics.data.gov.uk/id/local-authority/47UD,Redditch Borough Council,11/01/2013,176632,35016142,0.00,Bristol Street Motors,147,Executive Director Lec,Materials (Veh),3700
http://statistics.data.gov.uk/id/local-authority/47UD,Redditch Borough Council,11/01/2013,176632,35016142,"3,952.65",Bristol Street Motors,147,Executive Director Lec,Materials (Veh),3700
http://statistics.data.gov.uk/id/local-authority/47UD,Redditch Borough Council,18/01/2013,176878,VP63913270Q0290,"9,187.38",British Telecommunications Plc,153,Chief Executive,Telephone Rental,4451
http://statistics.data.gov.uk/id/local-authority/47UD,Redditch Borough Council,04/01/2013,176087,SIN021860,864.00,Ccr,1536,Executive Director Lec,Recreational Equip - Purchase,4100
http://statistics.data.gov.uk/id/local-authority/47UD,Redditch Borough Council,18/01/2013,176602,36760,"1,086.60",Pja Electrics,1556,Executive Director Lec,Contractors,5158
http://statistics.data.gov.uk/id/local-authority/47UD,Redditch Borough Council,11/01/2013,177007,36782,422.40,Pja Electrics,1556,Rbc Balance Sheet,Contract Payments,8131
http://statistics.data.gov.uk/id/local-authority/47UD,Redditch Borough Council,25/01/2013,177813,36827,718.08,Pja Electrics,1556,Rbc Balance Sheet,Contract Payments,8131
http://statistics.data.gov.uk/id/local-authority/47UD,Redditch Borough Council,04/01/2013,176729,123255,894.33,Bristow  & Sutor,157,Vat Control Account,Vat Input Tax Adjustments,2994
http://statistics.data.gov.uk/id/local-authority/47UD,Redditch Borough Council,11/01/2013,176985,123700,694.91,Bristow  & Sutor,157,Vat Control Account,Vat Input Tax Adjustments,2994
http://statistics.data.gov.uk/id/local-authority/47UD,Redditch Borough Council,11/01/2013,176998,B5998,"1,750.00",Magnet Solution Ltd,1596,Exec. Director Fin. & Resource,Software Licences,4501
http://statistics.data.gov.uk/id/local-authority/47UD,Redditch Borough Council,11/01/2013,176998,B5998,"1,750.00",Magnet Solution Ltd,1596,Exec. Director Fin. & Resource,Software Licences,4501
http://statistics.data.gov.uk/id/local-authority/47UD,Redditch Borough Council,25/01/2013,177845,220TD,"1,600.00",Talking Drums,1608,Surestart Project,Project Work,4733
http://statistics.data.gov.uk/id/local-authority/47UD,Redditch Borough Council,18/01/2013,176978,88017,730.69,Red Forge Ltd,1650,Executive Director Lec,Materials (Veh),3700
http://statistics.data.gov.uk/id/local-authority/47UD,Redditch Borough Council,25/01/2013,173056,70552449,"6,064.00",Rentokil Hygiene,1670,Housing Revenue Account,Contract Cleaning,3600
http://statistics.data.gov.uk/id/local-authority/47UD,Redditch Borough Council,04/01/2013,176064,4306,"1,004.00",Elc Contractors Ltd,184,Rbc Balance Sheet,Contract Payments,8131
http://statistics.data.gov.uk/id/local-authority/47UD,Redditch Borough Council,04/01/2013,174795,000709,"1,350.00",Associated Transport Tuition,1869,Exec. Director Prrh,Training,3043
http://statistics.data.gov.uk/id/local-authority/47UD,Redditch Borough Council,18/01/2013,176596,LGUKJCT2,"1,722.40",N Power Limited,1919,Executive Director Lec,Electricity,3300
http://statistics.data.gov.uk/id/local-authority/47UD,Redditch Borough Council,04/01/2013,174472,2203013968,"2,065.00",Worcestershire County Council,195,Rbc Balance Sheet,Engineers Salaries,8210
http://statistics.data.gov.uk/id/local-authority/47UD,Redditch Borough Council,25/01/2013,176939,2203014215,532.13,Worcestershire County Council,195,Executive Director Lec,Consultants Fees,4351
http://statistics.data.gov.uk/id/local-authority/47UD,Redditch Borough Council,11/01/2013,177010,2205001796,"1,800.00",Worcestershire County Council,195,Executive Director Lec,Contractors,5158
http://statistics.data.gov.uk/id/local-authority/47UD,Redditch Borough Council,25/01/2013,177847,2450015840,"1,228.75",Worcestershire County Council,195,Exec. Director Fin. & Resource,Hire Of Premises,3351
http://statistics.data.gov.uk/id/local-authority/47UD,Redditch Borough Council,18/01/2013,175667,0987,700.00,E & J Contractors Ltd,201,Executive Director Lec,Recreational Equip -Reps/Maint,4102
http://statistics.data.gov.uk/id/local-authority/47UD,Redditch Borough Council,18/01/2013,176634,0995,895.88,E & J Contractors Ltd,201,Housing Repairs Account,Contractors,5158
http://statistics.data.gov.uk/id/local-authority/47UD,Redditch Borough Council,18/01/2013,176635,0996,768.00,E & J Contractors Ltd,201,Housing Repairs Account,Drainage,3201
http://statistics.data.gov.uk/id/local-authority/47UD,Redditch Borough Council,18/01/2013,176870,1003,995.62,E & J Contractors Ltd,201,Housing Repairs Account,Drainage,3201
http://statistics.data.gov.uk/id/local-authority/47UD,Redditch Borough Council,18/01/2013,176871,1004,779.00,E & J Contractors Ltd,201,Housing Repairs Account,Drainage,3201
http://statistics.data.gov.uk/id/local-authority/47UD,Redditch Borough Council,18/01/2013,176872,1005,618.80,E & J Contractors Ltd,201,Housing Repairs Account,Drainage,3201
http://statistics.data.gov.uk/id/local-authority/47UD,Redditch Borough Council,10/01/2013,177054,17 LANDOR RD,"125,000.00",Kerwoods Solicitors,2020,Rbc Balance Sheet,Building - Purchase,8102
http://statistics.data.gov.uk/id/local-authority/47UD,Redditch Borough Council,11/01/2013,177030,HT1022,429.00,Holly Trees Day Nursery,2187,Surestart Project,Contract Cleaning,3600
http://statistics.data.gov.uk/id/local-authority/47UD,Redditch Borough Council,11/01/2013,177030,HT1022,858.00,Holly Trees Day Nursery,2187,Surestart Project,Contract Cleaning,3600
http://statistics.data.gov.uk/id/local-authority/47UD,Redditch Borough Council,11/01/2013,177015,8040009283,"6,375.00",Worcester City Council,2238,Exec. Director Prrh,Project Work,4733
http://statistics.data.gov.uk/id/local-authority/47UD,Redditch Borough Council,25/01/2013,177762,M/ME096/02,759.20,Federation Of Burial Cremation Author.  Fbca,2276,Executive Director Lec,Subscriptions,4650
http://statistics.data.gov.uk/id/local-authority/47UD,Redditch Borough Council,25/01/2013,177836,SLEEPING BEAUTY,"1,104.00",Diversity,238,Executive Director Lec,Professional Fees,4352
http://statistics.data.gov.uk/id/local-authority/47UD,Redditch Borough Council,11/01/2013,176396,305879571,0.00,Eurocell Building Plastics Ltd,24,Crossgate Stocks,Stock Account (Cedar),1201
http://statistics.data.gov.uk/id/local-authority/47UD,Redditch Borough Council,11/01/2013,176396,305879571,0.00,Eurocell Building Plastics Ltd,24,Crossgate Stocks,Stock Account (Cedar),1201
http://statistics.data.gov.uk/id/local-authority/47UD,Redditch Borough Council,11/01/2013,176396,305879571,0.00,Eurocell Building Plastics Ltd,24,Crossgate Stocks,Stock Account (Cedar),1201
http://statistics.data.gov.uk/id/local-authority/47UD,Redditch Borough Council,11/01/2013,176396,305879571,0.00,Eurocell Building Plastics Ltd,24,Crossgate Stocks,Stock Account (Cedar),1201
http://statistics.data.gov.uk/id/local-authority/47UD,Redditch Borough Council,11/01/2013,176396,305879571,0.00,Eurocell Building Plastics Ltd,24,Crossgate Stocks,Stock Account (Cedar),1201
http://statistics.data.gov.uk/id/local-authority/47UD,Redditch Borough Council,11/01/2013,176396,305879571,0.00,Eurocell Building Plastics Ltd,24,Crossgate Stocks,Stock Account (Cedar),1201
http://statistics.data.gov.uk/id/local-authority/47UD,Redditch Borough Council,11/01/2013,176396,305879571,0.00,Eurocell Building Plastics Ltd,24,Crossgate Stocks,Stock Account (Cedar),1201
http://statistics.data.gov.uk/id/local-authority/47UD,Redditch Borough Council,11/01/2013,176396,305879571,579.40,Eurocell Building Plastics Ltd,24,Crossgate Stocks,Stock Account (Cedar),1201
http://statistics.data.gov.uk/id/local-authority/47UD,Redditch Borough Council,11/01/2013,176396,305879571,0.00,Eurocell Building Plastics Ltd,24,Crossgate Stocks,Stock Account (Cedar),1201
http://statistics.data.gov.uk/id/local-authority/47UD,Redditch Borough Council,11/01/2013,176397,305879687,"1,935.65",Eurocell Building Plastics Ltd,24,Crossgate Stocks,Stock Account (Cedar),1201
http://statistics.data.gov.uk/id/local-authority/47UD,Redditch Borough Council,11/01/2013,176397,305879687,-0.14,Eurocell Building Plastics Ltd,24,Crossgate Stocks,Stock Variance,1203
http://statistics.data.gov.uk/id/local-authority/47UD,Redditch Borough Council,11/01/2013,176397,305879687,0.00,Eurocell Building Plastics Ltd,24,Crossgate Stocks,Stock Account (Cedar),1201
http://statistics.data.gov.uk/id/local-authority/47UD,Redditch Borough Council,18/01/2013,177519,7310028031,598.58,Severn Trent Water,2411,Housing Revenue Account,Water Charges,3450
http://statistics.data.gov.uk/id/local-authority/47UD,Redditch Borough Council,18/01/2013,177530,337 005 8531,4.45,Severn Trent Water,2411,Exec. Director Fin. & Resource,Water Charges,3450
http://statistics.data.gov.uk/id/local-authority/47UD,Redditch Borough Council,18/01/2013,177530,337 005 8531,0.00,Severn Trent Water,2411,Executive Director Lec,Water Charges,3450
http://statistics.data.gov.uk/id/local-authority/47UD,Redditch Borough Council,18/01/2013,177530,337 005 8531,49.59,Severn Trent Water,2411,Exec. Director Fin. & Resource,Water Charges,3450
http://statistics.data.gov.uk/id/local-authority/47UD,Redditch Borough Council,18/01/2013,177530,337 005 8531,119.08,Severn Trent Water,2411,Executive Director Lec,Water Charges,3450
http://statistics.data.gov.uk/id/local-authority/47UD,Redditch Borough Council,18/01/2013,177530,337 005 8531,39.70,Severn Trent Water,2411,Executive Director Lec,Water Charges,3450
http://statistics.data.gov.uk/id/local-authority/47UD,Redditch Borough Council,18/01/2013,177530,337 005 8531,93.11,Severn Trent Water,2411,Exec. Director Fin. & Resource,Water Charges,3450
http://statistics.data.gov.uk/id/local-authority/47UD,Redditch Borough Council,18/01/2013,177530,337 005 8531,"1,829.72",Severn Trent Water,2411,Executive Director Lec,Water Charges,3450
http://statistics.data.gov.uk/id/local-authority/47UD,Redditch Borough Council,18/01/2013,177530,337 005 8531,49.59,Severn Trent Water,2411,Exec. Director Prrh,Water Charges,3450
http://statistics.data.gov.uk/id/local-authority/47UD,Redditch Borough Council,18/01/2013,177530,337 005 8531,69.45,Severn Trent Water,2411,Exec. Director Fin. & Resource,Water Charges,3450
http://statistics.data.gov.uk/id/local-authority/47UD,Redditch Borough Council,18/01/2013,177530,337 005 8531,222.70,Severn Trent Water,2411,Executive Director Lec,Water Charges,3450
http://statistics.data.gov.uk/id/local-authority/47UD,Redditch Borough Council,18/01/2013,177530,337 005 8531,145.08,Severn Trent Water,2411,Executive Director Lec,Water Charges,3450
http://statistics.data.gov.uk/id/local-authority/47UD,Redditch Borough Council,18/01/2013,177530,337 005 8531,823.01,Severn Trent Water,2411,Exec. Director Fin. & Resource,Water Charges,3450
http://statistics.data.gov.uk/id/local-authority/47UD,Redditch Borough Council,18/01/2013,177530,337 005 8531,81.56,Severn Trent Water,2411,Executive Director Lec,Water Charges,3450
http://statistics.data.gov.uk/id/local-authority/47UD,Redditch Borough Council,11/01/2013,176642,218530,"1,332.51",Dennis Eagle Ltd,250,Executive Director Lec,Materials (Veh),3700
http://statistics.data.gov.uk/id/local-authority/47UD,Redditch Borough Council,04/01/2013,176088,10032,"1,680.47",Burcot Lane Nurseries Ltd,2511,Executive Director Lec,Materials,4170
http://statistics.data.gov.uk/id/local-authority/47UD,Redditch Borough Council,25/01/2013,177818,75,41.67,Bridge End Ltd,2529,Crossgate Stocks,Stock Account (Cedar),1201
http://statistics.data.gov.uk/id/local-authority/47UD,Redditch Borough Council,25/01/2013,177818,75,30.00,Bridge End Ltd,2529,Executive Director Lec,Mechanics Recharge,3702
http://statistics.data.gov.uk/id/local-authority/47UD,Redditch Borough Council,25/01/2013,177818,75,257.38,Bridge End Ltd,2529,Executive Director Lec,Mechanics Recharge,3702
http://statistics.data.gov.uk/id/local-authority/47UD,Redditch Borough Council,25/01/2013,177818,75,958.73,Bridge End Ltd,2529,Executive Director Lec,Mechanics Recharge,3702
http://statistics.data.gov.uk/id/local-authority/47UD,Redditch Borough Council,25/01/2013,177818,75,42.75,Bridge End Ltd,2529,Housing Repairs Account,Fuel,3750
http://statistics.data.gov.uk/id/local-authority/47UD,Redditch Borough Council,25/01/2013,177819,76,302.31,Bridge End Ltd,2529,Executive Director Lec,Mechanics Recharge,3702
http://statistics.data.gov.uk/id/local-authority/47UD,Redditch Borough Council,25/01/2013,177819,76,322.46,Bridge End Ltd,2529,Executive Director Lec,Mechanics Recharge,3702
http://statistics.data.gov.uk/id/local-authority/47UD,Redditch Borough Council,25/01/2013,177819,76,6.55,Bridge End Ltd,2529,Housing Repairs Account,Fuel,3750
http://statistics.data.gov.uk/id/local-authority/47UD,Redditch Borough Council,29/01/2013,178085,3RD QTR 2012/13,"168,161.57",Department For Communities & Local Government,2591,Rbc Balance Sheet,Useable Capital Receipts Hra,2407
http://statistics.data.gov.uk/id/local-authority/47UD,Redditch Borough Council,04/01/2013,174343,6620,"2,061.29",M & D Carpentry & Bldng Contractor Ltd,265,Rbc Balance Sheet,Contract Payments,8131
http://statistics.data.gov.uk/id/local-authority/47UD,Redditch Borough Council,04/01/2013,174347,6625,"1,080.14",M & D Carpentry & Bldng Contractor Ltd,265,Rbc Balance Sheet,Contract Payments,8131
http://statistics.data.gov.uk/id/local-authority/47UD,Redditch Borough Council,04/01/2013,174348,6626,"2,795.40",M & D Carpentry & Bldng Contractor Ltd,265,Rbc Balance Sheet,Contract Payments,8131
http://statistics.data.gov.uk/id/local-authority/47UD,Redditch Borough Council,18/01/2013,174827,6656,528.54,M & D Carpentry & Bldng Contractor Ltd,265,Rbc Balance Sheet,Contract Payments,8131
http://statistics.data.gov.uk/id/local-authority/47UD,Redditch Borough Council,18/01/2013,174834,6654,"1,025.17",M & D Carpentry & Bldng Contractor Ltd,265,Housing Repairs Account,Contractors,5158
http://statistics.data.gov.uk/id/local-authority/47UD,Redditch Borough Council,18/01/2013,174835,6655,"1,170.29",M & D Carpentry & Bldng Contractor Ltd,265,Rbc Balance Sheet,Contract Payments,8131
http://statistics.data.gov.uk/id/local-authority/47UD,Redditch Borough Council,18/01/2013,174836,6658,"1,068.88",M & D Carpentry & Bldng Contractor Ltd,265,Housing Repairs Account,Contractors,5158
http://statistics.data.gov.uk/id/local-authority/47UD,Redditch Borough Council,18/01/2013,174837,6659,"1,458.43",M & D Carpentry & Bldng Contractor Ltd,265,Rbc Balance Sheet,Contract Payments,8131
http://statistics.data.gov.uk/id/local-authority/47UD,Redditch Borough Council,11/01/2013,176102,6701,"5,038.81",M & D Carpentry & Bldng Contractor Ltd,265,Rbc Balance Sheet,Contract Payments,8131
http://statistics.data.gov.uk/id/local-authority/47UD,Redditch Borough Council,11/01/2013,176111,6691,"4,154.99",M & D Carpentry & Bldng Contractor Ltd,265,Rbc Balance Sheet,Contract Payments,8131
http://statistics.data.gov.uk/id/local-authority/47UD,Redditch Borough Council,18/01/2013,176424,6705,"1,074.29",M & D Carpentry & Bldng Contractor Ltd,265,Rbc Balance Sheet,Contract Payments,8131
http://statistics.data.gov.uk/id/local-authority/47UD,Redditch Borough Council,18/01/2013,176428,6706,497.25,M & D Carpentry & Bldng Contractor Ltd,265,Housing Repairs Account,Contractors,5158
http://statistics.data.gov.uk/id/local-authority/47UD,Redditch Borough Council,11/01/2013,176430,6707,"3,879.42",M & D Carpentry & Bldng Contractor Ltd,265,Rbc Balance Sheet,Contract Payments,8131
http://statistics.data.gov.uk/id/local-authority/47UD,Redditch Borough Council,11/01/2013,176431,6708,"3,410.07",M & D Carpentry & Bldng Contractor Ltd,265,Rbc Balance Sheet,Contract Payments,8131
http://statistics.data.gov.uk/id/local-authority/47UD,Redditch Borough Council,11/01/2013,176433,6709,"3,636.87",M & D Carpentry & Bldng Contractor Ltd,265,Rbc Balance Sheet,Contract Payments,8131
http://statistics.data.gov.uk/id/local-authority/47UD,Redditch Borough Council,11/01/2013,176434,6710,"3,980.22",M & D Carpentry & Bldng Contractor Ltd,265,Rbc Balance Sheet,Contract Payments,8131
http://statistics.data.gov.uk/id/local-authority/47UD,Redditch Borough Council,11/01/2013,176436,6711,"3,652.62",M & D Carpentry & Bldng Contractor Ltd,265,Rbc Balance Sheet,Contract Payments,8131
http://statistics.data.gov.uk/id/local-authority/47UD,Redditch Borough Council,11/01/2013,176437,6712,"3,999.65",M & D Carpentry & Bldng Contractor Ltd,265,Rbc Balance Sheet,Contract Payments,8131
http://statistics.data.gov.uk/id/local-authority/47UD,Redditch Borough Council,11/01/2013,176438,6713,"3,722.45",M & D Carpentry & Bldng Contractor Ltd,265,Rbc Balance Sheet,Contract Payments,8131
http://statistics.data.gov.uk/id/local-authority/47UD,Redditch Borough Council,11/01/2013,176503,6727,928.79,M & D Carpentry & Bldng Contractor Ltd,265,Rbc Balance Sheet,Contract Payments,8131
http://statistics.data.gov.uk/id/local-authority/47UD,Redditch Borough Council,11/01/2013,176505,6726,928.79,M & D Carpentry & Bldng Contractor Ltd,265,Rbc Balance Sheet,Contract Payments,8131
http://statistics.data.gov.uk/id/local-authority/47UD,Redditch Borough Council,11/01/2013,176506,6725,928.79,M & D Carpentry & Bldng Contractor Ltd,265,Rbc Balance Sheet,Contract Payments,8131
http://statistics.data.gov.uk/id/local-authority/47UD,Redditch Borough Council,18/01/2013,176508,6724,928.79,M & D Carpentry & Bldng Contractor Ltd,265,Rbc Balance Sheet,Contract Payments,8131
http://statistics.data.gov.uk/id/local-authority/47UD,Redditch Borough Council,11/01/2013,176630,6728,928.79,M & D Carpentry & Bldng Contractor Ltd,265,Rbc Balance Sheet,Contract Payments,8131
http://statistics.data.gov.uk/id/local-authority/47UD,Redditch Borough Council,25/01/2013,176932,6748,"4,154.99",M & D Carpentry & Bldng Contractor Ltd,265,Rbc Balance Sheet,Contract Payments,8131
http://statistics.data.gov.uk/id/local-authority/47UD,Redditch Borough Council,25/01/2013,177292,6773,928.79,M & D Carpentry & Bldng Contractor Ltd,265,Rbc Balance Sheet,Contract Payments,8131
http://statistics.data.gov.uk/id/local-authority/47UD,Redditch Borough Council,25/01/2013,177293,6772,928.79,M & D Carpentry & Bldng Contractor Ltd,265,Rbc Balance Sheet,Contract Payments,8131
http://statistics.data.gov.uk/id/local-authority/47UD,Redditch Borough Council,25/01/2013,177294,6771,928.79,M & D Carpentry & Bldng Contractor Ltd,265,Rbc Balance Sheet,Contract Payments,8131
http://statistics.data.gov.uk/id/local-authority/47UD,Redditch Borough Council,25/01/2013,177295,6770,928.79,M & D Carpentry & Bldng Contractor Ltd,265,Rbc Balance Sheet,Contract Payments,8131
http://statistics.data.gov.uk/id/local-authority/47UD,Redditch Borough Council,25/01/2013,177296,6769,"3,527.75",M & D Carpentry & Bldng Contractor Ltd,265,Rbc Balance Sheet,Contract Payments,8131
http://statistics.data.gov.uk/id/local-authority/47UD,Redditch Borough Council,25/01/2013,177297,6768,928.79,M & D Carpentry & Bldng Contractor Ltd,265,Rbc Balance Sheet,Contract Payments,8131
http://statistics.data.gov.uk/id/local-authority/47UD,Redditch Borough Council,25/01/2013,177298,6767,928.79,M & D Carpentry & Bldng Contractor Ltd,265,Rbc Balance Sheet,Contract Payments,8131
http://statistics.data.gov.uk/id/local-authority/47UD,Redditch Borough Council,25/01/2013,177299,6766,928.79,M & D Carpentry & Bldng Contractor Ltd,265,Rbc Balance Sheet,Contract Payments,8131
http://statistics.data.gov.uk/id/local-authority/47UD,Redditch Borough Council,25/01/2013,177300,6765,928.79,M & D Carpentry & Bldng Contractor Ltd,265,Rbc Balance Sheet,Contract Payments,8131
http://statistics.data.gov.uk/id/local-authority/47UD,Redditch Borough Council,25/01/2013,177301,6764,928.79,M & D Carpentry & Bldng Contractor Ltd,265,Rbc Balance Sheet,Contract Payments,8131
http://statistics.data.gov.uk/id/local-authority/47UD,Redditch Borough Council,25/01/2013,177852,DFG/4426,"1,493.00",Liftability Limited,272,Rbc Balance Sheet,Disabled Facilities Grant,8701
http://statistics.data.gov.uk/id/local-authority/47UD,Redditch Borough Council,18/01/2013,177430,6235/C,420.00,W N C T Enterprises Ltd,2873,Executive Director Lec,Routine Grounds Maintenance,3200
http://statistics.data.gov.uk/id/local-authority/47UD,Redditch Borough Council,11/01/2013,176035,29481,"31,336.81",Robert Bruce Construction  Limited,2950,Rbc Balance Sheet,Contract Payments,8131
http://statistics.data.gov.uk/id/local-authority/47UD,Redditch Borough Council,25/01/2013,177396,29505,"8,837.48",Robert Bruce Construction  Limited,2950,Rbc Balance Sheet,Contract Payments,8131
http://statistics.data.gov.uk/id/local-authority/47UD,Redditch Borough Council,18/01/2013,176487,58300,"1,410.00",Smartwater Technology Ltd,2957,Executive Director Lec,Project Work,4733
http://statistics.data.gov.uk/id/local-authority/47UD,Redditch Borough Council,11/01/2013,176495,23334,678.10,Janitorial Direct Ltd,302,Crossgate Stocks,Stock Account (Cedar),1201
http://statistics.data.gov.uk/id/local-authority/47UD,Redditch Borough Council,18/01/2013,176966,232801,"1,091.69",Jack Hobbs Plumbing & Heating Suppl,306,Crossgate Stocks,Stock Account (Cedar),1201
http://statistics.data.gov.uk/id/local-authority/47UD,Redditch Borough Council,04/01/2013,176033,58787691/1,441.36,British Gas Business,3102,Exec. Director Fin. & Resource,Electricity,3300
http://statistics.data.gov.uk/id/local-authority/47UD,Redditch Borough Council,25/01/2013,177757,59321843/1,470.18,British Gas Business,3102,Exec. Director Fin. & Resource,Electricity,3300
http://statistics.data.gov.uk/id/local-authority/47UD,Redditch Borough Council,25/01/2013,177858,DFG/9549,-289.50,Iso Property Developments,3154,Executive Director Lec,Administration Fee,6364
http://statistics.data.gov.uk/id/local-authority/47UD,Redditch Borough Council,25/01/2013,177858,DFG/9549,"3,184.50",Iso Property Developments,3154,Rbc Balance Sheet,Disabled Facilities Grant,8701
http://statistics.data.gov.uk/id/local-authority/47UD,Redditch Borough Council,11/01/2013,174884,139/082979,882.36,Magnet Limited,3175,Housing Repairs Account,Materials,4170
http://statistics.data.gov.uk/id/local-authority/47UD,Redditch Borough Council,11/01/2013,176624,SI083072,455.14,Smurfit Kappa Recycling,328,Executive Director Lec,Contractors,5158
http://statistics.data.gov.uk/id/local-authority/47UD,Redditch Borough Council,11/01/2013,176973,A9980086298,51.71,Ats Euromaster Ltd,3306,Executive Director Lec,Tyres,3753
http://statistics.data.gov.uk/id/local-authority/47UD,Redditch Borough Council,11/01/2013,176973,A9980086298,484.12,Ats Euromaster Ltd,3306,Executive Director Lec,Tyres,3753
http://statistics.data.gov.uk/id/local-authority/47UD,Redditch Borough Council,11/01/2013,176973,A9980086298,69.16,Ats Euromaster Ltd,3306,Executive Director Lec,Tyres,3753
http://statistics.data.gov.uk/id/local-authority/47UD,Redditch Borough Council,11/01/2013,176973,A9980086298,118.00,Ats Euromaster Ltd,3306,Executive Director Lec,Tyres,3753
http://statistics.data.gov.uk/id/local-authority/47UD,Redditch Borough Council,11/01/2013,176973,A9980086298,130.70,Ats Euromaster Ltd,3306,Housing Repairs Account,Tyres,3753
http://statistics.data.gov.uk/id/local-authority/47UD,Redditch Borough Council,11/01/2013,176973,A9980086298,60.85,Ats Euromaster Ltd,3306,Housing Repairs Account,Tyres,3753
http://statistics.data.gov.uk/id/local-authority/47UD,Redditch Borough Council,11/01/2013,176973,A9980086298,76.63,Ats Euromaster Ltd,3306,Executive Director Lec,Tyres,3753
http://statistics.data.gov.uk/id/local-authority/47UD,Redditch Borough Council,11/01/2013,176973,A9980086298,90.42,Ats Euromaster Ltd,3306,Executive Director Lec,Tyres,3753
http://statistics.data.gov.uk/id/local-authority/47UD,Redditch Borough Council,11/01/2013,176973,A9980086298,252.68,Ats Euromaster Ltd,3306,Executive Director Lec,Tyres,3753
http://statistics.data.gov.uk/id/local-authority/47UD,Redditch Borough Council,11/01/2013,176973,A9980086298,62.00,Ats Euromaster Ltd,3306,Executive Director Lec,Tyres,3753
http://statistics.data.gov.uk/id/local-authority/47UD,Redditch Borough Council,11/01/2013,176973,A9980086298,208.36,Ats Euromaster Ltd,3306,Executive Director Lec,Tyres,3753
http://statistics.data.gov.uk/id/local-authority/47UD,Redditch Borough Council,11/01/2013,176973,A9980086298,24.99,Ats Euromaster Ltd,3306,Executive Director Lec,Tyres,3753
http://statistics.data.gov.uk/id/local-authority/47UD,Redditch Borough Council,11/01/2013,176973,A9980086298,0.62,Ats Euromaster Ltd,3306,Executive Director Lec,Tyres,3753
http://statistics.data.gov.uk/id/local-authority/47UD,Redditch Borough Council,11/01/2013,176973,A9980086298,0.62,Ats Euromaster Ltd,3306,Executive Director Lec,Tyres,3753
http://statistics.data.gov.uk/id/local-authority/47UD,Redditch Borough Council,11/01/2013,176973,A9980086298,8.06,Ats Euromaster Ltd,3306,Executive Director Lec,Tyres,3753
http://statistics.data.gov.uk/id/local-authority/47UD,Redditch Borough Council,11/01/2013,176973,A9980086298,8.06,Ats Euromaster Ltd,3306,Executive Director Lec,Tyres,3753
http://statistics.data.gov.uk/id/local-authority/47UD,Redditch Borough Council,11/01/2013,176973,A9980086298,31.00,Ats Euromaster Ltd,3306,Executive Director Lec,Tyres,3753
http://statistics.data.gov.uk/id/local-authority/47UD,Redditch Borough Council,11/01/2013,176973,A9980086298,11.60,Ats Euromaster Ltd,3306,Executive Director Lec,Tyres,3753
http://statistics.data.gov.uk/id/local-authority/47UD,Redditch Borough Council,11/01/2013,176973,A9980086298,2.32,Ats Euromaster Ltd,3306,Executive Director Lec,Tyres,3753
http://statistics.data.gov.uk/id/local-authority/47UD,Redditch Borough Council,11/01/2013,176973,A9980086298,1.16,Ats Euromaster Ltd,3306,Executive Director Lec,Tyres,3753
http://statistics.data.gov.uk/id/local-authority/47UD,Redditch Borough Council,11/01/2013,176973,A9980086298,3.48,Ats Euromaster Ltd,3306,Housing Repairs Account,Tyres,3753
http://statistics.data.gov.uk/id/local-authority/47UD,Redditch Borough Council,11/01/2013,176973,A9980086298,88.88,Ats Euromaster Ltd,3306,Executive Director Lec,Tyres,3753
http://statistics.data.gov.uk/id/local-authority/47UD,Redditch Borough Council,11/01/2013,176973,A9980086298,7.44,Ats Euromaster Ltd,3306,Executive Director Lec,Tyres,3753
http://statistics.data.gov.uk/id/local-authority/47UD,Redditch Borough Council,11/01/2013,176973,A9980086298,6.20,Ats Euromaster Ltd,3306,Executive Director Lec,Tyres,3753
http://statistics.data.gov.uk/id/local-authority/47UD,Redditch Borough Council,11/01/2013,176973,A9980086298,6.20,Ats Euromaster Ltd,3306,Executive Director Lec,Tyres,3753
http://statistics.data.gov.uk/id/local-authority/47UD,Redditch Borough Council,11/01/2013,176973,A9980086298,20.46,Ats Euromaster Ltd,3306,Executive Director Lec,Tyres,3753
http://statistics.data.gov.uk/id/local-authority/47UD,Redditch Borough Council,11/01/2013,176973,A9980086298,3.72,Ats Euromaster Ltd,3306,Executive Director Lec,Tyres,3753
http://statistics.data.gov.uk/id/local-authority/47UD,Redditch Borough Council,11/01/2013,176973,A9980086298,5.58,Ats Euromaster Ltd,3306,Housing Repairs Account,Tyres,3753
http://statistics.data.gov.uk/id/local-authority/47UD,Redditch Borough Council,11/01/2013,176973,A9980086298,16.14,Ats Euromaster Ltd,3306,Executive Director Lec,Tyres,3753
http://statistics.data.gov.uk/id/local-authority/47UD,Redditch Borough Council,11/01/2013,176973,A9980086298,42.16,Ats Euromaster Ltd,3306,Executive Director Lec,Tyres,3753
http://statistics.data.gov.uk/id/local-authority/47UD,Redditch Borough Council,11/01/2013,176973,A9980086298,59.16,Ats Euromaster Ltd,3306,Executive Director Lec,Tyres,3753
http://statistics.data.gov.uk/id/local-authority/47UD,Redditch Borough Council,11/01/2013,176973,A9980086298,14.76,Ats Euromaster Ltd,3306,Executive Director Lec,Tyres,3753
http://statistics.data.gov.uk/id/local-authority/47UD,Redditch Borough Council,11/01/2013,176973,A9980086298,17.40,Ats Euromaster Ltd,3306,Executive Director Lec,Tyres,3753
http://statistics.data.gov.uk/id/local-authority/47UD,Redditch Borough Council,11/01/2013,176973,A9980086298,47.85,Ats Euromaster Ltd,3306,Executive Director Lec,Tyres,3753
http://statistics.data.gov.uk/id/local-authority/47UD,Redditch Borough Council,11/01/2013,176973,A9980086298,8.70,Ats Euromaster Ltd,3306,Executive Director Lec,Tyres,3753
http://statistics.data.gov.uk/id/local-authority/47UD,Redditch Borough Council,11/01/2013,176973,A9980086298,13.05,Ats Euromaster Ltd,3306,Housing Repairs Account,Tyres,3753
http://statistics.data.gov.uk/id/local-authority/47UD,Redditch Borough Council,18/01/2013,175452,0000154569,640.28,Sheldon Industrial Holding Ltd,334,Executive Director Lec,Contract Cleaning,3600
http://statistics.data.gov.uk/id/local-authority/47UD,Redditch Borough Council,18/01/2013,176559,0000154675,590.89,Sheldon Industrial Holding Ltd,334,Executive Director Lec,Contract Cleaning,3600
http://statistics.data.gov.uk/id/local-authority/47UD,Redditch Borough Council,11/01/2013,176651,51474,569.00,Force 3 Security Limited,3658,Exec. Director Fin. & Resource,Security Costs,3500
http://statistics.data.gov.uk/id/local-authority/47UD,Redditch Borough Council,11/01/2013,176407,0201/00121441,453.60,Harlow Timber,3667,Housing Repairs Account,Materials,4170
http://statistics.data.gov.uk/id/local-authority/47UD,Redditch Borough Council,11/01/2013,176407,0201/00121441,0.00,Harlow Timber,3667,Housing Repairs Account,Materials,4170
http://statistics.data.gov.uk/id/local-authority/47UD,Redditch Borough Council,11/01/2013,176562,00230,952.00,Rainbow Cleaning,369,Housing Repairs Account,Contractors,5158
http://statistics.data.gov.uk/id/local-authority/47UD,Redditch Borough Council,18/01/2013,176954,00231,"1,088.00",Rainbow Cleaning,369,Housing Repairs Account,Contractors,5158
http://statistics.data.gov.uk/id/local-authority/47UD,Redditch Borough Council,18/01/2013,177304,1000/801,"1,600.00",R S T S Landscaping Limited,370,Housing Repairs Account,Materials,4170
http://statistics.data.gov.uk/id/local-authority/47UD,Redditch Borough Council,18/01/2013,177306,1000/802,500.00,R S T S Landscaping Limited,370,Housing Repairs Account,Materials,4170
http://statistics.data.gov.uk/id/local-authority/47UD,Redditch Borough Council,25/01/2013,177328,1000/809,606.00,R S T S Landscaping Limited,370,Rbc Balance Sheet,Contract Payments,8131
http://statistics.data.gov.uk/id/local-authority/47UD,Redditch Borough Council,25/01/2013,177333,1000/808,641.60,R S T S Landscaping Limited,370,Rbc Balance Sheet,Contract Payments,8131
http://statistics.data.gov.uk/id/local-authority/47UD,Redditch Borough Council,25/01/2013,177334,1000/807,900.00,R S T S Landscaping Limited,370,Rbc Balance Sheet,Contract Payments,8131
http://statistics.data.gov.uk/id/local-authority/47UD,Redditch Borough Council,25/01/2013,177326,4216,"3,500.00",R T C Safety Surfaces Ltd,371,Executive Director Lec,Recreational Equip -Reps/Maint,4102
http://statistics.data.gov.uk/id/local-authority/47UD,Redditch Borough Council,11/01/2013,177008,330572,757.29,R D Rogers Butchers,373,Housing Revenue Account,Catering Provisions(Vat Exempt,4200
http://statistics.data.gov.uk/id/local-authority/47UD,Redditch Borough Council,18/01/2013,176979,8311,557.50,Practical Care Products Ltd,391,Housing Repairs Account,Materials,4170
http://statistics.data.gov.uk/id/local-authority/47UD,Redditch Borough Council,18/01/2013,177229,8320,590.50,Practical Care Products Ltd,391,Housing Repairs Account,Materials,4170
http://statistics.data.gov.uk/id/local-authority/47UD,Redditch Borough Council,25/01/2013,177857,LTL/4458,"1,752.00",Wood & Haynes,404,Rbc Balance Sheet,Lifetime Grant,8704
http://statistics.data.gov.uk/id/local-authority/47UD,Redditch Borough Council,04/01/2013,176104,18058,940.00,Where Next Association,418,Executive Director Lec,Materials,4170
http://statistics.data.gov.uk/id/local-authority/47UD,Redditch Borough Council,04/01/2013,174448,1088,"5,525.00",West Midlands Councils,422,Exec. Director Fin. & Resource,Agency Staff,3020
http://statistics.data.gov.uk/id/local-authority/47UD,Redditch Borough Council,04/01/2013,175449,6343,"1,711.67",Pfb Self Drive,441,Executive Director Lec,Contract Hire,3850
http://statistics.data.gov.uk/id/local-authority/47UD,Redditch Borough Council,18/01/2013,177069,6622,"1,711.67",Pfb Self Drive,441,Executive Director Lec,Contract Hire,3850
http://statistics.data.gov.uk/id/local-authority/47UD,Redditch Borough Council,25/01/2013,177838,585964,24.57,Baby Bottles Wholesale Limited,4430,Executive Director Lec,Catering Provisions(Vat Exempt,4200
http://statistics.data.gov.uk/id/local-authority/47UD,Redditch Borough Council,25/01/2013,177838,585964,40.89,Baby Bottles Wholesale Limited,4430,Executive Director Lec,Catering Provisions(Vat Exempt,4200
http://statistics.data.gov.uk/id/local-authority/47UD,Redditch Borough Council,25/01/2013,177838,585964,83.80,Baby Bottles Wholesale Limited,4430,Executive Director Lec,Catering Provisions(Vat Exempt,4200
http://statistics.data.gov.uk/id/local-authority/47UD,Redditch Borough Council,25/01/2013,177838,585964,40.09,Baby Bottles Wholesale Limited,4430,Executive Director Lec,Catering Provisions(Vat Exempt,4200
http://statistics.data.gov.uk/id/local-authority/47UD,Redditch Borough Council,25/01/2013,177838,585964,40.89,Baby Bottles Wholesale Limited,4430,Executive Director Lec,Catering Provisions(Vat Exempt,4200
http://statistics.data.gov.uk/id/local-authority/47UD,Redditch Borough Council,25/01/2013,177838,585964,68.15,Baby Bottles Wholesale Limited,4430,Executive Director Lec,Catering Provisions(Vat Exempt,4200
http://statistics.data.gov.uk/id/local-authority/47UD,Redditch Borough Council,25/01/2013,177838,585964,15.82,Baby Bottles Wholesale Limited,4430,Executive Director Lec,Catering Provisions(Vat Exempt,4200
http://statistics.data.gov.uk/id/local-authority/47UD,Redditch Borough Council,25/01/2013,177838,585964,23.73,Baby Bottles Wholesale Limited,4430,Executive Director Lec,Catering Provisions(Vat Exempt,4200
http://statistics.data.gov.uk/id/local-authority/47UD,Redditch Borough Council,25/01/2013,177838,585964,23.10,Baby Bottles Wholesale Limited,4430,Executive Director Lec,Catering Provisions(Vat Exempt,4200
http://statistics.data.gov.uk/id/local-authority/47UD,Redditch Borough Council,25/01/2013,177838,585964,92.05,Baby Bottles Wholesale Limited,4430,Executive Director Lec,Catering Provisions(Vat Exempt,4200
http://statistics.data.gov.uk/id/local-authority/47UD,Redditch Borough Council,25/01/2013,177838,585964,13.55,Baby Bottles Wholesale Limited,4430,Executive Director Lec,Catering Provisions(Vat Exempt,4200
http://statistics.data.gov.uk/id/local-authority/47UD,Redditch Borough Council,25/01/2013,177838,585964,1.51,Baby Bottles Wholesale Limited,4430,Executive Director Lec,Catering Provisions(Vat Exempt,4200
http://statistics.data.gov.uk/id/local-authority/47UD,Redditch Borough Council,11/01/2013,176450,3905,967.08,Cutting Edge Machinery Ltd,4437,Executive Director Lec,Contractors,3701
http://statistics.data.gov.uk/id/local-authority/47UD,Redditch Borough Council,04/01/2013,176663,21382313,18.69,3663 First For Foodservice,4449,Executive Director Lec,Catering Provisions(Vat Exempt,4200
http://statistics.data.gov.uk/id/local-authority/47UD,Redditch Borough Council,04/01/2013,176663,21382313,265.50,3663 First For Foodservice,4449,Executive Director Lec,Catering Provisions(Vat Exempt,4200
http://statistics.data.gov.uk/id/local-authority/47UD,Redditch Borough Council,04/01/2013,176663,21382313,243.00,3663 First For Foodservice,4449,Executive Director Lec,Catering Provisions(Vat Exempt,4200
http://statistics.data.gov.uk/id/local-authority/47UD,Redditch Borough Council,04/01/2013,176663,21382313,33.75,3663 First For Foodservice,4449,Executive Director Lec,Catering Provisions(Vat Exempt,4200
http://statistics.data.gov.uk/id/local-authority/47UD,Redditch Borough Council,04/01/2013,176663,21382313,78.00,3663 First For Foodservice,4449,Executive Director Lec,Catering Provisions(Vat Exempt,4200
http://statistics.data.gov.uk/id/local-authority/47UD,Redditch Borough Council,25/01/2013,177343,25000145422012,466.00,Valuation Office Agency,449,Exec. Director Fin. & Resource,Professional Fees,4352
http://statistics.data.gov.uk/id/local-authority/47UD,Redditch Borough Council,04/01/2013,176705,90111406,777.03,Univar Limited,451,Executive Director Lec,Materials,4170
http://statistics.data.gov.uk/id/local-authority/47UD,Redditch Borough Council,18/01/2013,177450,1005,750.00,First Response,4577,Surestart Project,Project Work,4733
http://statistics.data.gov.uk/id/local-authority/47UD,Redditch Borough Council,11/01/2013,176970,MRI1957443,309.38,Lex Autolease Ltd,4578,Housing Repairs Account,Operating Leases,3851
http://statistics.data.gov.uk/id/local-authority/47UD,Redditch Borough Council,11/01/2013,176970,MRI1957443,309.38,Lex Autolease Ltd,4578,Housing Repairs Account,Operating Leases,3851
http://statistics.data.gov.uk/id/local-authority/47UD,Redditch Borough Council,11/01/2013,176970,MRI1957443,309.38,Lex Autolease Ltd,4578,Housing Repairs Account,Operating Leases,3851
http://statistics.data.gov.uk/id/local-authority/47UD,Redditch Borough Council,11/01/2013,176970,MRI1957443,309.38,Lex Autolease Ltd,4578,Housing Repairs Account,Operating Leases,3851
http://statistics.data.gov.uk/id/local-authority/47UD,Redditch Borough Council,11/01/2013,176970,MRI1957443,309.38,Lex Autolease Ltd,4578,Housing Repairs Account,Operating Leases,3851
http://statistics.data.gov.uk/id/local-authority/47UD,Redditch Borough Council,11/01/2013,176970,MRI1957443,309.38,Lex Autolease Ltd,4578,Housing Repairs Account,Operating Leases,3851
http://statistics.data.gov.uk/id/local-authority/47UD,Redditch Borough Council,11/01/2013,176970,MRI1957443,309.38,Lex Autolease Ltd,4578,Housing Repairs Account,Operating Leases,3851
http://statistics.data.gov.uk/id/local-authority/47UD,Redditch Borough Council,11/01/2013,176970,MRI1957443,309.38,Lex Autolease Ltd,4578,Housing Repairs Account,Operating Leases,3851
http://statistics.data.gov.uk/id/local-authority/47UD,Redditch Borough Council,11/01/2013,176970,MRI1957443,309.38,Lex Autolease Ltd,4578,Housing Repairs Account,Operating Leases,3851
http://statistics.data.gov.uk/id/local-authority/47UD,Redditch Borough Council,11/01/2013,176970,MRI1957443,309.38,Lex Autolease Ltd,4578,Housing Repairs Account,Operating Leases,3851
http://statistics.data.gov.uk/id/local-authority/47UD,Redditch Borough Council,11/01/2013,176970,MRI1957443,309.38,Lex Autolease Ltd,4578,Housing Repairs Account,Operating Leases,3851
http://statistics.data.gov.uk/id/local-authority/47UD,Redditch Borough Council,11/01/2013,176970,MRI1957443,309.38,Lex Autolease Ltd,4578,Housing Repairs Account,Operating Leases,3851
http://statistics.data.gov.uk/id/local-authority/47UD,Redditch Borough Council,11/01/2013,176970,MRI1957443,309.38,Lex Autolease Ltd,4578,Housing Repairs Account,Operating Leases,3851
http://statistics.data.gov.uk/id/local-authority/47UD,Redditch Borough Council,11/01/2013,176970,MRI1957443,309.38,Lex Autolease Ltd,4578,Housing Repairs Account,Operating Leases,3851
http://statistics.data.gov.uk/id/local-authority/47UD,Redditch Borough Council,11/01/2013,176970,MRI1957443,309.38,Lex Autolease Ltd,4578,Housing Repairs Account,Operating Leases,3851
http://statistics.data.gov.uk/id/local-authority/47UD,Redditch Borough Council,11/01/2013,176970,MRI1957443,384.81,Lex Autolease Ltd,4578,Executive Director Lec,Operating Leases,3851
http://statistics.data.gov.uk/id/local-authority/47UD,Redditch Borough Council,11/01/2013,176970,MRI1957443,384.81,Lex Autolease Ltd,4578,Executive Director Lec,Operating Leases,3851
http://statistics.data.gov.uk/id/local-authority/47UD,Redditch Borough Council,11/01/2013,176970,MRI1957443,384.81,Lex Autolease Ltd,4578,Executive Director Lec,Operating Leases,3851
http://statistics.data.gov.uk/id/local-authority/47UD,Redditch Borough Council,11/01/2013,176970,MRI1957443,384.81,Lex Autolease Ltd,4578,Executive Director Lec,Operating Leases,3851
http://statistics.data.gov.uk/id/local-authority/47UD,Redditch Borough Council,11/01/2013,176970,MRI1957443,382.34,Lex Autolease Ltd,4578,Housing Repairs Account,Operating Leases,3851
http://statistics.data.gov.uk/id/local-authority/47UD,Redditch Borough Council,11/01/2013,176970,MRI1957443,382.34,Lex Autolease Ltd,4578,Housing Repairs Account,Operating Leases,3851
http://statistics.data.gov.uk/id/local-authority/47UD,Redditch Borough Council,11/01/2013,176970,MRI1957443,382.34,Lex Autolease Ltd,4578,Executive Director Lec,Operating Leases,3851
http://statistics.data.gov.uk/id/local-authority/47UD,Redditch Borough Council,11/01/2013,176970,MRI1957443,382.34,Lex Autolease Ltd,4578,Executive Director Lec,Operating Leases,3851
http://statistics.data.gov.uk/id/local-authority/47UD,Redditch Borough Council,11/01/2013,176970,MRI1957443,382.34,Lex Autolease Ltd,4578,Executive Director Lec,Operating Leases,3851
http://statistics.data.gov.uk/id/local-authority/47UD,Redditch Borough Council,11/01/2013,176970,MRI1957443,382.34,Lex Autolease Ltd,4578,Executive Director Lec,Operating Leases,3851
http://statistics.data.gov.uk/id/local-authority/47UD,Redditch Borough Council,11/01/2013,176970,MRI1957443,237.63,Lex Autolease Ltd,4578,Executive Director Lec,Operating Leases,3851
http://statistics.data.gov.uk/id/local-authority/47UD,Redditch Borough Council,11/01/2013,176970,MRI1957443,384.81,Lex Autolease Ltd,4578,Executive Director Lec,Operating Leases,3851
http://statistics.data.gov.uk/id/local-authority/47UD,Redditch Borough Council,11/01/2013,176970,MRI1957443,270.88,Lex Autolease Ltd,4578,Executive Director Lec,Operating Leases,3851
http://statistics.data.gov.uk/id/local-authority/47UD,Redditch Borough Council,11/01/2013,176970,MRI1957443,319.19,Lex Autolease Ltd,4578,Executive Director Lec,Operating Leases,3851
http://statistics.data.gov.uk/id/local-authority/47UD,Redditch Borough Council,11/01/2013,176970,MRI1957443,243.09,Lex Autolease Ltd,4578,Housing Repairs Account,Operating Leases,3851
http://statistics.data.gov.uk/id/local-authority/47UD,Redditch Borough Council,11/01/2013,176970,MRI1957443,249.29,Lex Autolease Ltd,4578,Executive Director Lec,Operating Leases,3851
http://statistics.data.gov.uk/id/local-authority/47UD,Redditch Borough Council,11/01/2013,176970,MRI1957443,243.09,Lex Autolease Ltd,4578,Housing Repairs Account,Operating Leases,3851
http://statistics.data.gov.uk/id/local-authority/47UD,Redditch Borough Council,11/01/2013,176970,MRI1957443,243.09,Lex Autolease Ltd,4578,Housing Repairs Account,Operating Leases,3851
http://statistics.data.gov.uk/id/local-authority/47UD,Redditch Borough Council,11/01/2013,176970,MRI1957443,243.09,Lex Autolease Ltd,4578,Executive Director Lec,Operating Leases,3851
http://statistics.data.gov.uk/id/local-authority/47UD,Redditch Borough Council,11/01/2013,176970,MRI1957443,243.09,Lex Autolease Ltd,4578,Housing Repairs Account,Operating Leases,3851
http://statistics.data.gov.uk/id/local-authority/47UD,Redditch Borough Council,11/01/2013,176970,MRI1957443,400.99,Lex Autolease Ltd,4578,Housing Repairs Account,Operating Leases,3851
http://statistics.data.gov.uk/id/local-authority/47UD,Redditch Borough Council,11/01/2013,176970,MRI1957443,489.02,Lex Autolease Ltd,4578,Executive Director Lec,Operating Leases,3851
http://statistics.data.gov.uk/id/local-authority/47UD,Redditch Borough Council,11/01/2013,176970,MRI1957443,261.00,Lex Autolease Ltd,4578,Executive Director Lec,Operating Leases,3851
http://statistics.data.gov.uk/id/local-authority/47UD,Redditch Borough Council,11/01/2013,176970,MRI1957443,243.09,Lex Autolease Ltd,4578,Housing Repairs Account,Operating Leases,3851
http://statistics.data.gov.uk/id/local-authority/47UD,Redditch Borough Council,11/01/2013,176970,MRI1957443,261.00,Lex Autolease Ltd,4578,Housing Repairs Account,Operating Leases,3851
http://statistics.data.gov.uk/id/local-authority/47UD,Redditch Borough Council,11/01/2013,176970,MRI1957443,170.45,Lex Autolease Ltd,4578,Executive Director Lec,Operating Leases,3851
http://statistics.data.gov.uk/id/local-authority/47UD,Redditch Borough Council,11/01/2013,176970,MRI1957443,170.45,Lex Autolease Ltd,4578,Executive Director Lec,Operating Leases,3851
http://statistics.data.gov.uk/id/local-authority/47UD,Redditch Borough Council,11/01/2013,176970,MRI1957443,170.45,Lex Autolease Ltd,4578,Executive Director Lec,Operating Leases,3851
http://statistics.data.gov.uk/id/local-authority/47UD,Redditch Borough Council,11/01/2013,176970,MRI1957443,353.00,Lex Autolease Ltd,4578,Executive Director Lec,Operating Leases,3851
http://statistics.data.gov.uk/id/local-authority/47UD,Redditch Borough Council,11/01/2013,176970,MRI1957443,353.00,Lex Autolease Ltd,4578,Executive Director Lec,Operating Leases,3851
http://statistics.data.gov.uk/id/local-authority/47UD,Redditch Borough Council,11/01/2013,176970,MRI1957443,240.62,Lex Autolease Ltd,4578,Executive Director Lec,Operating Leases,3851
http://statistics.data.gov.uk/id/local-authority/47UD,Redditch Borough Council,11/01/2013,176970,MRI1957443,353.00,Lex Autolease Ltd,4578,Executive Director Lec,Operating Leases,3851
http://statistics.data.gov.uk/id/local-authority/47UD,Redditch Borough Council,11/01/2013,176970,MRI1957443,353.00,Lex Autolease Ltd,4578,Executive Director Lec,Operating Leases,3851
http://statistics.data.gov.uk/id/local-authority/47UD,Redditch Borough Council,11/01/2013,176970,MRI1957443,240.62,Lex Autolease Ltd,4578,Exec. Director Fin. & Resource,Operating Leases,3851
http://statistics.data.gov.uk/id/local-authority/47UD,Redditch Borough Council,11/01/2013,176970,MRI1957443,353.00,Lex Autolease Ltd,4578,Executive Director Lec,Operating Leases,3851
http://statistics.data.gov.uk/id/local-authority/47UD,Redditch Borough Council,11/01/2013,176970,MRI1957443,243.09,Lex Autolease Ltd,4578,Housing Repairs Account,Operating Leases,3851
http://statistics.data.gov.uk/id/local-authority/47UD,Redditch Borough Council,11/01/2013,176970,MRI1957443,514.95,Lex Autolease Ltd,4578,Housing Repairs Account,Operating Leases,3851
http://statistics.data.gov.uk/id/local-authority/47UD,Redditch Borough Council,11/01/2013,176970,MRI1957443,461.92,Lex Autolease Ltd,4578,Executive Director Lec,Operating Leases,3851
http://statistics.data.gov.uk/id/local-authority/47UD,Redditch Borough Council,11/01/2013,176970,MRI1957443,461.92,Lex Autolease Ltd,4578,Executive Director Lec,Operating Leases,3851
http://statistics.data.gov.uk/id/local-authority/47UD,Redditch Borough Council,11/01/2013,176970,MRI1957443,461.92,Lex Autolease Ltd,4578,Executive Director Lec,Operating Leases,3851
http://statistics.data.gov.uk/id/local-authority/47UD,Redditch Borough Council,11/01/2013,176970,MRI1957443,461.92,Lex Autolease Ltd,4578,Executive Director Lec,Operating Leases,3851
http://statistics.data.gov.uk/id/local-authority/47UD,Redditch Borough Council,18/01/2013,176489,31N/10212594,749.40,Tunstall  Limited,459,Executive Director Lec,Operational Equip- Purchase,4150
http://statistics.data.gov.uk/id/local-authority/47UD,Redditch Borough Council,25/01/2013,177398,10213844,610.00,Tunstall  Limited,459,Executive Director Lec,Operational Equip- Purchase,4150
http://statistics.data.gov.uk/id/local-authority/47UD,Redditch Borough Council,11/01/2013,176520,3310741,"34,958.97",Danwood Group Limited,4599,Chief Executive,Operating Leases,4153
http://statistics.data.gov.uk/id/local-authority/47UD,Redditch Borough Council,18/01/2013,173912,2114,"3,733.78",Kelbec Civils Ltd,4794,Rbc Balance Sheet,Contract Payments,8131
http://statistics.data.gov.uk/id/local-authority/47UD,Redditch Borough Council,11/01/2013,174793,2124,"14,341.18",Kelbec Civils Ltd,4794,Rbc Balance Sheet,Direct Payments,8132
http://statistics.data.gov.uk/id/local-authority/47UD,Redditch Borough Council,18/01/2013,174885,2133,"2,732.34",Kelbec Civils Ltd,4794,Housing Revenue Account,Paved Area Maintenance,3202
http://statistics.data.gov.uk/id/local-authority/47UD,Redditch Borough Council,04/01/2013,174887,2132,"3,067.78",Kelbec Civils Ltd,4794,Rbc Balance Sheet,Direct Payments,8132
http://statistics.data.gov.uk/id/local-authority/47UD,Redditch Borough Council,18/01/2013,174889,2129,"3,967.19",Kelbec Civils Ltd,4794,Executive Director Lec,Contractors,5158
http://statistics.data.gov.uk/id/local-authority/47UD,Redditch Borough Council,18/01/2013,174891,2128,"10,221.35",Kelbec Civils Ltd,4794,Rbc Balance Sheet,Direct Payments,8132
http://statistics.data.gov.uk/id/local-authority/47UD,Redditch Borough Council,11/01/2013,175669,2158,"3,382.61",Kelbec Civils Ltd,4794,Housing Repairs Account,Drainage,3201
http://statistics.data.gov.uk/id/local-authority/47UD,Redditch Borough Council,25/01/2013,175676,2159,491.11,Kelbec Civils Ltd,4794,Housing Repairs Account,Drainage,3201
http://statistics.data.gov.uk/id/local-authority/47UD,Redditch Borough Council,25/01/2013,177276,2188,"1,698.86",Kelbec Civils Ltd,4794,Housing Repairs Account,Drainage,3201
http://statistics.data.gov.uk/id/local-authority/47UD,Redditch Borough Council,28/01/2013,177990,73782,620.00,Hm Courts & Tribunals Service (D D Payments),4811,Housing Revenue Account,Legal Fees,4350
http://statistics.data.gov.uk/id/local-authority/47UD,Redditch Borough Council,28/01/2013,177991,77222,810.00,Hm Courts & Tribunals Service (D D Payments),4811,Housing Revenue Account,Legal Fees,4350
http://statistics.data.gov.uk/id/local-authority/47UD,Redditch Borough Council,28/01/2013,177992,76054,930.00,Hm Courts & Tribunals Service (D D Payments),4811,Housing Revenue Account,Legal Fees,4350
http://statistics.data.gov.uk/id/local-authority/47UD,Redditch Borough Council,04/01/2013,176735,OP/0012107,515.00,Theatrical Management Association,486,Executive Director Lec,Subscriptions,4650
http://statistics.data.gov.uk/id/local-authority/47UD,Redditch Borough Council,11/01/2013,176894,271212-01,500.00,Mrs Lynda Maus,4930,Executive Director Lec,Professional Fees,4352
http://statistics.data.gov.uk/id/local-authority/47UD,Redditch Borough Council,18/01/2013,176882,13329,872.49,The Glasshouse,495,Housing Repairs Account,Contractors,5158
http://statistics.data.gov.uk/id/local-authority/47UD,Redditch Borough Council,18/01/2013,176882,13329,159.47,The Glasshouse,495,Housing Repairs Account,Repairs In House Team,3107
http://statistics.data.gov.uk/id/local-authority/47UD,Redditch Borough Council,04/01/2013,176030,RD/18151,433.58,Nationwide Crash Repair Centre Ltd,4974,Executive Director Lec,Contract Hire,3850
http://statistics.data.gov.uk/id/local-authority/47UD,Redditch Borough Council,18/01/2013,171607,0000503213,"4,502.27",Openview Security Solutions Limited,5020,Executive Director Lec,Operation Equip -Rep & Maint,4152
http://statistics.data.gov.uk/id/local-authority/47UD,Redditch Borough Council,18/01/2013,171609,0000503200,"8,203.09",Openview Security Solutions Limited,5020,Executive Director Lec,Operation Equip -Rep & Maint,4152
http://statistics.data.gov.uk/id/local-authority/47UD,Redditch Borough Council,18/01/2013,171610,0000503199,"8,203.09",Openview Security Solutions Limited,5020,Executive Director Lec,Operation Equip -Rep & Maint,4152
http://statistics.data.gov.uk/id/local-authority/47UD,Redditch Borough Council,18/01/2013,173153,0000505128,"6,474.57",Openview Security Solutions Limited,5020,Executive Director Lec,Operational Equip- Purchase,4150
http://statistics.data.gov.uk/id/local-authority/47UD,Redditch Borough Council,18/01/2013,173153,0000505128,"6,230.79",Openview Security Solutions Limited,5020,Executive Director Lec,Operational Equip- Purchase,4150
http://statistics.data.gov.uk/id/local-authority/47UD,Redditch Borough Council,18/01/2013,173154,0000505129,"6,474.57",Openview Security Solutions Limited,5020,Executive Director Lec,Operation Equip -Rep & Maint,4152
http://statistics.data.gov.uk/id/local-authority/47UD,Redditch Borough Council,18/01/2013,173154,0000505129,"6,230.79",Openview Security Solutions Limited,5020,Executive Director Lec,Operation Equip -Rep & Maint,4152
http://statistics.data.gov.uk/id/local-authority/47UD,Redditch Borough Council,18/01/2013,173155,0000001069,"-8,203.09",Openview Security Solutions Limited,5020,Executive Director Lec,Operation Equip -Rep & Maint,4152
http://statistics.data.gov.uk/id/local-authority/47UD,Redditch Borough Council,18/01/2013,173156,0000001068,"-8,203.09",Openview Security Solutions Limited,5020,Executive Director Lec,Operation Equip -Rep & Maint,4152
http://statistics.data.gov.uk/id/local-authority/47UD,Redditch Borough Council,18/01/2013,176948,0000509735,"6,474.57",Openview Security Solutions Limited,5020,Executive Director Lec,Operation Equip -Rep & Maint,4152
http://statistics.data.gov.uk/id/local-authority/47UD,Redditch Borough Council,18/01/2013,176948,0000509735,"6,230.79",Openview Security Solutions Limited,5020,Executive Director Lec,Operation Equip -Rep & Maint,4152
http://statistics.data.gov.uk/id/local-authority/47UD,Redditch Borough Council,18/01/2013,177474,0000001066,"-4,502.27",Openview Security Solutions Limited,5020,Executive Director Lec,Operation Equip -Rep & Maint,4152
http://statistics.data.gov.uk/id/local-authority/47UD,Redditch Borough Council,25/01/2013,177809,47559,"2,864.62",Sos Group Services Ltd,5054,Housing Repairs Account,Drainage,3201
http://statistics.data.gov.uk/id/local-authority/47UD,Redditch Borough Council,04/01/2013,176662,93779,666.00,Telecare Services Association,508,Executive Director Lec,Subscriptions,4650
http://statistics.data.gov.uk/id/local-authority/47UD,Redditch Borough Council,04/01/2013,176662,93779,444.00,Telecare Services Association,508,Executive Director Lec,Subscriptions,4650
http://statistics.data.gov.uk/id/local-authority/47UD,Redditch Borough Council,11/01/2013,176869,602631,"25,507.08",Harvest Energy Limited,5136,Crossgate Stocks,Stock Account (Cedar),1201
http://statistics.data.gov.uk/id/local-authority/47UD,Redditch Borough Council,04/01/2013,175266,ICC221275/M,566.76,Indepth Managed Services,5139,Executive Director Lec,Contract Cleaning,3600
http://statistics.data.gov.uk/id/local-authority/47UD,Redditch Borough Council,11/01/2013,177009,SINV/00000263,"3,833.50",Festival Housing,5190,Executive Director Lec,Festival Housing Assoc,5014
http://statistics.data.gov.uk/id/local-authority/47UD,Redditch Borough Council,25/01/2013,177254,00000019,"8,485.83",Festival Housing,5190,Executive Director Lec,Festival Housing Assoc,5014
http://statistics.data.gov.uk/id/local-authority/47UD,Redditch Borough Council,25/01/2013,177476,SCCR/00000011,"-1,247.50",Festival Housing,5190,Executive Director Lec,Festival Housing Assoc,5014
http://statistics.data.gov.uk/id/local-authority/47UD,Redditch Borough Council,11/01/2013,177000,7615,550.42,Actifwear Ltd,5262,Executive Director Lec,Operational Equip- Purchase,4150
http://statistics.data.gov.uk/id/local-authority/47UD,Redditch Borough Council,04/01/2013,176664,BTBRED-241211,-163.26,Beyond The Barricade Ltd,5263,Executive Director Lec,Other Fees & Charges(Vatable),6302
http://statistics.data.gov.uk/id/local-authority/47UD,Redditch Borough Council,04/01/2013,176664,BTBRED-241211,"2,386.32",Beyond The Barricade Ltd,5263,Executive Director Lec,Professional Fees,4352
http://statistics.data.gov.uk/id/local-authority/47UD,Redditch Borough Council,04/01/2013,176664,BTBRED-241211,"2,000.00",Beyond The Barricade Ltd,5263,Executive Director Lec,Professional Fees,4352
http://statistics.data.gov.uk/id/local-authority/47UD,Redditch Borough Council,04/01/2013,176677,1810121,"1,187.00",Uk Event And Entertainment Services,5288,Executive Director Lec,Operational Equip- Purchase,4150
http://statistics.data.gov.uk/id/local-authority/47UD,Redditch Borough Council,04/01/2013,176673,0001,290.00,Samantha Bayles,5301,Executive Director Lec,Casual Staff,3022
http://statistics.data.gov.uk/id/local-authority/47UD,Redditch Borough Council,04/01/2013,176673,0001,310.00,Samantha Bayles,5301,Executive Director Lec,Casual Staff,3022
http://statistics.data.gov.uk/id/local-authority/47UD,Redditch Borough Council,11/01/2013,176623,6716521,"38,190.00",Grant Thornton Uk Llp,5364,Exec. Director Fin. & Resource,Audit Fees,4359
http://statistics.data.gov.uk/id/local-authority/47UD,Redditch Borough Council,25/01/2013,177726,6728609,"13,049.00",Grant Thornton Uk Llp,5364,Exec. Director Fin. & Resource,Audit Fees,4359
http://statistics.data.gov.uk/id/local-authority/47UD,Redditch Borough Council,04/01/2013,176747,IN4739,989.01,Matrix Scm Ltd,5367,Exec. Director Fin. & Resource,Agency Staff,3020
http://statistics.data.gov.uk/id/local-authority/47UD,Redditch Borough Council,04/01/2013,176747,IN4739,258.75,Matrix Scm Ltd,5367,Exec. Director Fin. & Resource,Agency Staff,3020
http://statistics.data.gov.uk/id/local-authority/47UD,Redditch Borough Council,04/01/2013,176747,IN4739,697.08,Matrix Scm Ltd,5367,Exec. Director Prrh,Agency Staff,3020
http://statistics.data.gov.uk/id/local-authority/47UD,Redditch Borough Council,04/01/2013,176747,IN4739,894.70,Matrix Scm Ltd,5367,Executive Director Lec,Agency Staff,3020
http://statistics.data.gov.uk/id/local-authority/47UD,Redditch Borough Council,04/01/2013,176747,IN4739,"2,488.46",Matrix Scm Ltd,5367,Executive Director Lec,Agency Staff,3020
http://statistics.data.gov.uk/id/local-authority/47UD,Redditch Borough Council,04/01/2013,176747,IN4739,628.08,Matrix Scm Ltd,5367,Executive Director Lec,Agency Staff,3020
http://statistics.data.gov.uk/id/local-authority/47UD,Redditch Borough Council,04/01/2013,176747,IN4739,"3,418.23",Matrix Scm Ltd,5367,Executive Director Lec,Agency Staff,3020
http://statistics.data.gov.uk/id/local-authority/47UD,Redditch Borough Council,04/01/2013,176747,IN4739,341.63,Matrix Scm Ltd,5367,Executive Director Lec,Agency Staff,3020
http://statistics.data.gov.uk/id/local-authority/47UD,Redditch Borough Council,04/01/2013,176747,IN4739,585.18,Matrix Scm Ltd,5367,Executive Director Lec,Agency Staff,3020
http://statistics.data.gov.uk/id/local-authority/47UD,Redditch Borough Council,04/01/2013,176747,IN4739,"1,702.74",Matrix Scm Ltd,5367,Housing Repairs Account,Agency Staff,3020
http://statistics.data.gov.uk/id/local-authority/47UD,Redditch Borough Council,04/01/2013,176747,IN4739,"1,185.86",Matrix Scm Ltd,5367,Housing Revenue Account,Agency Staff,3020
http://statistics.data.gov.uk/id/local-authority/47UD,Redditch Borough Council,04/01/2013,176747,IN4739,331.71,Matrix Scm Ltd,5367,Housing Revenue Account,Agency Staff,3020
http://statistics.data.gov.uk/id/local-authority/47UD,Redditch Borough Council,04/01/2013,176748,IN4800,396.75,Matrix Scm Ltd,5367,Exec. Director Fin. & Resource,Agency Staff,3020
http://statistics.data.gov.uk/id/local-authority/47UD,Redditch Borough Council,04/01/2013,176748,IN4800,362.25,Matrix Scm Ltd,5367,Exec. Director Fin. & Resource,Agency Staff,3020
http://statistics.data.gov.uk/id/local-authority/47UD,Redditch Borough Council,04/01/2013,176748,IN4800,697.08,Matrix Scm Ltd,5367,Exec. Director Prrh,Agency Staff,3020
http://statistics.data.gov.uk/id/local-authority/47UD,Redditch Borough Council,04/01/2013,176748,IN4800,447.35,Matrix Scm Ltd,5367,Executive Director Lec,Agency Staff,3020
http://statistics.data.gov.uk/id/local-authority/47UD,Redditch Borough Council,04/01/2013,176748,IN4800,321.16,Matrix Scm Ltd,5367,Executive Director Lec,Agency Staff,3020
http://statistics.data.gov.uk/id/local-authority/47UD,Redditch Borough Council,04/01/2013,176748,IN4800,"5,664.85",Matrix Scm Ltd,5367,Executive Director Lec,Agency Staff,3020
http://statistics.data.gov.uk/id/local-authority/47UD,Redditch Borough Council,04/01/2013,176748,IN4800,706.82,Matrix Scm Ltd,5367,Executive Director Lec,Agency Staff,3020
http://statistics.data.gov.uk/id/local-authority/47UD,Redditch Borough Council,04/01/2013,176748,IN4800,863.82,Matrix Scm Ltd,5367,Executive Director Lec,Agency Staff,3020
http://statistics.data.gov.uk/id/local-authority/47UD,Redditch Borough Council,04/01/2013,176748,IN4800,315.63,Matrix Scm Ltd,5367,Housing Repairs Account,Agency Staff,3020
http://statistics.data.gov.uk/id/local-authority/47UD,Redditch Borough Council,04/01/2013,176748,IN4800,738.20,Matrix Scm Ltd,5367,Housing Revenue Account,Agency Staff,3020
http://statistics.data.gov.uk/id/local-authority/47UD,Redditch Borough Council,04/01/2013,176748,IN4800,743.97,Matrix Scm Ltd,5367,Housing Revenue Account,Agency Staff,3020
http://statistics.data.gov.uk/id/local-authority/47UD,Redditch Borough Council,11/01/2013,176963,IN4853,644.02,Matrix Scm Ltd,5367,Exec. Director Fin. & Resource,Agency Staff,3020
http://statistics.data.gov.uk/id/local-authority/47UD,Redditch Borough Council,11/01/2013,176963,IN4853,74.75,Matrix Scm Ltd,5367,Exec. Director Fin. & Resource,Agency Staff,3020
http://statistics.data.gov.uk/id/local-authority/47UD,Redditch Borough Council,11/01/2013,176963,IN4853,292.02,Matrix Scm Ltd,5367,Exec. Director Prrh,Agency Staff,3020
http://statistics.data.gov.uk/id/local-authority/47UD,Redditch Borough Council,11/01/2013,176963,IN4853,"2,945.11",Matrix Scm Ltd,5367,Executive Director Lec,Agency Staff,3020
http://statistics.data.gov.uk/id/local-authority/47UD,Redditch Borough Council,11/01/2013,176963,IN4853,"2,309.39",Matrix Scm Ltd,5367,Housing Repairs Account,Agency Staff,3020
http://statistics.data.gov.uk/id/local-authority/47UD,Redditch Borough Council,11/01/2013,176963,IN4853,264.72,Matrix Scm Ltd,5367,Housing Revenue Account,Agency Staff,3020
http://statistics.data.gov.uk/id/local-authority/47UD,Redditch Borough Council,18/01/2013,177238,IN4912,255.88,Matrix Scm Ltd,5367,Exec. Director Fin. & Resource,Agency Staff,3020
http://statistics.data.gov.uk/id/local-authority/47UD,Redditch Borough Council,18/01/2013,177238,IN4912,607.59,Matrix Scm Ltd,5367,Exec. Director Prrh,Agency Staff,3020
http://statistics.data.gov.uk/id/local-authority/47UD,Redditch Borough Council,18/01/2013,177238,IN4912,760.60,Matrix Scm Ltd,5367,Executive Director Lec,Agency Staff,3020
http://statistics.data.gov.uk/id/local-authority/47UD,Redditch Borough Council,18/01/2013,177238,IN4912,377.58,Matrix Scm Ltd,5367,Executive Director Lec,Agency Staff,3020
http://statistics.data.gov.uk/id/local-authority/47UD,Redditch Borough Council,18/01/2013,177238,IN4912,"6,779.64",Matrix Scm Ltd,5367,Executive Director Lec,Agency Staff,3020
http://statistics.data.gov.uk/id/local-authority/47UD,Redditch Borough Council,18/01/2013,177238,IN4912,321.02,Matrix Scm Ltd,5367,Executive Director Lec,Agency Staff,3020
http://statistics.data.gov.uk/id/local-authority/47UD,Redditch Borough Council,18/01/2013,177238,IN4912,"1,789.26",Matrix Scm Ltd,5367,Executive Director Lec,Agency Staff,3020
http://statistics.data.gov.uk/id/local-authority/47UD,Redditch Borough Council,18/01/2013,177238,IN4912,"1,492.31",Matrix Scm Ltd,5367,Housing Repairs Account,Agency Staff,3020
http://statistics.data.gov.uk/id/local-authority/47UD,Redditch Borough Council,18/01/2013,177238,IN4912,704.66,Matrix Scm Ltd,5367,Housing Revenue Account,Agency Staff,3020
http://statistics.data.gov.uk/id/local-authority/47UD,Redditch Borough Council,18/01/2013,177238,IN4912,407.91,Matrix Scm Ltd,5367,Housing Revenue Account,Agency Staff,3020
http://statistics.data.gov.uk/id/local-authority/47UD,Redditch Borough Council,25/01/2013,177747,IN4974,425.50,Matrix Scm Ltd,5367,Exec. Director Fin. & Resource,Agency Staff,3020
http://statistics.data.gov.uk/id/local-authority/47UD,Redditch Borough Council,25/01/2013,177747,IN4974,661.25,Matrix Scm Ltd,5367,Exec. Director Fin. & Resource,Agency Staff,3020
http://statistics.data.gov.uk/id/local-authority/47UD,Redditch Borough Council,25/01/2013,177747,IN4974,555.78,Matrix Scm Ltd,5367,Exec. Director Prrh,Agency Staff,3020
http://statistics.data.gov.uk/id/local-authority/47UD,Redditch Borough Council,25/01/2013,177747,IN4974,"3,752.95",Matrix Scm Ltd,5367,Executive Director Lec,Agency Staff,3020
http://statistics.data.gov.uk/id/local-authority/47UD,Redditch Borough Council,25/01/2013,177747,IN4974,"2,452.02",Matrix Scm Ltd,5367,Housing Repairs Account,Agency Staff,3020
http://statistics.data.gov.uk/id/local-authority/47UD,Redditch Borough Council,25/01/2013,177747,IN4974,"1,107.48",Matrix Scm Ltd,5367,Housing Revenue Account,Agency Staff,3020
http://statistics.data.gov.uk/id/local-authority/47UD,Redditch Borough Council,25/01/2013,177747,IN4974,663.42,Matrix Scm Ltd,5367,Housing Revenue Account,Agency Staff,3020
http://statistics.data.gov.uk/id/local-authority/47UD,Redditch Borough Council,04/01/2013,176692,7035284,"8,927.06",Eon Uk Plc,5403,Rbc Balance Sheet,Contract Payments,8131
http://statistics.data.gov.uk/id/local-authority/47UD,Redditch Borough Council,18/01/2013,176936,238334,"2,823.00",Prism Medical Uk Westholme Division,5503,Rbc Balance Sheet,Contract Payments,8131
http://statistics.data.gov.uk/id/local-authority/47UD,Redditch Borough Council,18/01/2013,176938,5049,"1,950.00",Maid Marions,5543,Housing Revenue Account,Contract Cleaning,3600
http://statistics.data.gov.uk/id/local-authority/47UD,Redditch Borough Council,18/01/2013,176938,5049,877.50,Maid Marions,5543,Housing Revenue Account,Caretaking,3603
http://statistics.data.gov.uk/id/local-authority/47UD,Redditch Borough Council,18/01/2013,176938,5049,975.00,Maid Marions,5543,Housing Revenue Account,Contract Cleaning,3600
http://statistics.data.gov.uk/id/local-authority/47UD,Redditch Borough Council,04/01/2013,176038,SL01524571INV,519.20,Northgate Vehicle Hire Ltd,5573,Executive Director Lec,Contract Hire,3850
http://statistics.data.gov.uk/id/local-authority/47UD,Redditch Borough Council,04/01/2013,175352,9023,"12,911.26",Pauls Electrical Services Ltd,559,Housing Repairs Account,Contractors,5158
http://statistics.data.gov.uk/id/local-authority/47UD,Redditch Borough Council,25/01/2013,176415,9324,593.19,Pauls Electrical Services Ltd,559,Housing Repairs Account,Contractors,5158
http://statistics.data.gov.uk/id/local-authority/47UD,Redditch Borough Council,11/01/2013,176418,9328,"3,094.00",Pauls Electrical Services Ltd,559,Housing Repairs Account,Contractors,5158
http://statistics.data.gov.uk/id/local-authority/47UD,Redditch Borough Council,11/01/2013,176419,9326,"4,291.00",Pauls Electrical Services Ltd,559,Housing Repairs Account,Contractors,5158
http://statistics.data.gov.uk/id/local-authority/47UD,Redditch Borough Council,11/01/2013,176420,9327,602.25,Pauls Electrical Services Ltd,559,Housing Repairs Account,Contractors,5158
http://statistics.data.gov.uk/id/local-authority/47UD,Redditch Borough Council,11/01/2013,176421,9325,"5,215.70",Pauls Electrical Services Ltd,559,Housing Repairs Account,Contractors,5158
http://statistics.data.gov.uk/id/local-authority/47UD,Redditch Borough Council,11/01/2013,176422,9320,964.80,Pauls Electrical Services Ltd,559,Housing Repairs Account,Repairs In House Team,3107
http://statistics.data.gov.uk/id/local-authority/47UD,Redditch Borough Council,18/01/2013,176423,9322,510.95,Pauls Electrical Services Ltd,559,Housing Repairs Account,Repairs In House Team,3107
http://statistics.data.gov.uk/id/local-authority/47UD,Redditch Borough Council,11/01/2013,176513,9052,"1,525.04",Pauls Electrical Services Ltd,559,Rbc Balance Sheet,Contract Payments,8131
http://statistics.data.gov.uk/id/local-authority/47UD,Redditch Borough Council,11/01/2013,176514,9347,735.36,Pauls Electrical Services Ltd,559,Rbc Balance Sheet,Contract Payments,8131
http://statistics.data.gov.uk/id/local-authority/47UD,Redditch Borough Council,11/01/2013,176621,9346,"2,171.69",Pauls Electrical Services Ltd,559,Rbc Balance Sheet,Contract Payments,8131
http://statistics.data.gov.uk/id/local-authority/47UD,Redditch Borough Council,18/01/2013,176897,9376,"1,540.00",Pauls Electrical Services Ltd,559,Rbc Balance Sheet,Contract Payments,8131
http://statistics.data.gov.uk/id/local-authority/47UD,Redditch Borough Council,18/01/2013,176912,9399,"5,770.64",Pauls Electrical Services Ltd,559,Housing Repairs Account,Contractors,5158
http://statistics.data.gov.uk/id/local-authority/47UD,Redditch Borough Council,18/01/2013,176914,9398,"1,020.21",Pauls Electrical Services Ltd,559,Housing Repairs Account,Contractors,5158
http://statistics.data.gov.uk/id/local-authority/47UD,Redditch Borough Council,18/01/2013,176916,9434,"1,287.56",Pauls Electrical Services Ltd,559,Housing Repairs Account,Repairs In House Team,3107
http://statistics.data.gov.uk/id/local-authority/47UD,Redditch Borough Council,18/01/2013,176919,9397,"2,410.00",Pauls Electrical Services Ltd,559,Housing Repairs Account,Repairs In House Team,3107
http://statistics.data.gov.uk/id/local-authority/47UD,Redditch Borough Council,18/01/2013,177520,UU0942758,10.70,Gamma Business Communications Ltd,5650,Executive Director Lec,Telephone Rental,4451
http://statistics.data.gov.uk/id/local-authority/47UD,Redditch Borough Council,18/01/2013,177520,UU0942758,10.70,Gamma Business Communications Ltd,5650,Housing Revenue Account,Telephone Rental,4451
http://statistics.data.gov.uk/id/local-authority/47UD,Redditch Borough Council,18/01/2013,177520,UU0942758,8.88,Gamma Business Communications Ltd,5650,Housing Revenue Account,Telephone Calls,4452
http://statistics.data.gov.uk/id/local-authority/47UD,Redditch Borough Council,18/01/2013,177520,UU0942758,10.70,Gamma Business Communications Ltd,5650,Housing Revenue Account,Telephone Rental,4451
http://statistics.data.gov.uk/id/local-authority/47UD,Redditch Borough Council,18/01/2013,177520,UU0942758,9.44,Gamma Business Communications Ltd,5650,Housing Revenue Account,Telephone Calls,4452
http://statistics.data.gov.uk/id/local-authority/47UD,Redditch Borough Council,18/01/2013,177520,UU0942758,10.70,Gamma Business Communications Ltd,5650,Housing Revenue Account,Telephone Rental,4451
http://statistics.data.gov.uk/id/local-authority/47UD,Redditch Borough Council,18/01/2013,177520,UU0942758,2.75,Gamma Business Communications Ltd,5650,Executive Director Lec,Telephone Calls,4452
http://statistics.data.gov.uk/id/local-authority/47UD,Redditch Borough Council,18/01/2013,177520,UU0942758,20.22,Gamma Business Communications Ltd,5650,Executive Director Lec,Telephone Rental,4451
http://statistics.data.gov.uk/id/local-authority/47UD,Redditch Borough Council,18/01/2013,177520,UU0942758,4.67,Gamma Business Communications Ltd,5650,Exec. Director Prrh,Telephone Calls,4452
http://statistics.data.gov.uk/id/local-authority/47UD,Redditch Borough Council,18/01/2013,177520,UU0942758,20.22,Gamma Business Communications Ltd,5650,Exec. Director Prrh,Telephone Rental,4451
http://statistics.data.gov.uk/id/local-authority/47UD,Redditch Borough Council,18/01/2013,177520,UU0942758,0.74,Gamma Business Communications Ltd,5650,Executive Director Lec,Telephone Calls,4452
http://statistics.data.gov.uk/id/local-authority/47UD,Redditch Borough Council,18/01/2013,177520,UU0942758,10.70,Gamma Business Communications Ltd,5650,Executive Director Lec,Telephone Rental,4451
http://statistics.data.gov.uk/id/local-authority/47UD,Redditch Borough Council,18/01/2013,177520,UU0942758,24.30,Gamma Business Communications Ltd,5650,Chief Executive,Telephone Rental,4451
http://statistics.data.gov.uk/id/local-authority/47UD,Redditch Borough Council,18/01/2013,177520,UU0942758,0.01,Gamma Business Communications Ltd,5650,Executive Director Lec,Telephone Calls,4452
http://statistics.data.gov.uk/id/local-authority/47UD,Redditch Borough Council,18/01/2013,177520,UU0942758,14.00,Gamma Business Communications Ltd,5650,Executive Director Lec,Telephone Rental,4451
http://statistics.data.gov.uk/id/local-authority/47UD,Redditch Borough Council,18/01/2013,177520,UU0942758,10.70,Gamma Business Communications Ltd,5650,Exec. Director Fin. & Resource,Telephone Rental,4451
http://statistics.data.gov.uk/id/local-authority/47UD,Redditch Borough Council,18/01/2013,177520,UU0942758,10.70,Gamma Business Communications Ltd,5650,Executive Director Lec,Telephone Rental,4451
http://statistics.data.gov.uk/id/local-authority/47UD,Redditch Borough Council,18/01/2013,177520,UU0942758,0.00,Gamma Business Communications Ltd,5650,Executive Director Lec,Telephone Calls,4452
http://statistics.data.gov.uk/id/local-authority/47UD,Redditch Borough Council,18/01/2013,177520,UU0942758,10.70,Gamma Business Communications Ltd,5650,Executive Director Lec,Telephone Rental,4451
http://statistics.data.gov.uk/id/local-authority/47UD,Redditch Borough Council,18/01/2013,177520,UU0942758,10.70,Gamma Business Communications Ltd,5650,Executive Director Lec,Telephone Rental,4451
http://statistics.data.gov.uk/id/local-authority/47UD,Redditch Borough Council,18/01/2013,177520,UU0942758,10.70,Gamma Business Communications Ltd,5650,Executive Director Lec,Telephone Rental,4451
http://statistics.data.gov.uk/id/local-authority/47UD,Redditch Borough Council,18/01/2013,177520,UU0942758,0.69,Gamma Business Communications Ltd,5650,Executive Director Lec,Telephone Calls,4452
http://statistics.data.gov.uk/id/local-authority/47UD,Redditch Borough Council,18/01/2013,177520,UU0942758,10.70,Gamma Business Communications Ltd,5650,Executive Director Lec,Telephone Rental,4451
http://statistics.data.gov.uk/id/local-authority/47UD,Redditch Borough Council,18/01/2013,177520,UU0942758,10.70,Gamma Business Communications Ltd,5650,Executive Director Lec,Telephone Rental,4451
http://statistics.data.gov.uk/id/local-authority/47UD,Redditch Borough Council,18/01/2013,177520,UU0942758,10.70,Gamma Business Communications Ltd,5650,Exec. Director Fin. & Resource,Telephone Rental,4451
http://statistics.data.gov.uk/id/local-authority/47UD,Redditch Borough Council,18/01/2013,177520,UU0942758,10.70,Gamma Business Communications Ltd,5650,Housing Repairs Account,Telephone Rental,4451
http://statistics.data.gov.uk/id/local-authority/47UD,Redditch Borough Council,18/01/2013,177520,UU0942758,10.70,Gamma Business Communications Ltd,5650,Exec. Director Fin. & Resource,Telephone Rental,4451
http://statistics.data.gov.uk/id/local-authority/47UD,Redditch Borough Council,18/01/2013,177520,UU0942758,0.09,Gamma Business Communications Ltd,5650,Housing Revenue Account,Telephone Calls,4452
http://statistics.data.gov.uk/id/local-authority/47UD,Redditch Borough Council,18/01/2013,177520,UU0942758,10.70,Gamma Business Communications Ltd,5650,Housing Revenue Account,Telephone Rental,4451
http://statistics.data.gov.uk/id/local-authority/47UD,Redditch Borough Council,18/01/2013,177520,UU0942758,10.70,Gamma Business Communications Ltd,5650,Chief Executive,Telephone Rental,4451
http://statistics.data.gov.uk/id/local-authority/47UD,Redditch Borough Council,18/01/2013,177520,UU0942758,10.70,Gamma Business Communications Ltd,5650,Chief Executive,Telephone Rental,4451
http://statistics.data.gov.uk/id/local-authority/47UD,Redditch Borough Council,18/01/2013,177520,UU0942758,10.70,Gamma Business Communications Ltd,5650,Executive Director Lec,Telephone Rental,4451
http://statistics.data.gov.uk/id/local-authority/47UD,Redditch Borough Council,18/01/2013,177520,UU0942758,11.16,Gamma Business Communications Ltd,5650,Exec. Director Prrh,Telephone Calls,4452
http://statistics.data.gov.uk/id/local-authority/47UD,Redditch Borough Council,18/01/2013,177520,UU0942758,34.22,Gamma Business Communications Ltd,5650,Exec. Director Prrh,Telephone Rental,4451
http://statistics.data.gov.uk/id/local-authority/47UD,Redditch Borough Council,18/01/2013,177520,UU0942758,8.88,Gamma Business Communications Ltd,5650,Surestart Project,Telephone Calls,4452
http://statistics.data.gov.uk/id/local-authority/47UD,Redditch Borough Council,18/01/2013,177520,UU0942758,10.70,Gamma Business Communications Ltd,5650,Surestart Project,Telephone Rental,4451
http://statistics.data.gov.uk/id/local-authority/47UD,Redditch Borough Council,18/01/2013,177520,UU0942758,10.70,Gamma Business Communications Ltd,5650,Executive Director Lec,Telephone Rental,4451
http://statistics.data.gov.uk/id/local-authority/47UD,Redditch Borough Council,18/01/2013,177520,UU0942758,0.31,Gamma Business Communications Ltd,5650,Exec. Director Prrh,Telephone Calls,4452
http://statistics.data.gov.uk/id/local-authority/47UD,Redditch Borough Council,18/01/2013,177520,UU0942758,10.70,Gamma Business Communications Ltd,5650,Exec. Director Prrh,Telephone Rental,4451
http://statistics.data.gov.uk/id/local-authority/47UD,Redditch Borough Council,18/01/2013,177520,UU0942758,10.70,Gamma Business Communications Ltd,5650,Executive Director Lec,Telephone Rental,4451
http://statistics.data.gov.uk/id/local-authority/47UD,Redditch Borough Council,18/01/2013,177520,UU0942758,0.35,Gamma Business Communications Ltd,5650,Executive Director Lec,Telephone Calls,4452
http://statistics.data.gov.uk/id/local-authority/47UD,Redditch Borough Council,18/01/2013,177520,UU0942758,14.00,Gamma Business Communications Ltd,5650,Executive Director Lec,Telephone Rental,4451
http://statistics.data.gov.uk/id/local-authority/47UD,Redditch Borough Council,18/01/2013,177520,UU0942758,0.66,Gamma Business Communications Ltd,5650,Surestart Project,Telephone Calls,4452
http://statistics.data.gov.uk/id/local-authority/47UD,Redditch Borough Council,18/01/2013,177520,UU0942758,147.90,Gamma Business Communications Ltd,5650,Surestart Project,Telephone Rental,4451
http://statistics.data.gov.uk/id/local-authority/47UD,Redditch Borough Council,18/01/2013,177520,UU0942758,9.90,Gamma Business Communications Ltd,5650,Surestart Project,Telephone Calls,4452
http://statistics.data.gov.uk/id/local-authority/47UD,Redditch Borough Council,18/01/2013,177520,UU0942758,10.70,Gamma Business Communications Ltd,5650,Surestart Project,Telephone Rental,4451
http://statistics.data.gov.uk/id/local-authority/47UD,Redditch Borough Council,18/01/2013,177520,UU0942758,0.73,Gamma Business Communications Ltd,5650,Executive Director Lec,Telephone Calls,4452
http://statistics.data.gov.uk/id/local-authority/47UD,Redditch Borough Council,18/01/2013,177520,UU0942758,14.00,Gamma Business Communications Ltd,5650,Executive Director Lec,Telephone Rental,4451
http://statistics.data.gov.uk/id/local-authority/47UD,Redditch Borough Council,18/01/2013,177520,UU0942758,0.02,Gamma Business Communications Ltd,5650,Executive Director Lec,Telephone Calls,4452
http://statistics.data.gov.uk/id/local-authority/47UD,Redditch Borough Council,18/01/2013,177520,UU0942758,10.70,Gamma Business Communications Ltd,5650,Executive Director Lec,Telephone Rental,4451
http://statistics.data.gov.uk/id/local-authority/47UD,Redditch Borough Council,18/01/2013,177520,UU0942758,1.09,Gamma Business Communications Ltd,5650,Surestart Project,Telephone Calls,4452
http://statistics.data.gov.uk/id/local-authority/47UD,Redditch Borough Council,18/01/2013,177520,UU0942758,10.70,Gamma Business Communications Ltd,5650,Surestart Project,Telephone Rental,4451
http://statistics.data.gov.uk/id/local-authority/47UD,Redditch Borough Council,18/01/2013,177520,UU0942758,0.10,Gamma Business Communications Ltd,5650,Executive Director Lec,Telephone Calls,4452
http://statistics.data.gov.uk/id/local-authority/47UD,Redditch Borough Council,18/01/2013,177520,UU0942758,14.00,Gamma Business Communications Ltd,5650,Executive Director Lec,Telephone Rental,4451
http://statistics.data.gov.uk/id/local-authority/47UD,Redditch Borough Council,18/01/2013,177520,UU0942758,0.16,Gamma Business Communications Ltd,5650,Executive Director Lec,Telephone Calls,4452
http://statistics.data.gov.uk/id/local-authority/47UD,Redditch Borough Council,18/01/2013,177520,UU0942758,14.00,Gamma Business Communications Ltd,5650,Executive Director Lec,Telephone Rental,4451
http://statistics.data.gov.uk/id/local-authority/47UD,Redditch Borough Council,18/01/2013,177520,UU0942758,10.70,Gamma Business Communications Ltd,5650,Exec. Director Fin. & Resource,Telephone Rental,4451
http://statistics.data.gov.uk/id/local-authority/47UD,Redditch Borough Council,18/01/2013,177520,UU0942758,0.03,Gamma Business Communications Ltd,5650,Executive Director Lec,Telephone Calls,4452
http://statistics.data.gov.uk/id/local-authority/47UD,Redditch Borough Council,18/01/2013,177520,UU0942758,14.00,Gamma Business Communications Ltd,5650,Executive Director Lec,Telephone Rental,4451
http://statistics.data.gov.uk/id/local-authority/47UD,Redditch Borough Council,18/01/2013,177520,UU0942758,0.87,Gamma Business Communications Ltd,5650,Executive Director Lec,Telephone Calls,4452
http://statistics.data.gov.uk/id/local-authority/47UD,Redditch Borough Council,18/01/2013,177520,UU0942758,14.00,Gamma Business Communications Ltd,5650,Executive Director Lec,Telephone Rental,4451
http://statistics.data.gov.uk/id/local-authority/47UD,Redditch Borough Council,18/01/2013,177520,UU0942758,1.62,Gamma Business Communications Ltd,5650,Executive Director Lec,Telephone Calls,4452
http://statistics.data.gov.uk/id/local-authority/47UD,Redditch Borough Council,18/01/2013,177520,UU0942758,14.00,Gamma Business Communications Ltd,5650,Executive Director Lec,Telephone Rental,4451
http://statistics.data.gov.uk/id/local-authority/47UD,Redditch Borough Council,18/01/2013,177520,UU0942758,0.09,Gamma Business Communications Ltd,5650,Executive Director Lec,Telephone Calls,4452
http://statistics.data.gov.uk/id/local-authority/47UD,Redditch Borough Council,18/01/2013,177520,UU0942758,14.00,Gamma Business Communications Ltd,5650,Executive Director Lec,Telephone Rental,4451
http://statistics.data.gov.uk/id/local-authority/47UD,Redditch Borough Council,18/01/2013,177520,UU0942758,10.70,Gamma Business Communications Ltd,5650,Exec. Director Prrh,Telephone Rental,4451
http://statistics.data.gov.uk/id/local-authority/47UD,Redditch Borough Council,18/01/2013,177520,UU0942758,10.70,Gamma Business Communications Ltd,5650,Executive Director Lec,Telephone Rental,4451
http://statistics.data.gov.uk/id/local-authority/47UD,Redditch Borough Council,18/01/2013,177520,UU0942758,1.90,Gamma Business Communications Ltd,5650,Housing Revenue Account,Telephone Calls,4452
http://statistics.data.gov.uk/id/local-authority/47UD,Redditch Borough Council,18/01/2013,177520,UU0942758,10.70,Gamma Business Communications Ltd,5650,Housing Revenue Account,Telephone Rental,4451
http://statistics.data.gov.uk/id/local-authority/47UD,Redditch Borough Council,18/01/2013,177520,UU0942758,0.81,Gamma Business Communications Ltd,5650,Executive Director Lec,Telephone Calls,4452
http://statistics.data.gov.uk/id/local-authority/47UD,Redditch Borough Council,18/01/2013,177520,UU0942758,10.70,Gamma Business Communications Ltd,5650,Executive Director Lec,Telephone Rental,4451
http://statistics.data.gov.uk/id/local-authority/47UD,Redditch Borough Council,18/01/2013,177520,UU0942758,0.52,Gamma Business Communications Ltd,5650,Exec. Director Prrh,Telephone Calls,4452
http://statistics.data.gov.uk/id/local-authority/47UD,Redditch Borough Council,18/01/2013,177520,UU0942758,10.70,Gamma Business Communications Ltd,5650,Exec. Director Prrh,Telephone Rental,4451
http://statistics.data.gov.uk/id/local-authority/47UD,Redditch Borough Council,18/01/2013,177520,UU0942758,10.70,Gamma Business Communications Ltd,5650,Exec. Director Fin. & Resource,Telephone Rental,4451
http://statistics.data.gov.uk/id/local-authority/47UD,Redditch Borough Council,18/01/2013,177520,UU0942758,10.70,Gamma Business Communications Ltd,5650,Exec. Director Prrh,Telephone Rental,4451
http://statistics.data.gov.uk/id/local-authority/47UD,Redditch Borough Council,18/01/2013,177520,UU0942758,10.70,Gamma Business Communications Ltd,5650,Chief Executive,Telephone Rental,4451
http://statistics.data.gov.uk/id/local-authority/47UD,Redditch Borough Council,18/01/2013,177520,UU0942758,0.54,Gamma Business Communications Ltd,5650,Executive Director Lec,Telephone Calls,4452
http://statistics.data.gov.uk/id/local-authority/47UD,Redditch Borough Council,18/01/2013,177520,UU0942758,14.00,Gamma Business Communications Ltd,5650,Executive Director Lec,Telephone Rental,4451
http://statistics.data.gov.uk/id/local-authority/47UD,Redditch Borough Council,18/01/2013,177520,UU0942758,0.32,Gamma Business Communications Ltd,5650,Executive Director Lec,Telephone Calls,4452
http://statistics.data.gov.uk/id/local-authority/47UD,Redditch Borough Council,18/01/2013,177520,UU0942758,14.00,Gamma Business Communications Ltd,5650,Executive Director Lec,Telephone Rental,4451
http://statistics.data.gov.uk/id/local-authority/47UD,Redditch Borough Council,18/01/2013,177520,UU0942758,1.05,Gamma Business Communications Ltd,5650,Executive Director Lec,Telephone Calls,4452
http://statistics.data.gov.uk/id/local-authority/47UD,Redditch Borough Council,18/01/2013,177520,UU0942758,14.00,Gamma Business Communications Ltd,5650,Executive Director Lec,Telephone Rental,4451
http://statistics.data.gov.uk/id/local-authority/47UD,Redditch Borough Council,18/01/2013,177520,UU0942758,0.11,Gamma Business Communications Ltd,5650,Executive Director Lec,Telephone Calls,4452
http://statistics.data.gov.uk/id/local-authority/47UD,Redditch Borough Council,18/01/2013,177520,UU0942758,14.00,Gamma Business Communications Ltd,5650,Executive Director Lec,Telephone Rental,4451
http://statistics.data.gov.uk/id/local-authority/47UD,Redditch Borough Council,18/01/2013,177520,UU0942758,0.12,Gamma Business Communications Ltd,5650,Executive Director Lec,Telephone Calls,4452
http://statistics.data.gov.uk/id/local-authority/47UD,Redditch Borough Council,18/01/2013,177520,UU0942758,14.00,Gamma Business Communications Ltd,5650,Executive Director Lec,Telephone Rental,4451
http://statistics.data.gov.uk/id/local-authority/47UD,Redditch Borough Council,18/01/2013,177520,UU0942758,10.70,Gamma Business Communications Ltd,5650,Executive Director Lec,Telephone Rental,4451
http://statistics.data.gov.uk/id/local-authority/47UD,Redditch Borough Council,18/01/2013,177520,UU0942758,10.70,Gamma Business Communications Ltd,5650,Exec. Director Prrh,Telephone Rental,4451
http://statistics.data.gov.uk/id/local-authority/47UD,Redditch Borough Council,18/01/2013,177520,UU0942758,7.26,Gamma Business Communications Ltd,5650,Executive Director Lec,Telephone Calls,4452
http://statistics.data.gov.uk/id/local-authority/47UD,Redditch Borough Council,18/01/2013,177520,UU0942758,16.92,Gamma Business Communications Ltd,5650,Executive Director Lec,Telephone Rental,4451
http://statistics.data.gov.uk/id/local-authority/47UD,Redditch Borough Council,18/01/2013,177520,UU0942758,7.76,Gamma Business Communications Ltd,5650,Executive Director Lec,Telephone Calls,4452
http://statistics.data.gov.uk/id/local-authority/47UD,Redditch Borough Council,18/01/2013,177520,UU0942758,10.70,Gamma Business Communications Ltd,5650,Executive Director Lec,Telephone Rental,4451
http://statistics.data.gov.uk/id/local-authority/47UD,Redditch Borough Council,18/01/2013,177520,UU0942758,34.93,Gamma Business Communications Ltd,5650,Executive Director Lec,Telephone Calls,4452
http://statistics.data.gov.uk/id/local-authority/47UD,Redditch Borough Council,18/01/2013,177520,UU0942758,10.70,Gamma Business Communications Ltd,5650,Executive Director Lec,Telephone Rental,4451
http://statistics.data.gov.uk/id/local-authority/47UD,Redditch Borough Council,18/01/2013,177520,UU0942758,1.09,Gamma Business Communications Ltd,5650,Executive Director Lec,Telephone Calls,4452
http://statistics.data.gov.uk/id/local-authority/47UD,Redditch Borough Council,18/01/2013,177520,UU0942758,14.00,Gamma Business Communications Ltd,5650,Executive Director Lec,Telephone Rental,4451
http://statistics.data.gov.uk/id/local-authority/47UD,Redditch Borough Council,18/01/2013,177520,UU0942758,0.03,Gamma Business Communications Ltd,5650,Executive Director Lec,Telephone Calls,4452
http://statistics.data.gov.uk/id/local-authority/47UD,Redditch Borough Council,18/01/2013,177520,UU0942758,14.00,Gamma Business Communications Ltd,5650,Executive Director Lec,Telephone Rental,4451
http://statistics.data.gov.uk/id/local-authority/47UD,Redditch Borough Council,18/01/2013,177520,UU0942758,0.62,Gamma Business Communications Ltd,5650,Executive Director Lec,Telephone Calls,4452
http://statistics.data.gov.uk/id/local-authority/47UD,Redditch Borough Council,18/01/2013,177520,UU0942758,14.00,Gamma Business Communications Ltd,5650,Executive Director Lec,Telephone Rental,4451
http://statistics.data.gov.uk/id/local-authority/47UD,Redditch Borough Council,18/01/2013,177520,UU0942758,0.83,Gamma Business Communications Ltd,5650,Executive Director Lec,Telephone Calls,4452
http://statistics.data.gov.uk/id/local-authority/47UD,Redditch Borough Council,18/01/2013,177520,UU0942758,14.00,Gamma Business Communications Ltd,5650,Executive Director Lec,Telephone Rental,4451
http://statistics.data.gov.uk/id/local-authority/47UD,Redditch Borough Council,18/01/2013,177520,UU0942758,0.15,Gamma Business Communications Ltd,5650,Executive Director Lec,Telephone Calls,4452
http://statistics.data.gov.uk/id/local-authority/47UD,Redditch Borough Council,18/01/2013,177520,UU0942758,14.00,Gamma Business Communications Ltd,5650,Executive Director Lec,Telephone Rental,4451
http://statistics.data.gov.uk/id/local-authority/47UD,Redditch Borough Council,18/01/2013,177520,UU0942758,0.02,Gamma Business Communications Ltd,5650,Executive Director Lec,Telephone Calls,4452
http://statistics.data.gov.uk/id/local-authority/47UD,Redditch Borough Council,18/01/2013,177520,UU0942758,14.00,Gamma Business Communications Ltd,5650,Executive Director Lec,Telephone Rental,4451
http://statistics.data.gov.uk/id/local-authority/47UD,Redditch Borough Council,18/01/2013,177520,UU0942758,10.70,Gamma Business Communications Ltd,5650,Executive Director Lec,Telephone Rental,4451
http://statistics.data.gov.uk/id/local-authority/47UD,Redditch Borough Council,18/01/2013,177520,UU0942758,0.45,Gamma Business Communications Ltd,5650,Executive Director Lec,Telephone Calls,4452
http://statistics.data.gov.uk/id/local-authority/47UD,Redditch Borough Council,18/01/2013,177520,UU0942758,14.00,Gamma Business Communications Ltd,5650,Executive Director Lec,Telephone Rental,4451
http://statistics.data.gov.uk/id/local-authority/47UD,Redditch Borough Council,18/01/2013,177520,UU0942758,16.92,Gamma Business Communications Ltd,5650,Housing Revenue Account,Telephone Rental,4451
http://statistics.data.gov.uk/id/local-authority/47UD,Redditch Borough Council,18/01/2013,177520,UU0942758,0.08,Gamma Business Communications Ltd,5650,Executive Director Lec,Telephone Calls,4452
http://statistics.data.gov.uk/id/local-authority/47UD,Redditch Borough Council,18/01/2013,177520,UU0942758,14.00,Gamma Business Communications Ltd,5650,Executive Director Lec,Telephone Rental,4451
http://statistics.data.gov.uk/id/local-authority/47UD,Redditch Borough Council,18/01/2013,177520,UU0942758,0.26,Gamma Business Communications Ltd,5650,Executive Director Lec,Telephone Calls,4452
http://statistics.data.gov.uk/id/local-authority/47UD,Redditch Borough Council,18/01/2013,177520,UU0942758,14.00,Gamma Business Communications Ltd,5650,Executive Director Lec,Telephone Rental,4451
http://statistics.data.gov.uk/id/local-authority/47UD,Redditch Borough Council,18/01/2013,177520,UU0942758,0.10,Gamma Business Communications Ltd,5650,Executive Director Lec,Telephone Calls,4452
http://statistics.data.gov.uk/id/local-authority/47UD,Redditch Borough Council,18/01/2013,177520,UU0942758,14.00,Gamma Business Communications Ltd,5650,Executive Director Lec,Telephone Rental,4451
http://statistics.data.gov.uk/id/local-authority/47UD,Redditch Borough Council,18/01/2013,177520,UU0942758,0.98,Gamma Business Communications Ltd,5650,Executive Director Lec,Telephone Calls,4452
http://statistics.data.gov.uk/id/local-authority/47UD,Redditch Borough Council,18/01/2013,177520,UU0942758,14.00,Gamma Business Communications Ltd,5650,Executive Director Lec,Telephone Rental,4451
http://statistics.data.gov.uk/id/local-authority/47UD,Redditch Borough Council,18/01/2013,177520,UU0942758,1.12,Gamma Business Communications Ltd,5650,Executive Director Lec,Telephone Calls,4452
http://statistics.data.gov.uk/id/local-authority/47UD,Redditch Borough Council,18/01/2013,177520,UU0942758,14.00,Gamma Business Communications Ltd,5650,Executive Director Lec,Telephone Rental,4451
http://statistics.data.gov.uk/id/local-authority/47UD,Redditch Borough Council,18/01/2013,177520,UU0942758,2.64,Gamma Business Communications Ltd,5650,Executive Director Lec,Telephone Calls,4452
http://statistics.data.gov.uk/id/local-authority/47UD,Redditch Borough Council,18/01/2013,177520,UU0942758,10.70,Gamma Business Communications Ltd,5650,Executive Director Lec,Telephone Rental,4451
http://statistics.data.gov.uk/id/local-authority/47UD,Redditch Borough Council,18/01/2013,177520,UU0942758,0.06,Gamma Business Communications Ltd,5650,Executive Director Lec,Telephone Calls,4452
http://statistics.data.gov.uk/id/local-authority/47UD,Redditch Borough Council,18/01/2013,177520,UU0942758,14.00,Gamma Business Communications Ltd,5650,Executive Director Lec,Telephone Rental,4451
http://statistics.data.gov.uk/id/local-authority/47UD,Redditch Borough Council,18/01/2013,177520,UU0942758,0.93,Gamma Business Communications Ltd,5650,Executive Director Lec,Telephone Calls,4452
http://statistics.data.gov.uk/id/local-authority/47UD,Redditch Borough Council,18/01/2013,177520,UU0942758,14.00,Gamma Business Communications Ltd,5650,Executive Director Lec,Telephone Rental,4451
http://statistics.data.gov.uk/id/local-authority/47UD,Redditch Borough Council,18/01/2013,177520,UU0942758,1.45,Gamma Business Communications Ltd,5650,Executive Director Lec,Telephone Calls,4452
http://statistics.data.gov.uk/id/local-authority/47UD,Redditch Borough Council,18/01/2013,177520,UU0942758,14.00,Gamma Business Communications Ltd,5650,Executive Director Lec,Telephone Rental,4451
http://statistics.data.gov.uk/id/local-authority/47UD,Redditch Borough Council,18/01/2013,177520,UU0942758,5.12,Gamma Business Communications Ltd,5650,Executive Director Lec,Telephone Calls,4452
http://statistics.data.gov.uk/id/local-authority/47UD,Redditch Borough Council,18/01/2013,177520,UU0942758,10.70,Gamma Business Communications Ltd,5650,Executive Director Lec,Telephone Rental,4451
http://statistics.data.gov.uk/id/local-authority/47UD,Redditch Borough Council,18/01/2013,177520,UU0942758,14.00,Gamma Business Communications Ltd,5650,Executive Director Lec,Telephone Rental,4451
http://statistics.data.gov.uk/id/local-authority/47UD,Redditch Borough Council,18/01/2013,177520,UU0942758,0.79,Gamma Business Communications Ltd,5650,Executive Director Lec,Telephone Calls,4452
http://statistics.data.gov.uk/id/local-authority/47UD,Redditch Borough Council,18/01/2013,177520,UU0942758,10.70,Gamma Business Communications Ltd,5650,Executive Director Lec,Telephone Rental,4451
http://statistics.data.gov.uk/id/local-authority/47UD,Redditch Borough Council,18/01/2013,177520,UU0942758,0.74,Gamma Business Communications Ltd,5650,Exec. Director Prrh,Telephone Calls,4452
http://statistics.data.gov.uk/id/local-authority/47UD,Redditch Borough Council,18/01/2013,177520,UU0942758,10.70,Gamma Business Communications Ltd,5650,Exec. Director Prrh,Telephone Rental,4451
http://statistics.data.gov.uk/id/local-authority/47UD,Redditch Borough Council,18/01/2013,177520,UU0942758,35.02,Gamma Business Communications Ltd,5650,Surestart Project,Telephone Calls,4452
http://statistics.data.gov.uk/id/local-authority/47UD,Redditch Borough Council,18/01/2013,177520,UU0942758,10.70,Gamma Business Communications Ltd,5650,Surestart Project,Telephone Rental,4451
http://statistics.data.gov.uk/id/local-authority/47UD,Redditch Borough Council,18/01/2013,177520,UU0942758,10.70,Gamma Business Communications Ltd,5650,Executive Director Lec,Telephone Rental,4451
http://statistics.data.gov.uk/id/local-authority/47UD,Redditch Borough Council,18/01/2013,177520,UU0942758,9.99,Gamma Business Communications Ltd,5650,Housing Revenue Account,Telephone Calls,4452
http://statistics.data.gov.uk/id/local-authority/47UD,Redditch Borough Council,18/01/2013,177520,UU0942758,17.45,Gamma Business Communications Ltd,5650,Housing Revenue Account,Telephone Rental,4451
http://statistics.data.gov.uk/id/local-authority/47UD,Redditch Borough Council,18/01/2013,177520,UU0942758,3.61,Gamma Business Communications Ltd,5650,Executive Director Lec,Telephone Calls,4452
http://statistics.data.gov.uk/id/local-authority/47UD,Redditch Borough Council,18/01/2013,177520,UU0942758,10.70,Gamma Business Communications Ltd,5650,Executive Director Lec,Telephone Rental,4451
http://statistics.data.gov.uk/id/local-authority/47UD,Redditch Borough Council,18/01/2013,177520,UU0942758,24.30,Gamma Business Communications Ltd,5650,Chief Executive,Telephone Rental,4451
http://statistics.data.gov.uk/id/local-authority/47UD,Redditch Borough Council,18/01/2013,177520,UU0942758,10.70,Gamma Business Communications Ltd,5650,Executive Director Lec,Telephone Rental,4451
http://statistics.data.gov.uk/id/local-authority/47UD,Redditch Borough Council,18/01/2013,177520,UU0942758,0.03,Gamma Business Communications Ltd,5650,Executive Director Lec,Telephone Calls,4452
http://statistics.data.gov.uk/id/local-authority/47UD,Redditch Borough Council,18/01/2013,177520,UU0942758,14.00,Gamma Business Communications Ltd,5650,Executive Director Lec,Telephone Rental,4451
http://statistics.data.gov.uk/id/local-authority/47UD,Redditch Borough Council,18/01/2013,177520,UU0942758,3.50,Gamma Business Communications Ltd,5650,Executive Director Lec,Telephone Rental,4451
http://statistics.data.gov.uk/id/local-authority/47UD,Redditch Borough Council,18/01/2013,177520,UU0942758,0.20,Gamma Business Communications Ltd,5650,Housing Revenue Account,Telephone Calls,4452
http://statistics.data.gov.uk/id/local-authority/47UD,Redditch Borough Council,18/01/2013,177520,UU0942758,10.70,Gamma Business Communications Ltd,5650,Housing Revenue Account,Telephone Rental,4451
http://statistics.data.gov.uk/id/local-authority/47UD,Redditch Borough Council,18/01/2013,177520,UU0942758,1.03,Gamma Business Communications Ltd,5650,Housing Repairs Account,Telephone Calls,4452
http://statistics.data.gov.uk/id/local-authority/47UD,Redditch Borough Council,18/01/2013,177520,UU0942758,10.70,Gamma Business Communications Ltd,5650,Housing Repairs Account,Telephone Rental,4451
http://statistics.data.gov.uk/id/local-authority/47UD,Redditch Borough Council,18/01/2013,177520,UU0942758,9.40,Gamma Business Communications Ltd,5650,Surestart Project,Telephone Calls,4452
http://statistics.data.gov.uk/id/local-authority/47UD,Redditch Borough Council,18/01/2013,177520,UU0942758,10.70,Gamma Business Communications Ltd,5650,Surestart Project,Telephone Rental,4451
http://statistics.data.gov.uk/id/local-authority/47UD,Redditch Borough Council,18/01/2013,177520,UU0942758,1.87,Gamma Business Communications Ltd,5650,Surestart Project,Telephone Calls,4452
http://statistics.data.gov.uk/id/local-authority/47UD,Redditch Borough Council,18/01/2013,177520,UU0942758,10.70,Gamma Business Communications Ltd,5650,Surestart Project,Telephone Rental,4451
http://statistics.data.gov.uk/id/local-authority/47UD,Redditch Borough Council,18/01/2013,177520,UU0942758,10.70,Gamma Business Communications Ltd,5650,Executive Director Lec,Telephone Rental,4451
http://statistics.data.gov.uk/id/local-authority/47UD,Redditch Borough Council,18/01/2013,177520,UU0942758,10.70,Gamma Business Communications Ltd,5650,Chief Executive,Telephone Rental,4451
http://statistics.data.gov.uk/id/local-authority/47UD,Redditch Borough Council,18/01/2013,177520,UU0942758,0.03,Gamma Business Communications Ltd,5650,Chief Executive,Telephone Calls,4452
http://statistics.data.gov.uk/id/local-authority/47UD,Redditch Borough Council,18/01/2013,177520,UU0942758,10.70,Gamma Business Communications Ltd,5650,Chief Executive,Telephone Rental,4451
http://statistics.data.gov.uk/id/local-authority/47UD,Redditch Borough Council,18/01/2013,177520,UU0942758,5.47,Gamma Business Communications Ltd,5650,Executive Director Lec,Telephone Calls,4452
http://statistics.data.gov.uk/id/local-authority/47UD,Redditch Borough Council,18/01/2013,177520,UU0942758,12.70,Gamma Business Communications Ltd,5650,Executive Director Lec,Telephone Rental,4451
http://statistics.data.gov.uk/id/local-authority/47UD,Redditch Borough Council,18/01/2013,177520,UU0942758,-2.50,Gamma Business Communications Ltd,5650,Chief Executive,Telephone Rental,4451
http://statistics.data.gov.uk/id/local-authority/47UD,Redditch Borough Council,18/01/2013,177520,UU0942758,10.70,Gamma Business Communications Ltd,5650,Executive Director Lec,Telephone Rental,4451
http://statistics.data.gov.uk/id/local-authority/47UD,Redditch Borough Council,18/01/2013,177520,UU0942758,0.37,Gamma Business Communications Ltd,5650,Executive Director Lec,Telephone Calls,4452
http://statistics.data.gov.uk/id/local-authority/47UD,Redditch Borough Council,18/01/2013,177520,UU0942758,14.00,Gamma Business Communications Ltd,5650,Executive Director Lec,Telephone Rental,4451
http://statistics.data.gov.uk/id/local-authority/47UD,Redditch Borough Council,18/01/2013,177520,UU0942758,40.52,Gamma Business Communications Ltd,5650,Executive Director Lec,Telephone Calls,4452
http://statistics.data.gov.uk/id/local-authority/47UD,Redditch Borough Council,18/01/2013,177520,UU0942758,16.00,Gamma Business Communications Ltd,5650,Executive Director Lec,Telephone Rental,4451
http://statistics.data.gov.uk/id/local-authority/47UD,Redditch Borough Council,18/01/2013,177520,UU0942758,0.56,Gamma Business Communications Ltd,5650,Executive Director Lec,Telephone Calls,4452
http://statistics.data.gov.uk/id/local-authority/47UD,Redditch Borough Council,18/01/2013,177520,UU0942758,10.70,Gamma Business Communications Ltd,5650,Executive Director Lec,Telephone Rental,4451
http://statistics.data.gov.uk/id/local-authority/47UD,Redditch Borough Council,18/01/2013,177520,UU0942758,10.70,Gamma Business Communications Ltd,5650,Exec. Director Fin. & Resource,Telephone Rental,4451
http://statistics.data.gov.uk/id/local-authority/47UD,Redditch Borough Council,18/01/2013,177520,UU0942758,10.70,Gamma Business Communications Ltd,5650,Exec. Director Fin. & Resource,Telephone Rental,4451
http://statistics.data.gov.uk/id/local-authority/47UD,Redditch Borough Council,18/01/2013,177520,UU0942758,13.23,Gamma Business Communications Ltd,5650,Executive Director Lec,Telephone Calls,4452
http://statistics.data.gov.uk/id/local-authority/47UD,Redditch Borough Council,18/01/2013,177520,UU0942758,14.00,Gamma Business Communications Ltd,5650,Executive Director Lec,Telephone Rental,4451
http://statistics.data.gov.uk/id/local-authority/47UD,Redditch Borough Council,18/01/2013,177520,UU0942758,54.37,Gamma Business Communications Ltd,5650,Executive Director Lec,Telephone Calls,4452
http://statistics.data.gov.uk/id/local-authority/47UD,Redditch Borough Council,18/01/2013,177520,UU0942758,90.00,Gamma Business Communications Ltd,5650,Executive Director Lec,Telephone Rental,4451
http://statistics.data.gov.uk/id/local-authority/47UD,Redditch Borough Council,18/01/2013,177520,UU0942758,10.70,Gamma Business Communications Ltd,5650,Executive Director Lec,Telephone Rental,4451
http://statistics.data.gov.uk/id/local-authority/47UD,Redditch Borough Council,18/01/2013,177520,UU0942758,10.70,Gamma Business Communications Ltd,5650,Exec. Director Fin. & Resource,Telephone Rental,4451
http://statistics.data.gov.uk/id/local-authority/47UD,Redditch Borough Council,18/01/2013,177520,UU0942758,10.70,Gamma Business Communications Ltd,5650,Executive Director Lec,Telephone Rental,4451
http://statistics.data.gov.uk/id/local-authority/47UD,Redditch Borough Council,18/01/2013,177520,UU0942758,24.30,Gamma Business Communications Ltd,5650,Chief Executive,Telephone Rental,4451
http://statistics.data.gov.uk/id/local-authority/47UD,Redditch Borough Council,18/01/2013,177520,UU0942758,25.63,Gamma Business Communications Ltd,5650,Executive Director Lec,Telephone Calls,4452
http://statistics.data.gov.uk/id/local-authority/47UD,Redditch Borough Council,18/01/2013,177520,UU0942758,16.92,Gamma Business Communications Ltd,5650,Executive Director Lec,Telephone Rental,4451
http://statistics.data.gov.uk/id/local-authority/47UD,Redditch Borough Council,18/01/2013,177520,UU0942758,2.50,Gamma Business Communications Ltd,5650,Executive Director Lec,Telephone Calls,4452
http://statistics.data.gov.uk/id/local-authority/47UD,Redditch Borough Council,18/01/2013,177520,UU0942758,10.70,Gamma Business Communications Ltd,5650,Executive Director Lec,Telephone Rental,4451
http://statistics.data.gov.uk/id/local-authority/47UD,Redditch Borough Council,18/01/2013,177520,UU0942758,0.68,Gamma Business Communications Ltd,5650,Executive Director Lec,Telephone Calls,4452
http://statistics.data.gov.uk/id/local-authority/47UD,Redditch Borough Council,18/01/2013,177520,UU0942758,14.00,Gamma Business Communications Ltd,5650,Executive Director Lec,Telephone Rental,4451
http://statistics.data.gov.uk/id/local-authority/47UD,Redditch Borough Council,18/01/2013,177520,UU0942758,10.70,Gamma Business Communications Ltd,5650,Housing Revenue Account,Telephone Rental,4451
http://statistics.data.gov.uk/id/local-authority/47UD,Redditch Borough Council,18/01/2013,177520,UU0942758,0.90,Gamma Business Communications Ltd,5650,Executive Director Lec,Telephone Calls,4452
http://statistics.data.gov.uk/id/local-authority/47UD,Redditch Borough Council,18/01/2013,177520,UU0942758,10.70,Gamma Business Communications Ltd,5650,Executive Director Lec,Telephone Rental,4451
http://statistics.data.gov.uk/id/local-authority/47UD,Redditch Borough Council,18/01/2013,177520,UU0942758,2.72,Gamma Business Communications Ltd,5650,Surestart Project,Telephone Calls,4452
http://statistics.data.gov.uk/id/local-authority/47UD,Redditch Borough Council,18/01/2013,177520,UU0942758,21.40,Gamma Business Communications Ltd,5650,Surestart Project,Telephone Rental,4451
http://statistics.data.gov.uk/id/local-authority/47UD,Redditch Borough Council,18/01/2013,177520,UU0942758,10.70,Gamma Business Communications Ltd,5650,Executive Director Lec,Telephone Rental,4451
http://statistics.data.gov.uk/id/local-authority/47UD,Redditch Borough Council,18/01/2013,177520,UU0942758,1.75,Gamma Business Communications Ltd,5650,Executive Director Lec,Telephone Calls,4452
http://statistics.data.gov.uk/id/local-authority/47UD,Redditch Borough Council,18/01/2013,177520,UU0942758,14.00,Gamma Business Communications Ltd,5650,Executive Director Lec,Telephone Rental,4451
http://statistics.data.gov.uk/id/local-authority/47UD,Redditch Borough Council,18/01/2013,177520,UU0942758,0.04,Gamma Business Communications Ltd,5650,Executive Director Lec,Telephone Calls,4452
http://statistics.data.gov.uk/id/local-authority/47UD,Redditch Borough Council,18/01/2013,177520,UU0942758,14.00,Gamma Business Communications Ltd,5650,Executive Director Lec,Telephone Rental,4451
http://statistics.data.gov.uk/id/local-authority/47UD,Redditch Borough Council,18/01/2013,177520,UU0942758,14.00,Gamma Business Communications Ltd,5650,Executive Director Lec,Telephone Rental,4451
http://statistics.data.gov.uk/id/local-authority/47UD,Redditch Borough Council,18/01/2013,177520,UU0942758,0.19,Gamma Business Communications Ltd,5650,Executive Director Lec,Telephone Calls,4452
http://statistics.data.gov.uk/id/local-authority/47UD,Redditch Borough Council,18/01/2013,177520,UU0942758,14.00,Gamma Business Communications Ltd,5650,Executive Director Lec,Telephone Rental,4451
http://statistics.data.gov.uk/id/local-authority/47UD,Redditch Borough Council,18/01/2013,177520,UU0942758,0.34,Gamma Business Communications Ltd,5650,Executive Director Lec,Telephone Calls,4452
http://statistics.data.gov.uk/id/local-authority/47UD,Redditch Borough Council,18/01/2013,177520,UU0942758,131.50,Gamma Business Communications Ltd,5650,Executive Director Lec,Telephone Rental,4451
http://statistics.data.gov.uk/id/local-authority/47UD,Redditch Borough Council,18/01/2013,177520,UU0942758,11.54,Gamma Business Communications Ltd,5650,Executive Director Lec,Telephone Calls,4452
http://statistics.data.gov.uk/id/local-authority/47UD,Redditch Borough Council,18/01/2013,177520,UU0942758,10.70,Gamma Business Communications Ltd,5650,Executive Director Lec,Telephone Rental,4451
http://statistics.data.gov.uk/id/local-authority/47UD,Redditch Borough Council,18/01/2013,177520,UU0942758,0.02,Gamma Business Communications Ltd,5650,Executive Director Lec,Telephone Calls,4452
http://statistics.data.gov.uk/id/local-authority/47UD,Redditch Borough Council,18/01/2013,177520,UU0942758,10.70,Gamma Business Communications Ltd,5650,Executive Director Lec,Telephone Rental,4451
http://statistics.data.gov.uk/id/local-authority/47UD,Redditch Borough Council,18/01/2013,177520,UU0942758,6.57,Gamma Business Communications Ltd,5650,Executive Director Lec,Telephone Calls,4452
http://statistics.data.gov.uk/id/local-authority/47UD,Redditch Borough Council,18/01/2013,177520,UU0942758,27.62,Gamma Business Communications Ltd,5650,Executive Director Lec,Telephone Rental,4451
http://statistics.data.gov.uk/id/local-authority/47UD,Redditch Borough Council,18/01/2013,177520,UU0942758,10.70,Gamma Business Communications Ltd,5650,Chief Executive,Telephone Rental,4451
http://statistics.data.gov.uk/id/local-authority/47UD,Redditch Borough Council,18/01/2013,177520,UU0942758,10.70,Gamma Business Communications Ltd,5650,Executive Director Lec,Telephone Rental,4451
http://statistics.data.gov.uk/id/local-authority/47UD,Redditch Borough Council,18/01/2013,177520,UU0942758,0.97,Gamma Business Communications Ltd,5650,Executive Director Lec,Telephone Calls,4452
http://statistics.data.gov.uk/id/local-authority/47UD,Redditch Borough Council,18/01/2013,177520,UU0942758,10.70,Gamma Business Communications Ltd,5650,Executive Director Lec,Telephone Rental,4451
http://statistics.data.gov.uk/id/local-authority/47UD,Redditch Borough Council,18/01/2013,177520,UU0942758,10.70,Gamma Business Communications Ltd,5650,Executive Director Lec,Telephone Rental,4451
http://statistics.data.gov.uk/id/local-authority/47UD,Redditch Borough Council,18/01/2013,177520,UU0942758,10.70,Gamma Business Communications Ltd,5650,Housing Revenue Account,Telephone Rental,4451
http://statistics.data.gov.uk/id/local-authority/47UD,Redditch Borough Council,18/01/2013,177520,UU0942758,-2.15,Gamma Business Communications Ltd,5650,Executive Director Lec,Telephone Rental,4451
http://statistics.data.gov.uk/id/local-authority/47UD,Redditch Borough Council,18/01/2013,177520,UU0942758,10.70,Gamma Business Communications Ltd,5650,Executive Director Lec,Telephone Rental,4451
http://statistics.data.gov.uk/id/local-authority/47UD,Redditch Borough Council,18/01/2013,177520,UU0942758,10.70,Gamma Business Communications Ltd,5650,Executive Director Lec,Telephone Rental,4451
http://statistics.data.gov.uk/id/local-authority/47UD,Redditch Borough Council,18/01/2013,177520,UU0942758,0.15,Gamma Business Communications Ltd,5650,Executive Director Lec,Telephone Calls,4452
http://statistics.data.gov.uk/id/local-authority/47UD,Redditch Borough Council,18/01/2013,177520,UU0942758,14.00,Gamma Business Communications Ltd,5650,Executive Director Lec,Telephone Rental,4451
http://statistics.data.gov.uk/id/local-authority/47UD,Redditch Borough Council,18/01/2013,177520,UU0942758,3.09,Gamma Business Communications Ltd,5650,Surestart Project,Telephone Calls,4452
http://statistics.data.gov.uk/id/local-authority/47UD,Redditch Borough Council,18/01/2013,177520,UU0942758,10.70,Gamma Business Communications Ltd,5650,Surestart Project,Telephone Rental,4451
http://statistics.data.gov.uk/id/local-authority/47UD,Redditch Borough Council,18/01/2013,177520,UU0942758,1.17,Gamma Business Communications Ltd,5650,Surestart Project,Telephone Calls,4452
http://statistics.data.gov.uk/id/local-authority/47UD,Redditch Borough Council,18/01/2013,177520,UU0942758,10.70,Gamma Business Communications Ltd,5650,Surestart Project,Telephone Rental,4451
http://statistics.data.gov.uk/id/local-authority/47UD,Redditch Borough Council,18/01/2013,177520,UU0942758,0.03,Gamma Business Communications Ltd,5650,Executive Director Lec,Telephone Calls,4452
http://statistics.data.gov.uk/id/local-authority/47UD,Redditch Borough Council,18/01/2013,177520,UU0942758,14.00,Gamma Business Communications Ltd,5650,Executive Director Lec,Telephone Rental,4451
http://statistics.data.gov.uk/id/local-authority/47UD,Redditch Borough Council,18/01/2013,177520,UU0942758,0.13,Gamma Business Communications Ltd,5650,Executive Director Lec,Telephone Calls,4452
http://statistics.data.gov.uk/id/local-authority/47UD,Redditch Borough Council,18/01/2013,177520,UU0942758,14.00,Gamma Business Communications Ltd,5650,Executive Director Lec,Telephone Rental,4451
http://statistics.data.gov.uk/id/local-authority/47UD,Redditch Borough Council,18/01/2013,177520,UU0942758,0.04,Gamma Business Communications Ltd,5650,Exec. Director Fin. & Resource,Telephone Calls,4452
http://statistics.data.gov.uk/id/local-authority/47UD,Redditch Borough Council,18/01/2013,177520,UU0942758,10.70,Gamma Business Communications Ltd,5650,Exec. Director Fin. & Resource,Telephone Rental,4451
http://statistics.data.gov.uk/id/local-authority/47UD,Redditch Borough Council,18/01/2013,177520,UU0942758,18.40,Gamma Business Communications Ltd,5650,Executive Director Lec,Telephone Calls,4452
http://statistics.data.gov.uk/id/local-authority/47UD,Redditch Borough Council,18/01/2013,177520,UU0942758,42.80,Gamma Business Communications Ltd,5650,Executive Director Lec,Telephone Rental,4451
http://statistics.data.gov.uk/id/local-authority/47UD,Redditch Borough Council,18/01/2013,177520,UU0942758,0.25,Gamma Business Communications Ltd,5650,Executive Director Lec,Telephone Calls,4452
http://statistics.data.gov.uk/id/local-authority/47UD,Redditch Borough Council,18/01/2013,177520,UU0942758,14.00,Gamma Business Communications Ltd,5650,Executive Director Lec,Telephone Rental,4451
http://statistics.data.gov.uk/id/local-authority/47UD,Redditch Borough Council,18/01/2013,177520,UU0942758,9.56,Gamma Business Communications Ltd,5650,Executive Director Lec,Telephone Calls,4452
http://statistics.data.gov.uk/id/local-authority/47UD,Redditch Borough Council,18/01/2013,177520,UU0942758,30.00,Gamma Business Communications Ltd,5650,Executive Director Lec,Telephone Rental,4451
http://statistics.data.gov.uk/id/local-authority/47UD,Redditch Borough Council,18/01/2013,177520,UU0942758,10.70,Gamma Business Communications Ltd,5650,Executive Director Lec,Telephone Rental,4451
http://statistics.data.gov.uk/id/local-authority/47UD,Redditch Borough Council,18/01/2013,177520,UU0942758,10.70,Gamma Business Communications Ltd,5650,Executive Director Lec,Telephone Rental,4451
http://statistics.data.gov.uk/id/local-authority/47UD,Redditch Borough Council,18/01/2013,177520,UU0942758,1.02,Gamma Business Communications Ltd,5650,Housing Revenue Account,Telephone Calls,4452
http://statistics.data.gov.uk/id/local-authority/47UD,Redditch Borough Council,18/01/2013,177520,UU0942758,10.70,Gamma Business Communications Ltd,5650,Housing Revenue Account,Telephone Rental,4451
http://statistics.data.gov.uk/id/local-authority/47UD,Redditch Borough Council,18/01/2013,177520,UU0942758,19.77,Gamma Business Communications Ltd,5650,Executive Director Lec,Telephone Calls,4452
http://statistics.data.gov.uk/id/local-authority/47UD,Redditch Borough Council,18/01/2013,177520,UU0942758,81.76,Gamma Business Communications Ltd,5650,Executive Director Lec,Telephone Rental,4451
http://statistics.data.gov.uk/id/local-authority/47UD,Redditch Borough Council,18/01/2013,177520,UU0942758,0.26,Gamma Business Communications Ltd,5650,Executive Director Lec,Telephone Calls,4452
http://statistics.data.gov.uk/id/local-authority/47UD,Redditch Borough Council,18/01/2013,177520,UU0942758,12.70,Gamma Business Communications Ltd,5650,Executive Director Lec,Telephone Rental,4451
http://statistics.data.gov.uk/id/local-authority/47UD,Redditch Borough Council,18/01/2013,177520,UU0942758,0.00,Gamma Business Communications Ltd,5650,Surestart Project,Telephone Calls,4452
http://statistics.data.gov.uk/id/local-authority/47UD,Redditch Borough Council,18/01/2013,177520,UU0942758,10.70,Gamma Business Communications Ltd,5650,Surestart Project,Telephone Rental,4451
http://statistics.data.gov.uk/id/local-authority/47UD,Redditch Borough Council,18/01/2013,177520,UU0942758,10.70,Gamma Business Communications Ltd,5650,Executive Director Lec,Telephone Rental,4451
http://statistics.data.gov.uk/id/local-authority/47UD,Redditch Borough Council,18/01/2013,177520,UU0942758,22.56,Gamma Business Communications Ltd,5650,Executive Director Lec,Telephone Calls,4452
http://statistics.data.gov.uk/id/local-authority/47UD,Redditch Borough Council,18/01/2013,177520,UU0942758,77.11,Gamma Business Communications Ltd,5650,Executive Director Lec,Telephone Rental,4451
http://statistics.data.gov.uk/id/local-authority/47UD,Redditch Borough Council,18/01/2013,177520,UU0942758,0.09,Gamma Business Communications Ltd,5650,Executive Director Lec,Telephone Calls,4452
http://statistics.data.gov.uk/id/local-authority/47UD,Redditch Borough Council,18/01/2013,177520,UU0942758,14.00,Gamma Business Communications Ltd,5650,Executive Director Lec,Telephone Rental,4451
http://statistics.data.gov.uk/id/local-authority/47UD,Redditch Borough Council,18/01/2013,177520,UU0942758,0.56,Gamma Business Communications Ltd,5650,Executive Director Lec,Telephone Calls,4452
http://statistics.data.gov.uk/id/local-authority/47UD,Redditch Borough Council,18/01/2013,177520,UU0942758,14.00,Gamma Business Communications Ltd,5650,Executive Director Lec,Telephone Rental,4451
http://statistics.data.gov.uk/id/local-authority/47UD,Redditch Borough Council,18/01/2013,177520,UU0942758,10.70,Gamma Business Communications Ltd,5650,Chief Executive,Telephone Rental,4451
http://statistics.data.gov.uk/id/local-authority/47UD,Redditch Borough Council,18/01/2013,177520,UU0942758,0.33,Gamma Business Communications Ltd,5650,Executive Director Lec,Telephone Calls,4452
http://statistics.data.gov.uk/id/local-authority/47UD,Redditch Borough Council,18/01/2013,177520,UU0942758,14.00,Gamma Business Communications Ltd,5650,Executive Director Lec,Telephone Rental,4451
http://statistics.data.gov.uk/id/local-authority/47UD,Redditch Borough Council,18/01/2013,177520,UU0942758,0.77,Gamma Business Communications Ltd,5650,Executive Director Lec,Telephone Calls,4452
http://statistics.data.gov.uk/id/local-authority/47UD,Redditch Borough Council,18/01/2013,177520,UU0942758,14.00,Gamma Business Communications Ltd,5650,Executive Director Lec,Telephone Rental,4451
http://statistics.data.gov.uk/id/local-authority/47UD,Redditch Borough Council,18/01/2013,177520,UU0942758,0.38,Gamma Business Communications Ltd,5650,Executive Director Lec,Telephone Calls,4452
http://statistics.data.gov.uk/id/local-authority/47UD,Redditch Borough Council,18/01/2013,177520,UU0942758,10.70,Gamma Business Communications Ltd,5650,Executive Director Lec,Telephone Rental,4451
http://statistics.data.gov.uk/id/local-authority/47UD,Redditch Borough Council,18/01/2013,177520,UU0942758,10.70,Gamma Business Communications Ltd,5650,Chief Executive,Telephone Rental,4451
http://statistics.data.gov.uk/id/local-authority/47UD,Redditch Borough Council,18/01/2013,177520,UU0942758,10.70,Gamma Business Communications Ltd,5650,Chief Executive,Telephone Rental,4451
http://statistics.data.gov.uk/id/local-authority/47UD,Redditch Borough Council,18/01/2013,177520,UU0942758,10.70,Gamma Business Communications Ltd,5650,Chief Executive,Telephone Rental,4451
http://statistics.data.gov.uk/id/local-authority/47UD,Redditch Borough Council,18/01/2013,177520,UU0942758,10.70,Gamma Business Communications Ltd,5650,Chief Executive,Telephone Rental,4451
http://statistics.data.gov.uk/id/local-authority/47UD,Redditch Borough Council,18/01/2013,177520,UU0942758,33.65,Gamma Business Communications Ltd,5650,Executive Director Lec,Telephone Rental,4451
http://statistics.data.gov.uk/id/local-authority/47UD,Redditch Borough Council,18/01/2013,177520,UU0942758,10.70,Gamma Business Communications Ltd,5650,Executive Director Lec,Telephone Rental,4451
http://statistics.data.gov.uk/id/local-authority/47UD,Redditch Borough Council,18/01/2013,177520,UU0942758,0.90,Gamma Business Communications Ltd,5650,Executive Director Lec,Telephone Calls,4452
http://statistics.data.gov.uk/id/local-authority/47UD,Redditch Borough Council,18/01/2013,177520,UU0942758,10.70,Gamma Business Communications Ltd,5650,Executive Director Lec,Telephone Rental,4451
http://statistics.data.gov.uk/id/local-authority/47UD,Redditch Borough Council,18/01/2013,177520,UU0942758,10.70,Gamma Business Communications Ltd,5650,Executive Director Lec,Telephone Rental,4451
http://statistics.data.gov.uk/id/local-authority/47UD,Redditch Borough Council,18/01/2013,177520,UU0942758,10.70,Gamma Business Communications Ltd,5650,Executive Director Lec,Telephone Rental,4451
http://statistics.data.gov.uk/id/local-authority/47UD,Redditch Borough Council,18/01/2013,177520,UU0942758,2.91,Gamma Business Communications Ltd,5650,Executive Director Lec,Telephone Calls,4452
http://statistics.data.gov.uk/id/local-authority/47UD,Redditch Borough Council,18/01/2013,177520,UU0942758,18.92,Gamma Business Communications Ltd,5650,Executive Director Lec,Telephone Rental,4451
http://statistics.data.gov.uk/id/local-authority/47UD,Redditch Borough Council,18/01/2013,177520,UU0942758,0.46,Gamma Business Communications Ltd,5650,Executive Director Lec,Telephone Calls,4452
http://statistics.data.gov.uk/id/local-authority/47UD,Redditch Borough Council,18/01/2013,177520,UU0942758,14.00,Gamma Business Communications Ltd,5650,Executive Director Lec,Telephone Rental,4451
http://statistics.data.gov.uk/id/local-authority/47UD,Redditch Borough Council,18/01/2013,177520,UU0942758,0.61,Gamma Business Communications Ltd,5650,Executive Director Lec,Telephone Calls,4452
http://statistics.data.gov.uk/id/local-authority/47UD,Redditch Borough Council,18/01/2013,177520,UU0942758,14.00,Gamma Business Communications Ltd,5650,Executive Director Lec,Telephone Rental,4451
http://statistics.data.gov.uk/id/local-authority/47UD,Redditch Borough Council,18/01/2013,177520,UU0942758,0.23,Gamma Business Communications Ltd,5650,Executive Director Lec,Telephone Calls,4452
http://statistics.data.gov.uk/id/local-authority/47UD,Redditch Borough Council,18/01/2013,177520,UU0942758,14.00,Gamma Business Communications Ltd,5650,Executive Director Lec,Telephone Rental,4451
http://statistics.data.gov.uk/id/local-authority/47UD,Redditch Borough Council,18/01/2013,177520,UU0942758,0.10,Gamma Business Communications Ltd,5650,Executive Director Lec,Telephone Calls,4452
http://statistics.data.gov.uk/id/local-authority/47UD,Redditch Borough Council,18/01/2013,177520,UU0942758,14.00,Gamma Business Communications Ltd,5650,Executive Director Lec,Telephone Rental,4451
http://statistics.data.gov.uk/id/local-authority/47UD,Redditch Borough Council,18/01/2013,177520,UU0942758,0.00,Gamma Business Communications Ltd,5650,Executive Director Lec,Telephone Calls,4452
http://statistics.data.gov.uk/id/local-authority/47UD,Redditch Borough Council,18/01/2013,177520,UU0942758,14.00,Gamma Business Communications Ltd,5650,Executive Director Lec,Telephone Rental,4451
http://statistics.data.gov.uk/id/local-authority/47UD,Redditch Borough Council,25/01/2013,177768,V00876813728,"1,203.45",Everything Everywhere Ltd,5658,Exec. Director Fin. & Resource,Mobile Phone,4455
http://statistics.data.gov.uk/id/local-authority/47UD,Redditch Borough Council,25/01/2013,177769,V00860640939,"1,198.38",Everything Everywhere Ltd,5658,Exec. Director Fin. & Resource,Mobile Phone,4455
http://statistics.data.gov.uk/id/local-authority/47UD,Redditch Borough Council,11/01/2013,176902,1294623,26.45,Kiddivouchers,5766,Exec. Director Fin. & Resource,Misc. Expenses,4730
http://statistics.data.gov.uk/id/local-authority/47UD,Redditch Borough Council,11/01/2013,176902,1294623,"2,645.00",Kiddivouchers,5766,Payroll Control,Payments Over -Current Year,2921
http://statistics.data.gov.uk/id/local-authority/47UD,Redditch Borough Council,04/01/2013,173047,91234019,"2,489.42",Northgate Information Solutions Ltd,577,Exec. Director Fin. & Resource,Software Maintenance,4503
http://statistics.data.gov.uk/id/local-authority/47UD,Redditch Borough Council,04/01/2013,173048,91234018,"1,417.96",Northgate Information Solutions Ltd,577,Exec. Director Fin. & Resource,Software Maintenance,4503
http://statistics.data.gov.uk/id/local-authority/47UD,Redditch Borough Council,04/01/2013,173049,91234017,708.97,Northgate Information Solutions Ltd,577,Exec. Director Fin. & Resource,Software Maintenance,4503
http://statistics.data.gov.uk/id/local-authority/47UD,Redditch Borough Council,18/01/2013,174005,91236658,"3,396.66",Northgate Information Solutions Ltd,577,Housing Revenue Account,Software Maintenance,4503
http://statistics.data.gov.uk/id/local-authority/47UD,Redditch Borough Council,11/01/2013,176653,8927,"3,520.00",Trash Uk Limited,5787,Executive Director Lec,Contract Hire,3850
http://statistics.data.gov.uk/id/local-authority/47UD,Redditch Borough Council,11/01/2013,176654,8929,"3,680.00",Trash Uk Limited,5787,Executive Director Lec,Contract Hire,3850
http://statistics.data.gov.uk/id/local-authority/47UD,Redditch Borough Council,11/01/2013,176576,I-0187026,908.40,Zoggs Retail,5823,Executive Director Lec,Purchases For Resale,4050
http://statistics.data.gov.uk/id/local-authority/47UD,Redditch Borough Council,21/01/2013,177680,STLTG3070564,6.47,Laser,5837,Executive Director Lec,Electricity,3300
http://statistics.data.gov.uk/id/local-authority/47UD,Redditch Borough Council,21/01/2013,177680,STLTG3070564,2.09,Laser,5837,Executive Director Lec,Electricity,3300
http://statistics.data.gov.uk/id/local-authority/47UD,Redditch Borough Council,21/01/2013,177680,STLTG3070564,213.13,Laser,5837,Executive Director Lec,Electricity,3300
http://statistics.data.gov.uk/id/local-authority/47UD,Redditch Borough Council,21/01/2013,177680,STLTG3070564,1.19,Laser,5837,Executive Director Lec,Electricity,3300
http://statistics.data.gov.uk/id/local-authority/47UD,Redditch Borough Council,21/01/2013,177680,STLTG3070564,48.87,Laser,5837,Executive Director Lec,Electricity,3300
http://statistics.data.gov.uk/id/local-authority/47UD,Redditch Borough Council,21/01/2013,177680,STLTG3070564,123.39,Laser,5837,Executive Director Lec,Electricity,3300
http://statistics.data.gov.uk/id/local-authority/47UD,Redditch Borough Council,21/01/2013,177680,STLTG3070564,257.58,Laser,5837,Executive Director Lec,Electricity,3300
http://statistics.data.gov.uk/id/local-authority/47UD,Redditch Borough Council,21/01/2013,177680,STLTG3070564,169.94,Laser,5837,Executive Director Lec,Electricity,3300
http://statistics.data.gov.uk/id/local-authority/47UD,Redditch Borough Council,21/01/2013,177680,STLTG3070564,0.75,Laser,5837,Executive Director Lec,Electricity,3300
http://statistics.data.gov.uk/id/local-authority/47UD,Redditch Borough Council,21/01/2013,177680,STLTG3070564,203.46,Laser,5837,Housing Revenue Account,Electricity,3300
http://statistics.data.gov.uk/id/local-authority/47UD,Redditch Borough Council,21/01/2013,177687,E3070562,-7.22,Laser,5837,Housing Revenue Account,Electricity,3300
http://statistics.data.gov.uk/id/local-authority/47UD,Redditch Borough Council,21/01/2013,177687,E3070562,"1,820.10",Laser,5837,Executive Director Lec,Electricity,3300
http://statistics.data.gov.uk/id/local-authority/47UD,Redditch Borough Council,21/01/2013,177687,E3070562,"-3,154.16",Laser,5837,Housing Revenue Account,Electricity,3300
http://statistics.data.gov.uk/id/local-authority/47UD,Redditch Borough Council,21/01/2013,177687,E3070562,15.20,Laser,5837,Housing Revenue Account,Electricity,3300
http://statistics.data.gov.uk/id/local-authority/47UD,Redditch Borough Council,21/01/2013,177687,E3070562,93.16,Laser,5837,Housing Revenue Account,Electricity,3300
http://statistics.data.gov.uk/id/local-authority/47UD,Redditch Borough Council,21/01/2013,177687,E3070562,"2,185.33",Laser,5837,Executive Director Lec,Electricity,3300
http://statistics.data.gov.uk/id/local-authority/47UD,Redditch Borough Council,21/01/2013,177687,E3070562,119.76,Laser,5837,Housing Revenue Account,Electricity,3300
http://statistics.data.gov.uk/id/local-authority/47UD,Redditch Borough Council,21/01/2013,177687,E3070562,115.33,Laser,5837,Housing Revenue Account,Electricity,3300
http://statistics.data.gov.uk/id/local-authority/47UD,Redditch Borough Council,21/01/2013,177687,E3070562,-198.87,Laser,5837,Housing Revenue Account,Electricity,3300
http://statistics.data.gov.uk/id/local-authority/47UD,Redditch Borough Council,21/01/2013,177687,E3070562,148.10,Laser,5837,Exec. Director Fin. & Resource,Electricity,3300
http://statistics.data.gov.uk/id/local-authority/47UD,Redditch Borough Council,21/01/2013,177687,E3070562,24.11,Laser,5837,Exec. Director Fin. & Resource,Electricity,3300
http://statistics.data.gov.uk/id/local-authority/47UD,Redditch Borough Council,21/01/2013,177687,E3070562,79.96,Laser,5837,Executive Director Lec,Electricity,3300
http://statistics.data.gov.uk/id/local-authority/47UD,Redditch Borough Council,21/01/2013,177687,E3070562,-369.71,Laser,5837,Housing Revenue Account,Electricity,3300
http://statistics.data.gov.uk/id/local-authority/47UD,Redditch Borough Council,21/01/2013,177687,E3070562,951.89,Laser,5837,Housing Revenue Account,Electricity,3300
http://statistics.data.gov.uk/id/local-authority/47UD,Redditch Borough Council,21/01/2013,177687,E3070562,32.19,Laser,5837,Housing Revenue Account,Electricity,3300
http://statistics.data.gov.uk/id/local-authority/47UD,Redditch Borough Council,21/01/2013,177687,E3070562,699.40,Laser,5837,Exec. Director Prrh,Electricity,3300
http://statistics.data.gov.uk/id/local-authority/47UD,Redditch Borough Council,21/01/2013,177687,E3070562,10.95,Laser,5837,Executive Director Lec,Electricity,3300
http://statistics.data.gov.uk/id/local-authority/47UD,Redditch Borough Council,21/01/2013,177687,E3070562,-851.15,Laser,5837,Housing Revenue Account,Electricity,3300
http://statistics.data.gov.uk/id/local-authority/47UD,Redditch Borough Council,21/01/2013,177687,E3070562,52.63,Laser,5837,Housing Revenue Account,Electricity,3300
http://statistics.data.gov.uk/id/local-authority/47UD,Redditch Borough Council,21/01/2013,177687,E3070562,"8,791.06",Laser,5837,Executive Director Lec,Electricity,3300
http://statistics.data.gov.uk/id/local-authority/47UD,Redditch Borough Council,21/01/2013,177687,E3070562,0.43,Laser,5837,Housing Revenue Account,Electricity,3300
http://statistics.data.gov.uk/id/local-authority/47UD,Redditch Borough Council,21/01/2013,177687,E3070562,187.61,Laser,5837,Housing Revenue Account,Electricity,3300
http://statistics.data.gov.uk/id/local-authority/47UD,Redditch Borough Council,21/01/2013,177687,E3070562,63.34,Laser,5837,Housing Revenue Account,Electricity,3300
http://statistics.data.gov.uk/id/local-authority/47UD,Redditch Borough Council,21/01/2013,177687,E3070562,89.37,Laser,5837,Housing Revenue Account,Electricity,3300
http://statistics.data.gov.uk/id/local-authority/47UD,Redditch Borough Council,21/01/2013,177687,E3070562,-0.36,Laser,5837,Executive Director Lec,Electricity,3300
http://statistics.data.gov.uk/id/local-authority/47UD,Redditch Borough Council,21/01/2013,177687,E3070562,18.27,Laser,5837,Housing Revenue Account,Electricity,3300
http://statistics.data.gov.uk/id/local-authority/47UD,Redditch Borough Council,21/01/2013,177687,E3070562,334.34,Laser,5837,Exec. Director Fin. & Resource,Electricity,3300
http://statistics.data.gov.uk/id/local-authority/47UD,Redditch Borough Council,21/01/2013,177687,E3070562,-58.78,Laser,5837,Exec. Director Fin. & Resource,Electricity,3300
http://statistics.data.gov.uk/id/local-authority/47UD,Redditch Borough Council,21/01/2013,177687,E3070562,44.51,Laser,5837,Housing Revenue Account,Electricity,3300
http://statistics.data.gov.uk/id/local-authority/47UD,Redditch Borough Council,21/01/2013,177687,E3070562,507.32,Laser,5837,Executive Director Lec,Electricity,3300
http://statistics.data.gov.uk/id/local-authority/47UD,Redditch Borough Council,21/01/2013,177687,E3070562,3.86,Laser,5837,Housing Revenue Account,Electricity,3300
http://statistics.data.gov.uk/id/local-authority/47UD,Redditch Borough Council,21/01/2013,177687,E3070562,17.76,Laser,5837,Housing Revenue Account,Electricity,3300
http://statistics.data.gov.uk/id/local-authority/47UD,Redditch Borough Council,21/01/2013,177687,E3070562,164.46,Laser,5837,Housing Revenue Account,Electricity,3300
http://statistics.data.gov.uk/id/local-authority/47UD,Redditch Borough Council,21/01/2013,177687,E3070562,494.82,Laser,5837,Executive Director Lec,Electricity,3300
http://statistics.data.gov.uk/id/local-authority/47UD,Redditch Borough Council,21/01/2013,177687,E3070562,"1,110.75",Laser,5837,Executive Director Lec,Electricity,3300
http://statistics.data.gov.uk/id/local-authority/47UD,Redditch Borough Council,21/01/2013,177687,E3070562,20.77,Laser,5837,Housing Revenue Account,Electricity,3300
http://statistics.data.gov.uk/id/local-authority/47UD,Redditch Borough Council,21/01/2013,177687,E3070562,152.76,Laser,5837,Exec. Director Fin. & Resource,Electricity,3300
http://statistics.data.gov.uk/id/local-authority/47UD,Redditch Borough Council,21/01/2013,177687,E3070562,168.58,Laser,5837,Housing Revenue Account,Electricity,3300
http://statistics.data.gov.uk/id/local-authority/47UD,Redditch Borough Council,21/01/2013,177687,E3070562,15.44,Laser,5837,Housing Revenue Account,Electricity,3300
http://statistics.data.gov.uk/id/local-authority/47UD,Redditch Borough Council,21/01/2013,177687,E3070562,13.98,Laser,5837,Housing Revenue Account,Electricity,3300
http://statistics.data.gov.uk/id/local-authority/47UD,Redditch Borough Council,21/01/2013,177687,E3070562,18.34,Laser,5837,Housing Revenue Account,Electricity,3300
http://statistics.data.gov.uk/id/local-authority/47UD,Redditch Borough Council,21/01/2013,177687,E3070562,-9.47,Laser,5837,Housing Revenue Account,Electricity,3300
http://statistics.data.gov.uk/id/local-authority/47UD,Redditch Borough Council,21/01/2013,177687,E3070562,13.78,Laser,5837,Housing Revenue Account,Electricity,3300
http://statistics.data.gov.uk/id/local-authority/47UD,Redditch Borough Council,21/01/2013,177687,E3070562,"2,216.72",Laser,5837,Housing Revenue Account,Electricity,3300
http://statistics.data.gov.uk/id/local-authority/47UD,Redditch Borough Council,21/01/2013,177687,E3070562,514.07,Laser,5837,Exec. Director Fin. & Resource,Electricity,3300
http://statistics.data.gov.uk/id/local-authority/47UD,Redditch Borough Council,21/01/2013,177687,E3070562,"6,400.84",Laser,5837,Exec. Director Fin. & Resource,Electricity,3300
http://statistics.data.gov.uk/id/local-authority/47UD,Redditch Borough Council,21/01/2013,177687,E3070562,8.72,Laser,5837,Housing Revenue Account,Electricity,3300
http://statistics.data.gov.uk/id/local-authority/47UD,Redditch Borough Council,21/01/2013,177687,E3070562,310.42,Laser,5837,Executive Director Lec,Electricity,3300
http://statistics.data.gov.uk/id/local-authority/47UD,Redditch Borough Council,21/01/2013,177687,E3070562,97.40,Laser,5837,Housing Revenue Account,Electricity,3300
http://statistics.data.gov.uk/id/local-authority/47UD,Redditch Borough Council,21/01/2013,177687,E3070562,122.51,Laser,5837,Housing Revenue Account,Electricity,3300
http://statistics.data.gov.uk/id/local-authority/47UD,Redditch Borough Council,21/01/2013,177687,E3070562,380.98,Laser,5837,Exec. Director Fin. & Resource,Electricity,3300
http://statistics.data.gov.uk/id/local-authority/47UD,Redditch Borough Council,21/01/2013,177689,G3070563,240.00,Laser,5837,Executive Director Lec,Gas,3301
http://statistics.data.gov.uk/id/local-authority/47UD,Redditch Borough Council,21/01/2013,177689,G3070563,451.62,Laser,5837,Housing Revenue Account,Gas,3301
http://statistics.data.gov.uk/id/local-authority/47UD,Redditch Borough Council,21/01/2013,177689,G3070563,191.18,Laser,5837,Executive Director Lec,Gas,3301
http://statistics.data.gov.uk/id/local-authority/47UD,Redditch Borough Council,21/01/2013,177689,G3070563,246.93,Laser,5837,Exec. Director Fin. & Resource,Gas,3301
http://statistics.data.gov.uk/id/local-authority/47UD,Redditch Borough Council,21/01/2013,177689,G3070563,124.43,Laser,5837,Housing Revenue Account,Gas,3301
http://statistics.data.gov.uk/id/local-authority/47UD,Redditch Borough Council,21/01/2013,177689,G3070563,828.15,Laser,5837,Housing Revenue Account,Gas,3301
http://statistics.data.gov.uk/id/local-authority/47UD,Redditch Borough Council,21/01/2013,177689,G3070563,34.02,Laser,5837,Housing Revenue Account,Gas,3301
http://statistics.data.gov.uk/id/local-authority/47UD,Redditch Borough Council,21/01/2013,177689,G3070563,637.13,Laser,5837,Executive Director Lec,Gas,3301
http://statistics.data.gov.uk/id/local-authority/47UD,Redditch Borough Council,21/01/2013,177689,G3070563,45.32,Laser,5837,Housing Revenue Account,Gas,3301
http://statistics.data.gov.uk/id/local-authority/47UD,Redditch Borough Council,21/01/2013,177689,G3070563,"2,231.18",Laser,5837,Executive Director Lec,Gas,3301
http://statistics.data.gov.uk/id/local-authority/47UD,Redditch Borough Council,21/01/2013,177689,G3070563,"2,837.97",Laser,5837,Exec. Director Fin. & Resource,Gas,3301
http://statistics.data.gov.uk/id/local-authority/47UD,Redditch Borough Council,21/01/2013,177689,G3070563,"1,444.14",Laser,5837,Exec. Director Prrh,Gas,3301
http://statistics.data.gov.uk/id/local-authority/47UD,Redditch Borough Council,21/01/2013,177689,G3070563,108.69,Laser,5837,Housing Revenue Account,Gas,3301
http://statistics.data.gov.uk/id/local-authority/47UD,Redditch Borough Council,21/01/2013,177689,G3070563,870.91,Laser,5837,Exec. Director Prrh,Gas,3301
http://statistics.data.gov.uk/id/local-authority/47UD,Redditch Borough Council,21/01/2013,177689,G3070563,41.68,Laser,5837,Housing Revenue Account,Gas,3301
http://statistics.data.gov.uk/id/local-authority/47UD,Redditch Borough Council,21/01/2013,177689,G3070563,69.05,Laser,5837,Executive Director Lec,Gas,3301
http://statistics.data.gov.uk/id/local-authority/47UD,Redditch Borough Council,21/01/2013,177689,G3070563,34.75,Laser,5837,Housing Revenue Account,Gas,3301
http://statistics.data.gov.uk/id/local-authority/47UD,Redditch Borough Council,21/01/2013,177689,G3070563,51.89,Laser,5837,Housing Revenue Account,Gas,3301
http://statistics.data.gov.uk/id/local-authority/47UD,Redditch Borough Council,21/01/2013,177689,G3070563,"1,330.54",Laser,5837,Housing Revenue Account,Gas,3301
http://statistics.data.gov.uk/id/local-authority/47UD,Redditch Borough Council,21/01/2013,177689,G3070563,242.51,Laser,5837,Executive Director Lec,Gas,3301
http://statistics.data.gov.uk/id/local-authority/47UD,Redditch Borough Council,21/01/2013,177689,G3070563,"1,472.48",Laser,5837,Housing Revenue Account,Gas,3301
http://statistics.data.gov.uk/id/local-authority/47UD,Redditch Borough Council,21/01/2013,177689,G3070563,268.77,Laser,5837,Executive Director Lec,Gas,3301
http://statistics.data.gov.uk/id/local-authority/47UD,Redditch Borough Council,21/01/2013,177689,G3070563,356.47,Laser,5837,Executive Director Lec,Gas,3301
http://statistics.data.gov.uk/id/local-authority/47UD,Redditch Borough Council,21/01/2013,177689,G3070563,58.69,Laser,5837,Exec. Director Fin. & Resource,Gas,3301
http://statistics.data.gov.uk/id/local-authority/47UD,Redditch Borough Council,21/01/2013,177689,G3070563,943.34,Laser,5837,Executive Director Lec,Gas,3301
http://statistics.data.gov.uk/id/local-authority/47UD,Redditch Borough Council,21/01/2013,177689,G3070563,67.80,Laser,5837,Exec. Director Fin. & Resource,Gas,3301
http://statistics.data.gov.uk/id/local-authority/47UD,Redditch Borough Council,21/01/2013,177689,G3070563,76.56,Laser,5837,Housing Revenue Account,Gas,3301
http://statistics.data.gov.uk/id/local-authority/47UD,Redditch Borough Council,21/01/2013,177689,G3070563,"1,552.08",Laser,5837,Exec. Director Prrh,Gas,3301
http://statistics.data.gov.uk/id/local-authority/47UD,Redditch Borough Council,21/01/2013,177689,G3070563,"2,109.52",Laser,5837,Housing Revenue Account,Gas,3301
http://statistics.data.gov.uk/id/local-authority/47UD,Redditch Borough Council,21/01/2013,177689,G3070563,"1,040.78",Laser,5837,Exec. Director Fin. & Resource,Gas,3301
http://statistics.data.gov.uk/id/local-authority/47UD,Redditch Borough Council,21/01/2013,177689,G3070563,"2,751.76",Laser,5837,Exec. Director Fin. & Resource,Gas,3301
http://statistics.data.gov.uk/id/local-authority/47UD,Redditch Borough Council,21/01/2013,177689,G3070563,178.15,Laser,5837,Executive Director Lec,Gas,3301
http://statistics.data.gov.uk/id/local-authority/47UD,Redditch Borough Council,21/01/2013,177689,G3070563,242.51,Laser,5837,Executive Director Lec,Gas,3301
http://statistics.data.gov.uk/id/local-authority/47UD,Redditch Borough Council,21/01/2013,177689,G3070563,2.70,Laser,5837,Exec. Director Fin. & Resource,Gas,3301
http://statistics.data.gov.uk/id/local-authority/47UD,Redditch Borough Council,21/01/2013,177689,G3070563,70.38,Laser,5837,Exec. Director Fin. & Resource,Gas,3301
http://statistics.data.gov.uk/id/local-authority/47UD,Redditch Borough Council,21/01/2013,177689,G3070563,160.50,Laser,5837,Executive Director Lec,Gas,3301
http://statistics.data.gov.uk/id/local-authority/47UD,Redditch Borough Council,21/01/2013,177689,G3070563,250.48,Laser,5837,Exec. Director Fin. & Resource,Gas,3301
http://statistics.data.gov.uk/id/local-authority/47UD,Redditch Borough Council,04/01/2013,176732,55 SANDHURST CL,498.33,Fit It Flooring Ltd,5847,Exec. Director Prrh,Operational Equip- Purchase,4150
http://statistics.data.gov.uk/id/local-authority/47UD,Redditch Borough Council,18/01/2013,176920,DRBGM3745,520.00,Drb Facilities Management Ltd,5883,Rbc Balance Sheet,Contract Payments,8131
http://statistics.data.gov.uk/id/local-authority/47UD,Redditch Borough Council,18/01/2013,176922,DRBGM3744,730.00,Drb Facilities Management Ltd,5883,Rbc Balance Sheet,Contract Payments,8131
http://statistics.data.gov.uk/id/local-authority/47UD,Redditch Borough Council,18/01/2013,176925,DRBGM3743,480.00,Drb Facilities Management Ltd,5883,Rbc Balance Sheet,Contract Payments,8131
http://statistics.data.gov.uk/id/local-authority/47UD,Redditch Borough Council,25/01/2013,177366,10808,588.00,Wychavon Leisure Community Association,5911,Executive Director Lec,Hire Of Premises,3351
http://statistics.data.gov.uk/id/local-authority/47UD,Redditch Borough Council,11/01/2013,176395,141917,926.95,Morris Mica Hardware,595,Crossgate Stocks,Stock Account (Cedar),1201
http://statistics.data.gov.uk/id/local-authority/47UD,Redditch Borough Council,11/01/2013,176401,141915,39.91,Morris Mica Hardware,595,Exec. Director Fin. & Resource,Materials,4170
http://statistics.data.gov.uk/id/local-authority/47UD,Redditch Borough Council,11/01/2013,176401,141915,17.50,Morris Mica Hardware,595,Executive Director Lec,Materials,4170
http://statistics.data.gov.uk/id/local-authority/47UD,Redditch Borough Council,11/01/2013,176401,141915,376.99,Morris Mica Hardware,595,Housing Repairs Account,Materials,4170
http://statistics.data.gov.uk/id/local-authority/47UD,Redditch Borough Council,11/01/2013,176401,141915,32.30,Morris Mica Hardware,595,Housing Repairs Account,Operational Equip- Purchase,4150
http://statistics.data.gov.uk/id/local-authority/47UD,Redditch Borough Council,11/01/2013,176401,141915,149.64,Morris Mica Hardware,595,Housing Repairs Account,Materials,4170
http://statistics.data.gov.uk/id/local-authority/47UD,Redditch Borough Council,11/01/2013,176401,141915,75.45,Morris Mica Hardware,595,Housing Repairs Account,Materials,4170
http://statistics.data.gov.uk/id/local-authority/47UD,Redditch Borough Council,11/01/2013,176942,142151,0.00,Morris Mica Hardware,595,Crossgate Stocks,Stock Account (Cedar),1201
http://statistics.data.gov.uk/id/local-authority/47UD,Redditch Borough Council,11/01/2013,176942,142151,"1,758.29",Morris Mica Hardware,595,Crossgate Stocks,Stock Account (Cedar),1201
http://statistics.data.gov.uk/id/local-authority/47UD,Redditch Borough Council,11/01/2013,176942,142151,0.00,Morris Mica Hardware,595,Crossgate Stocks,Stock Account (Cedar),1201
http://statistics.data.gov.uk/id/local-authority/47UD,Redditch Borough Council,11/01/2013,176942,142151,0.00,Morris Mica Hardware,595,Crossgate Stocks,Stock Account (Cedar),1201
http://statistics.data.gov.uk/id/local-authority/47UD,Redditch Borough Council,25/01/2013,176112,I01121217613,"1,500.00",S Jones Container Services Ltd,5959,Housing Repairs Account,Operational Equip- Purchase,4150
http://statistics.data.gov.uk/id/local-authority/47UD,Redditch Borough Council,11/01/2013,176529,612238,511.50,Morgan Hunt Recruitment,596,Exec. Director Fin. & Resource,Agency Staff,3020
http://statistics.data.gov.uk/id/local-authority/47UD,Redditch Borough Council,18/01/2013,177246,101,864.00,Alan Bugg Carpenter And Joiner,5983,Executive Director Lec,Professional Fees,4352
http://statistics.data.gov.uk/id/local-authority/47UD,Redditch Borough Council,25/01/2013,177788,JAN-13,379.00,National Westminster Bank Plc,6015,Exec. Director Fin. & Resource,Training,3043
http://statistics.data.gov.uk/id/local-authority/47UD,Redditch Borough Council,25/01/2013,177788,JAN-13,250.82,National Westminster Bank Plc,6015,Executive Director Lec,Recreational Equip - Purchase,4100
http://statistics.data.gov.uk/id/local-authority/47UD,Redditch Borough Council,25/01/2013,177788,JAN-13,300.80,National Westminster Bank Plc,6015,Executive Director Lec,Recreational Equip - Purchase,4100
http://statistics.data.gov.uk/id/local-authority/47UD,Redditch Borough Council,25/01/2013,177788,JAN-13,235.80,National Westminster Bank Plc,6015,Exec. Director Prrh,Temporary Accomodation,4557
http://statistics.data.gov.uk/id/local-authority/47UD,Redditch Borough Council,25/01/2013,177788,JAN-13,51.00,National Westminster Bank Plc,6015,Executive Director Lec,Operational Equip- Purchase,4150
http://statistics.data.gov.uk/id/local-authority/47UD,Redditch Borough Council,25/01/2013,177788,JAN-13,33.99,National Westminster Bank Plc,6015,Executive Director Lec,Operational Equip- Purchase,4150
http://statistics.data.gov.uk/id/local-authority/47UD,Redditch Borough Council,25/01/2013,177788,JAN-13,140.00,National Westminster Bank Plc,6015,Executive Director Lec,Recreational Equip - Purchase,4100
http://statistics.data.gov.uk/id/local-authority/47UD,Redditch Borough Council,25/01/2013,177788,JAN-13,151.00,National Westminster Bank Plc,6015,Exec. Director Fin. & Resource,Employee Subscription,3041
http://statistics.data.gov.uk/id/local-authority/47UD,Redditch Borough Council,25/01/2013,177788,JAN-13,75.00,National Westminster Bank Plc,6015,Housing Revenue Account,Legal Fees,4350
http://statistics.data.gov.uk/id/local-authority/47UD,Redditch Borough Council,25/01/2013,177788,JAN-13,78.32,National Westminster Bank Plc,6015,Executive Director Lec,Operational Equip- Purchase,4150
http://statistics.data.gov.uk/id/local-authority/47UD,Redditch Borough Council,25/01/2013,177788,JAN-13,52.50,National Westminster Bank Plc,6015,Exec. Director Prrh,Temporary Accomodation,4557
http://statistics.data.gov.uk/id/local-authority/47UD,Redditch Borough Council,25/01/2013,177788,JAN-13,30.81,National Westminster Bank Plc,6015,Executive Director Lec,Operational Equip- Purchase,4150
http://statistics.data.gov.uk/id/local-authority/47UD,Redditch Borough Council,25/01/2013,177788,JAN-13,124.39,National Westminster Bank Plc,6015,Surestart Project,Project Work,4733
http://statistics.data.gov.uk/id/local-authority/47UD,Redditch Borough Council,25/01/2013,177788,JAN-13,20.00,National Westminster Bank Plc,6015,Executive Director Lec,Office Consumables,4304
http://statistics.data.gov.uk/id/local-authority/47UD,Redditch Borough Council,25/01/2013,177788,JAN-13,32.42,National Westminster Bank Plc,6015,Executive Director Lec,Recreational Equip - Purchase,4100
http://statistics.data.gov.uk/id/local-authority/47UD,Redditch Borough Council,25/01/2013,177788,JAN-13,10.00,National Westminster Bank Plc,6015,Executive Director Lec,Office Consumables,4304
http://statistics.data.gov.uk/id/local-authority/47UD,Redditch Borough Council,25/01/2013,177788,JAN-13,52.91,National Westminster Bank Plc,6015,Executive Director Lec,Recreational Equip - Purchase,4100
http://statistics.data.gov.uk/id/local-authority/47UD,Redditch Borough Council,25/01/2013,177788,JAN-13,259.42,National Westminster Bank Plc,6015,Exec. Director Prrh,Temporary Accomodation,4557
http://statistics.data.gov.uk/id/local-authority/47UD,Redditch Borough Council,25/01/2013,177788,JAN-13,15.97,National Westminster Bank Plc,6015,Executive Director Lec,Office Consumables,4304
http://statistics.data.gov.uk/id/local-authority/47UD,Redditch Borough Council,25/01/2013,177788,JAN-13,2.36,National Westminster Bank Plc,6015,Executive Director Lec,Office Consumables,4304
http://statistics.data.gov.uk/id/local-authority/47UD,Redditch Borough Council,25/01/2013,177788,JAN-13,10.00,National Westminster Bank Plc,6015,Executive Director Lec,Office Consumables,4304
http://statistics.data.gov.uk/id/local-authority/47UD,Redditch Borough Council,25/01/2013,177788,JAN-13,82.00,National Westminster Bank Plc,6015,Exec. Director Fin. & Resource,Training,3043
http://statistics.data.gov.uk/id/local-authority/47UD,Redditch Borough Council,25/01/2013,177788,JAN-13,265.00,National Westminster Bank Plc,6015,Exec. Director Fin. & Resource,Employee Subscription,3041
http://statistics.data.gov.uk/id/local-authority/47UD,Redditch Borough Council,25/01/2013,177788,JAN-13,34.95,National Westminster Bank Plc,6015,Exec. Director Fin. & Resource,Training,3043
http://statistics.data.gov.uk/id/local-authority/47UD,Redditch Borough Council,25/01/2013,177788,JAN-13,31.93,National Westminster Bank Plc,6015,Surestart Project,Office Consumables,4304
http://statistics.data.gov.uk/id/local-authority/47UD,Redditch Borough Council,25/01/2013,177788,JAN-13,652.50,National Westminster Bank Plc,6015,Executive Director Lec,Licencing,3754
http://statistics.data.gov.uk/id/local-authority/47UD,Redditch Borough Council,25/01/2013,177788,JAN-13,217.50,National Westminster Bank Plc,6015,Executive Director Lec,Licencing,3754
http://statistics.data.gov.uk/id/local-authority/47UD,Redditch Borough Council,25/01/2013,177788,JAN-13,480.00,National Westminster Bank Plc,6015,Housing Repairs Account,Contractors,5158
http://statistics.data.gov.uk/id/local-authority/47UD,Redditch Borough Council,25/01/2013,177788,JAN-13,81.95,National Westminster Bank Plc,6015,Housing Repairs Account,Materials,4170
http://statistics.data.gov.uk/id/local-authority/47UD,Redditch Borough Council,11/01/2013,176526,0000091720,534.45,Tynetec Ltd,6016,Executive Director Lec,Operational Equip- Purchase,4150
http://statistics.data.gov.uk/id/local-authority/47UD,Redditch Borough Council,11/01/2013,176526,0000091720,534.45,Tynetec Ltd,6016,Executive Director Lec,Operational Equip- Purchase,4150
http://statistics.data.gov.uk/id/local-authority/47UD,Redditch Borough Council,18/01/2013,177243,2012001,"1,104.00",Ellis John Birt,6020,Executive Director Lec,Professional Fees,4352
http://statistics.data.gov.uk/id/local-authority/47UD,Redditch Borough Council,18/01/2013,177242,281,"1,104.00",Tim Harrison,6021,Executive Director Lec,Professional Fees,4352
http://statistics.data.gov.uk/id/local-authority/47UD,Redditch Borough Council,25/01/2013,176928,130289,"23,690.00",Global Plant Sales Ltd,6028,Rbc Balance Sheet,Vehicles - Purchase,8150
http://statistics.data.gov.uk/id/local-authority/47UD,Redditch Borough Council,04/01/2013,176678,2012-12,410.00,Anne Randles,6041,Executive Director Lec,Casual Staff,3022
http://statistics.data.gov.uk/id/local-authority/47UD,Redditch Borough Council,04/01/2013,176678,2012-12,130.00,Anne Randles,6041,Executive Director Lec,Casual Staff,3022
http://statistics.data.gov.uk/id/local-authority/47UD,Redditch Borough Council,18/01/2013,176881,112808,564.00,Mercia Waste Management,610,Housing Repairs Account,Trade Waste Disposal,5000
http://statistics.data.gov.uk/id/local-authority/47UD,Redditch Borough Council,11/01/2013,177001,112777,47.00,Mercia Waste Management,610,Housing Repairs Account,Trade Waste Disposal,5000
http://statistics.data.gov.uk/id/local-authority/47UD,Redditch Borough Council,11/01/2013,177001,112777,423.00,Mercia Waste Management,610,Housing Repairs Account,Trade Waste Disposal,5000
http://statistics.data.gov.uk/id/local-authority/47UD,Redditch Borough Council,25/01/2013,177758,SLEEPING BEAUTY,"1,104.00",Cameron Walker,6121,Executive Director Lec,Professional Fees,4352
http://statistics.data.gov.uk/id/local-authority/47UD,Redditch Borough Council,25/01/2013,177803,10/01/13,750.00,Solar Pictures,6125,Executive Director Lec,Project Work,4733
http://statistics.data.gov.uk/id/local-authority/47UD,Redditch Borough Council,11/01/2013,174974,680/0034272,678.80,Howdens Joinery Ltd,620,Housing Repairs Account,Materials,4170
http://statistics.data.gov.uk/id/local-authority/47UD,Redditch Borough Council,18/01/2013,174023,6693,"1,795.00",Bhsf Occupational Health Limited,6207,Exec. Director Fin. & Resource,Consultants Fees,4351
http://statistics.data.gov.uk/id/local-authority/47UD,Redditch Borough Council,18/01/2013,176090,6743,"1,835.10",Bhsf Occupational Health Limited,6207,Exec. Director Fin. & Resource,Consultants Fees,4351
http://statistics.data.gov.uk/id/local-authority/47UD,Redditch Borough Council,25/01/2013,177403,40362,"2,066.70",Howard Yarnold Ltd,621,Rbc Balance Sheet,Dlo,8130
http://statistics.data.gov.uk/id/local-authority/47UD,Redditch Borough Council,11/01/2013,176952,47005,"1,027.00",Hilltop Supplies Ltd,628,Crossgate Stocks,Stock Account (Cedar),1201
http://statistics.data.gov.uk/id/local-authority/47UD,Redditch Borough Council,11/01/2013,176952,47005,0.00,Hilltop Supplies Ltd,628,Crossgate Stocks,Stock Account (Cedar),1201
http://statistics.data.gov.uk/id/local-authority/47UD,Redditch Borough Council,11/01/2013,176953,47003,566.00,Hilltop Supplies Ltd,628,Crossgate Stocks,Stock Account (Cedar),1201
http://statistics.data.gov.uk/id/local-authority/47UD,Redditch Borough Council,11/01/2013,176953,47003,0.00,Hilltop Supplies Ltd,628,Crossgate Stocks,Stock Account (Cedar),1201
http://statistics.data.gov.uk/id/local-authority/47UD,Redditch Borough Council,11/01/2013,176953,47003,0.00,Hilltop Supplies Ltd,628,Crossgate Stocks,Stock Account (Cedar),1201
http://statistics.data.gov.uk/id/local-authority/47UD,Redditch Borough Council,18/01/2013,177456,0284,753.99,Hayley Gwilliam,6374,Executive Director Lec,Casual Staff,3022
http://statistics.data.gov.uk/id/local-authority/47UD,Redditch Borough Council,11/01/2013,176591,61858,557.10,Alba Trees Plc,6453,Executive Director Lec,Materials,4170
http://statistics.data.gov.uk/id/local-authority/47UD,Redditch Borough Council,25/01/2013,177347,2820200047,667.50,Waseley Hill High School,6475,Executive Director Lec,Hire Of Premises,3351
http://statistics.data.gov.uk/id/local-authority/47UD,Redditch Borough Council,18/01/2013,177245,50003,"1,104.00",Max Jones,6477,Executive Director Lec,Professional Fees,4352
http://statistics.data.gov.uk/id/local-authority/47UD,Redditch Borough Council,11/01/2013,176460,0213,650.00,John Tolley,6478,Executive Director Lec,Operational Equip- Purchase,4150
http://statistics.data.gov.uk/id/local-authority/47UD,Redditch Borough Council,11/01/2013,177005,9398,"2,479.00",Robert Poole Construction Ltd,6479,Rbc Balance Sheet,Contract Payments,8131
http://statistics.data.gov.uk/id/local-authority/47UD,Redditch Borough Council,11/01/2013,177033,9340,"2,070.50",Robert Poole Construction Ltd,6479,Rbc Balance Sheet,Contract Payments,8131
http://statistics.data.gov.uk/id/local-authority/47UD,Redditch Borough Council,11/01/2013,177034,9379,"2,299.50",Robert Poole Construction Ltd,6479,Rbc Balance Sheet,Contract Payments,8131
http://statistics.data.gov.uk/id/local-authority/47UD,Redditch Borough Council,11/01/2013,176379,01850,410.00,Kingsigns,6482,Executive Director Lec,Materials (Veh),3700
http://statistics.data.gov.uk/id/local-authority/47UD,Redditch Borough Council,11/01/2013,176379,01850,350.00,Kingsigns,6482,Executive Director Lec,Materials (Veh),3700
http://statistics.data.gov.uk/id/local-authority/47UD,Redditch Borough Council,18/01/2013,177255,01859,230.00,Kingsigns,6482,Executive Director Lec,Materials (Veh),3700
http://statistics.data.gov.uk/id/local-authority/47UD,Redditch Borough Council,18/01/2013,177255,01859,240.00,Kingsigns,6482,Executive Director Lec,Materials (Veh),3700
http://statistics.data.gov.uk/id/local-authority/47UD,Redditch Borough Council,11/01/2013,176492,18/091143,448.00,Greenham Trading Limited,650,Crossgate Stocks,Stock Account (Cedar),1201
http://statistics.data.gov.uk/id/local-authority/47UD,Redditch Borough Council,04/01/2013,176737,REFUND,603.00,Birmingham City Council,6530,Executive Director Lec,Sales -Vat,6300
http://statistics.data.gov.uk/id/local-authority/47UD,Redditch Borough Council,25/01/2013,177354,26634,740.00,Total Surveys Ltd,6533,Executive Director Lec,Routine Grounds Maintenance,3200
http://statistics.data.gov.uk/id/local-authority/47UD,Redditch Borough Council,25/01/2013,177327,156,"1,146.00",Redditch Community Amateur Boxing Club,6537,Executive Director Lec,Project Work,4733
http://statistics.data.gov.uk/id/local-authority/47UD,Redditch Borough Council,18/01/2013,177523,40111,217.25,First Service Frozen Foods Ltd,66,Executive Director Lec,Catering Provisions(Vat Exempt,4200
http://statistics.data.gov.uk/id/local-authority/47UD,Redditch Borough Council,18/01/2013,177523,40111,86.90,First Service Frozen Foods Ltd,66,Executive Director Lec,Catering Provisions(Vat Exempt,4200
http://statistics.data.gov.uk/id/local-authority/47UD,Redditch Borough Council,18/01/2013,177523,40111,149.90,First Service Frozen Foods Ltd,66,Executive Director Lec,Catering Provisions(Vat Exempt,4200
http://statistics.data.gov.uk/id/local-authority/47UD,Redditch Borough Council,18/01/2013,176918,PKP0057638,"10,550.75",Wychavon District Council,674,Executive Director Lec,Other Local Authorities,5009
http://statistics.data.gov.uk/id/local-authority/47UD,Redditch Borough Council,11/01/2013,176493,34862,459.00,Danline International Ltd,687,Crossgate Stocks,Stock Account (Cedar),1201
http://statistics.data.gov.uk/id/local-authority/47UD,Redditch Borough Council,25/01/2013,177853,DFG/9300,-242.50,D J Gwilt,694,Executive Director Lec,Administration Fee,6364
http://statistics.data.gov.uk/id/local-authority/47UD,Redditch Borough Council,25/01/2013,177853,DFG/9300,"2,647.50",D J Gwilt,694,Rbc Balance Sheet,Disabled Facilities Grant,8701
http://statistics.data.gov.uk/id/local-authority/47UD,Redditch Borough Council,25/01/2013,177854,DFG/9831,-314.00,D J Gwilt,694,Executive Director Lec,Administration Fee,6364
http://statistics.data.gov.uk/id/local-authority/47UD,Redditch Borough Council,25/01/2013,177854,DFG/9831,"3,424.00",D J Gwilt,694,Rbc Balance Sheet,Disabled Facilities Grant,8701
http://statistics.data.gov.uk/id/local-authority/47UD,Redditch Borough Council,25/01/2013,177855,DFG/4426,-385.80,D J Gwilt,694,Executive Director Lec,Administration Fee,6364
http://statistics.data.gov.uk/id/local-authority/47UD,Redditch Borough Council,25/01/2013,177855,DFG/4426,"1,773.67",D J Gwilt,694,Rbc Balance Sheet,Disabled Facilities Grant,8701
http://statistics.data.gov.uk/id/local-authority/47UD,Redditch Borough Council,25/01/2013,177856,DFG/9784,-295.30,D J Gwilt,694,Executive Director Lec,Administration Fee,6364
http://statistics.data.gov.uk/id/local-authority/47UD,Redditch Borough Council,25/01/2013,177856,DFG/9784,"3,228.30",D J Gwilt,694,Rbc Balance Sheet,Disabled Facilities Grant,8701
http://statistics.data.gov.uk/id/local-authority/47UD,Redditch Borough Council,25/01/2013,177840,BSG-PA1,"11,110.50",Batchley Support Group,742,Executive Director Lec,Project Work,4733
http://statistics.data.gov.uk/id/local-authority/47UD,Redditch Borough Council,04/01/2013,176731,SI-00032,884.00,Handicare,779,Housing Repairs Account,Contractors,5158
http://statistics.data.gov.uk/id/local-authority/47UD,Redditch Borough Council,18/01/2013,176466,10827/12035,795.00,G S Adams,788,Executive Director Lec,Routine Grounds Maintenance,3200
http://statistics.data.gov.uk/id/local-authority/47UD,Redditch Borough Council,04/01/2013,176114,01552646,724.66,G4s Cash Services (Uk) Ltd,790,Exec. Director Fin. & Resource,Security Services,4361
http://statistics.data.gov.uk/id/local-authority/47UD,Redditch Borough Council,04/01/2013,173916,380,"3,639.37",Abbey & Lyndon,798,Rbc Balance Sheet,Contract Payments,8131
http://statistics.data.gov.uk/id/local-authority/47UD,Redditch Borough Council,04/01/2013,173916,380,"3,730.86",Abbey & Lyndon,798,Rbc Balance Sheet,Dlo,8130
http://statistics.data.gov.uk/id/local-authority/47UD,Redditch Borough Council,04/01/2013,174862,397,674.94,Abbey & Lyndon,798,Rbc Balance Sheet,Dlo,8130
http://statistics.data.gov.uk/id/local-authority/47UD,Redditch Borough Council,11/01/2013,176073,418,"4,473.31",Abbey & Lyndon,798,Housing Repairs Account,Contractors,5158
http://statistics.data.gov.uk/id/local-authority/47UD,Redditch Borough Council,11/01/2013,176075,414,"1,556.09",Abbey & Lyndon,798,Housing Repairs Account,Contractors,5158
http://statistics.data.gov.uk/id/local-authority/47UD,Redditch Borough Council,18/01/2013,176076,417,153.11,Abbey & Lyndon,798,Housing Repairs Account,Contractors,5158
http://statistics.data.gov.uk/id/local-authority/47UD,Redditch Borough Council,18/01/2013,176076,417,890.81,Abbey & Lyndon,798,Housing Repairs Account,Contractors,5158
http://statistics.data.gov.uk/id/local-authority/47UD,Redditch Borough Council,18/01/2013,176076,417,52.06,Abbey & Lyndon,798,Housing Repairs Account,Contractors,5158
http://statistics.data.gov.uk/id/local-authority/47UD,Redditch Borough Council,04/01/2013,176078,416,511.92,Abbey & Lyndon,798,Housing Repairs Account,Contractors,5158
http://statistics.data.gov.uk/id/local-authority/47UD,Redditch Borough Council,11/01/2013,176079,415,"2,523.73",Abbey & Lyndon,798,Housing Repairs Account,Contractors,5158
http://statistics.data.gov.uk/id/local-authority/47UD,Redditch Borough Council,11/01/2013,176080,413,"1,908.64",Abbey & Lyndon,798,Housing Repairs Account,Contractors,5158
http://statistics.data.gov.uk/id/local-authority/47UD,Redditch Borough Council,11/01/2013,176080,413,100.46,Abbey & Lyndon,798,Housing Repairs Account,Repairs In House Team,3107
http://statistics.data.gov.uk/id/local-authority/47UD,Redditch Borough Council,11/01/2013,176409,422,"1,078.97",Abbey & Lyndon,798,Rbc Balance Sheet,Contract Payments,8131
http://statistics.data.gov.uk/id/local-authority/47UD,Redditch Borough Council,18/01/2013,176410,426,726.37,Abbey & Lyndon,798,Housing Repairs Account,Contractors,5158
http://statistics.data.gov.uk/id/local-authority/47UD,Redditch Borough Council,18/01/2013,176410,426,185.19,Abbey & Lyndon,798,Rbc Balance Sheet,Contract Payments,8131
http://statistics.data.gov.uk/id/local-authority/47UD,Redditch Borough Council,11/01/2013,176411,425,"3,250.48",Abbey & Lyndon,798,Rbc Balance Sheet,Contract Payments,8131
http://statistics.data.gov.uk/id/local-authority/47UD,Redditch Borough Council,18/01/2013,176412,423,"12,911.40",Abbey & Lyndon,798,Rbc Balance Sheet,Contract Payments,8131
http://statistics.data.gov.uk/id/local-authority/47UD,Redditch Borough Council,18/01/2013,176413,427,"5,449.13",Abbey & Lyndon,798,Housing Repairs Account,Contractors,5158
http://statistics.data.gov.uk/id/local-authority/47UD,Redditch Borough Council,18/01/2013,176414,428,638.49,Abbey & Lyndon,798,Housing Repairs Account,Contractors,5158
http://statistics.data.gov.uk/id/local-authority/47UD,Redditch Borough Council,25/01/2013,176542,440,"3,187.91",Abbey & Lyndon,798,Housing Repairs Account,Contractors,5158
http://statistics.data.gov.uk/id/local-authority/47UD,Redditch Borough Council,25/01/2013,176543,439,"2,353.64",Abbey & Lyndon,798,Housing Repairs Account,Contractors,5158
http://statistics.data.gov.uk/id/local-authority/47UD,Redditch Borough Council,25/01/2013,176545,437,"1,276.51",Abbey & Lyndon,798,Housing Repairs Account,Contractors,5158
http://statistics.data.gov.uk/id/local-authority/47UD,Redditch Borough Council,25/01/2013,176545,437,13.50,Abbey & Lyndon,798,Housing Repairs Account,Contractors,5158
http://statistics.data.gov.uk/id/local-authority/47UD,Redditch Borough Council,25/01/2013,176545,437,164.83,Abbey & Lyndon,798,Rbc Balance Sheet,Contract Payments,8131
http://statistics.data.gov.uk/id/local-authority/47UD,Redditch Borough Council,11/01/2013,176546,433,"1,509.61",Abbey & Lyndon,798,Rbc Balance Sheet,Contract Payments,8131
http://statistics.data.gov.uk/id/local-authority/47UD,Redditch Borough Council,18/01/2013,176551,435,"1,259.81",Abbey & Lyndon,798,Housing Repairs Account,Contractors,5158
http://statistics.data.gov.uk/id/local-authority/47UD,Redditch Borough Council,11/01/2013,176552,434,"1,955.20",Abbey & Lyndon,798,Housing Repairs Account,Contractors,5158
http://statistics.data.gov.uk/id/local-authority/47UD,Redditch Borough Council,11/01/2013,176553,432,"2,136.19",Abbey & Lyndon,798,Rbc Balance Sheet,Dlo,8130
http://statistics.data.gov.uk/id/local-authority/47UD,Redditch Borough Council,18/01/2013,176626,431,"1,632.05",Abbey & Lyndon,798,Housing Repairs Account,Contractors,5158
http://statistics.data.gov.uk/id/local-authority/47UD,Redditch Borough Council,18/01/2013,176628,424,"1,953.07",Abbey & Lyndon,798,Housing Repairs Account,Contractors,5158
http://statistics.data.gov.uk/id/local-authority/47UD,Redditch Borough Council,18/01/2013,176631,429,811.13,Abbey & Lyndon,798,Housing Repairs Account,Contractors,5158
http://statistics.data.gov.uk/id/local-authority/47UD,Redditch Borough Council,18/01/2013,176906,445,"1,939.54",Abbey & Lyndon,798,Rbc Balance Sheet,Contract Payments,8131
http://statistics.data.gov.uk/id/local-authority/47UD,Redditch Borough Council,18/01/2013,176910,444,421.16,Abbey & Lyndon,798,Housing Repairs Account,Repairs In House Team,3107
http://statistics.data.gov.uk/id/local-authority/47UD,Redditch Borough Council,18/01/2013,176910,444,163.96,Abbey & Lyndon,798,Rbc Balance Sheet,Dlo,8130
http://statistics.data.gov.uk/id/local-authority/47UD,Redditch Borough Council,18/01/2013,176911,443,"1,767.76",Abbey & Lyndon,798,Housing Repairs Account,Repairs In House Team,3107
http://statistics.data.gov.uk/id/local-authority/47UD,Redditch Borough Council,18/01/2013,176913,442,578.87,Abbey & Lyndon,798,Housing Repairs Account,Repairs In House Team,3107
http://statistics.data.gov.uk/id/local-authority/47UD,Redditch Borough Council,18/01/2013,176913,442,"2,147.16",Abbey & Lyndon,798,Rbc Balance Sheet,Direct Payments,8132
http://statistics.data.gov.uk/id/local-authority/47UD,Redditch Borough Council,04/01/2013,176708,19219C,"5,302.52",Ableflame Ltd,799,Housing Repairs Account,Contractors,5158
http://statistics.data.gov.uk/id/local-authority/47UD,Redditch Borough Council,04/01/2013,176709,19241C,"4,769.19",Ableflame Ltd,799,Housing Repairs Account,Contractors,5158
http://statistics.data.gov.uk/id/local-authority/47UD,Redditch Borough Council,04/01/2013,176710,19068C,"2,394.16",Ableflame Ltd,799,Housing Repairs Account,Contractors,5158
http://statistics.data.gov.uk/id/local-authority/47UD,Redditch Borough Council,04/01/2013,176711,19069C,"3,746.92",Ableflame Ltd,799,Housing Repairs Account,Contractors,5158
http://statistics.data.gov.uk/id/local-authority/47UD,Redditch Borough Council,11/01/2013,176989,19451C,694.18,Ableflame Ltd,799,Housing Repairs Account,Contractors,5158
http://statistics.data.gov.uk/id/local-authority/47UD,Redditch Borough Council,11/01/2013,176991,19450C,"6,200.72",Ableflame Ltd,799,Housing Repairs Account,Contractors,5158
http://statistics.data.gov.uk/id/local-authority/47UD,Redditch Borough Council,11/01/2013,176993,19358C,"20,275.00",Ableflame Ltd,799,Housing Repairs Account,Contractors,5158
http://statistics.data.gov.uk/id/local-authority/47UD,Redditch Borough Council,11/01/2013,177041,314,85.27,Ableflame Ltd,799,Housing Repairs Account,Contractors,5158
http://statistics.data.gov.uk/id/local-authority/47UD,Redditch Borough Council,11/01/2013,177041,314,"6,463.72",Ableflame Ltd,799,Housing Repairs Account,Contractors,5158
http://statistics.data.gov.uk/id/local-authority/47UD,Redditch Borough Council,11/01/2013,177041,314,450.80,Ableflame Ltd,799,Housing Repairs Account,Repairs In House Team,3107
http://statistics.data.gov.uk/id/local-authority/47UD,Redditch Borough Council,11/01/2013,177041,314,"1,204.01",Ableflame Ltd,799,Housing Repairs Account,Contractors,5158
http://statistics.data.gov.uk/id/local-authority/47UD,Redditch Borough Council,11/01/2013,177041,314,"32,228.74",Ableflame Ltd,799,Rbc Balance Sheet,Contract Payments,8131
http://statistics.data.gov.uk/id/local-authority/47UD,Redditch Borough Council,18/01/2013,177308,315,"10,830.55",Ableflame Ltd,799,Housing Repairs Account,Contractors,5158
http://statistics.data.gov.uk/id/local-authority/47UD,Redditch Borough Council,18/01/2013,177308,315,"29,124.49",Ableflame Ltd,799,Rbc Balance Sheet,Contract Payments,8131
http://statistics.data.gov.uk/id/local-authority/47UD,Redditch Borough Council,18/01/2013,177469,19477C,"2,841.31",Ableflame Ltd,799,Housing Repairs Account,Contractors,5158
http://statistics.data.gov.uk/id/local-authority/47UD,Redditch Borough Council,04/01/2013,176750,NOV 12,-594.40,Aon Limited,83,Exec. Director Fin. & Resource,Insurance Commission,6384
http://statistics.data.gov.uk/id/local-authority/47UD,Redditch Borough Council,04/01/2013,176750,NOV 12,"3,150.32",Aon Limited,83,Rbc Balance Sheet, Tenants Ins,1389
http://statistics.data.gov.uk/id/local-authority/47UD,Redditch Borough Council,25/01/2013,177822,HOME CONT INS,-536.04,Aon Limited,83,Exec. Director Fin. & Resource,Insurance Commission,6384
http://statistics.data.gov.uk/id/local-authority/47UD,Redditch Borough Council,25/01/2013,177822,HOME CONT INS,"2,841.03",Aon Limited,83,Rbc Balance Sheet, Tenants Ins,1389
http://statistics.data.gov.uk/id/local-authority/47UD,Redditch Borough Council,04/01/2013,176070,SIN018146,500.00,Asa Award Scheme,91,Executive Director Lec,Advertising,4735
